Workbook

Sheet Содержание
C4: Действует с 02.02.2016 v1.0 | G4: Моя скидка | H4: 0
C5: Возможны изменения характеристик и цен
C29: новые позиции / цены выделены
B31: =C4 -> Действует с 02.02.2016 v1.0
B32: Валюта прайса: USD
G963: Make MSN my homepage
G965: Simply click the Run button at the bottom of your browser.
G966: Simply click the Run button at the bottom of your browser.
G968: By clicking to run this downloaded file you agree to the Microsoft Service Agreement and Privacy Statement. Installation applies to Internet Explorer, Firefox, Chrome and Safari.
G969: Download didn't start? Try again

Sheet Объективы
A1: Объективы
B4: Модель | C4: Описание | D4: Розница, USD | E4: Моя цена | F4: Комментарии
A6: Мегапиксельные объективы
A7: Ручная диафрагма
A8: 5МП | B8: A3Z2812CS-MPWIR | C8: 1/2,7", 2,8 - 8,5мм, 1.2 - 16С, 5-мегапиксельный, ИК коррекция, CS крепление | D8: 203 | E8: =ROUNDUP(D8-(Содержание!$H$4*D8),0) -> 203 | F8: Новая модель
A9: 3МП | B9: A4Z1214CS-MPIR | C9: 1/2,7", 12,5-50 мм, 1.4 - 16C, 3-х мегапиксельный, ИК коррекция, CS крепление | D9: 291 | E9: =ROUNDUP(D9-(Содержание!$H$4*D9),0) -> 291 | F9: Цена снижена
A10: 3МП | B10: A4Z2812CS-MPIR | C10: 1/2,7", 2,8 - 10,0 мм, 1.2 - 16C, 3-х мегапиксельный, ИК коррекция, CS крепление | D10: 170 | E10: =ROUNDUP(D10-(Содержание!$H$4*D10),0) -> 170 | F10: Цена снижена
A11: 3МП | B11: A6Z8516CS-MP | C11: 1/2,7", 8,5 - 50 мм, 1.6 - 16C, 3-х мегапиксельный, CS крепление | D11: 162 | E11: =ROUNDUP(D11-(Содержание!$H$4*D11),0) -> 162 | F11: Цена снижена
A12: 5МП | B12: E3Z4518CS-MPIR | C12: 1/1,8", 4.5мм-13,2, F1.8 - 16C, CS, IR, 5 мегапиксельный | D12: 396 | E12: =ROUNDUP(D12-(Содержание!$H$4*D12),0) -> 396 | F12: Цена снижена
A13: 2МП | B13: H2Z0414C-MP | C13: 1/2", 4,0-8,0 мм, 1.4 – 16C, мегапиксельный, C крепление | D13: 216 | E13: =ROUNDUP(D13-(Содержание!$H$4*D13),0) -> 216
A14: 3МП | B14: H5Z2518C-MP | C14: 1/2", 25,0 - 135 мм, 1,8 - 16C, 3-х мегапиксельный, C крепление | D14: 633 | E14: =ROUNDUP(D14-(Содержание!$H$4*D14),0) -> 633
A15: 2МП | B15: M3Z1228C-MP* | C15: 2/3", 12,0 - 36,0 мм, 2.8 – 16C, C крепление, мегапиксельный | D15: 317 | E15: =ROUNDUP(D15-(Содержание!$H$4*D15),0) -> 317 | F15: Цена снижена. Уточняйте наличие на складе
A16: 5МП | B16: M2514FIC-MPIR | C16: >2/3", 25,0 мм, F1.4, 5-ти мегапиксельный, С крепление, IR | D16: 749 | E16: =ROUNDUP(D16-(Содержание!$H$4*D16),0) -> 749
A17: 5МП | B17: M3518FIC-MPIR | C17: >2/3", 35,0 мм, F1.8, 5-ти мегапиксельный, С крепление, IR | D17: 792 | E17: =ROUNDUP(D17-(Содержание!$H$4*D17),0) -> 792
A18: 5МП | B18: M5020FIC-MPIR | C18: >2/3", 50,0 мм, F2.0, 5-ти мегапиксельный, С крепление, IR | D18: 993 | E18: =ROUNDUP(D18-(Содержание!$H$4*D18),0) -> 993
A19: DC диафрагма
A20: 3МП | B20: TG4Z2816FCS-MPIR* | C20: 1/3", 2,8 - 12мм, 1,6 - 360C, 3-х мегапиксельный, ИК коррекция, CS крепление | D20: 132 | E20: =ROUNDUP(D20-(Содержание!$H$4*D20),0) -> 132 | F20: Уточняйте наличие на складе
A21: 5МП | B21: AG3Z2812CS-MPWIR | C21: 1/2,7", 2,8 - 8,5 мм, 1.2-360C, 5-мегапиксельный, ИК коррекция, CS крепление | D21: 203 | E21: =ROUNDUP(D21-(Содержание!$H$4*D21),0) -> 203 | F21: Новая модель
A22: 3МП | B22: AG4Z1214FCS-MPIR | C22: 1/2,7", 12,5 - 50 мм, 1.4-360C, 3-х мегапиксельный, ИК коррекция, CS крепление | D22: 291 | E22: =ROUNDUP(D22-(Содержание!$H$4*D22),0) -> 291 | F22: Цена снижена
A23: 3МП | B23: AG4Z2812FCS-MPIR | C23: 1/2,7", 2,8 - 10,0 мм, 1.2-360C, 3-х мегапиксельный, ИК коррекция, CS крепление | D23: 125 | E23: =ROUNDUP(D23-(Содержание!$H$4*D23),0) -> 125 | F23: Цена снижена
A24: 3МП | B24: AG6Z8516FCS-MP | C24: 1/2,7", 8,5 - 50 мм, 1.6-360C, 3-х мегапиксельный, CS крепление | D24: 146 | E24: =ROUNDUP(D24-(Содержание!$H$4*D24),0) -> 146 | F24: Цена снижена
A25: 3МП | B25: HG5Z2518FC-MP | C25: 1/2", 25,0-135,0 мм, 1,8-360С, 3-х мегапиксельный, C крепление | D25: 648 | E25: =ROUNDUP(D25-(Содержание!$H$4*D25),0) -> 648
A26: 2МП | B26: MG3Z1228FC-MP | C26: 2/3", 12,0 - 36,0 мм, 2.8 – 360C, C крепление, мегапиксельный | D26: 385 | E26: =ROUNDUP(D26-(Содержание!$H$4*D26),0) -> 385 | F26: Цена снижена. Уточняйте наличие на складе
A27: 5МП | B27: MG1616FC-MP | C27: 2/3", 16,0 мм, F1.6, 5-ти мегапиксельный, С крепление | D27: 676 | E27: =ROUNDUP(D27-(Содержание!$H$4*D27),0) -> 676
A28: 5МП | B28: MG2514FC-MP | C28: 2/3", 25,0 мм, F1.4, 5-ти мегапиксельный, С крепление | D28: 676 | E28: =ROUNDUP(D28-(Содержание!$H$4*D28),0) -> 676
A29: 5МП | B29: MG2514FC-MPIR | C29: 25,0mm, 2/3", C, F1.4, DC-iris, IR-corrected, 5 Megapixel | D29: 1010 | E29: =ROUNDUP(D29-(Содержание!$H$4*D29),0) -> 1010
A30: 5МП | B30: MG3518FC-MPIR | C30: >2/3", 35,0 мм, F1.8, 5-ти мегапиксельный, С крепление, IR | D30: 821 | E30: =ROUNDUP(D30-(Содержание!$H$4*D30),0) -> 821
A31: 5МП | B31: MG5020FC-MPIR | C31: >2/3", 50,0 мм, F2.0, 5-ти мегапиксельный, С крепление, IR | D31: 1023 | E31: =ROUNDUP(D31-(Содержание!$H$4*D31),0) -> 1023
A32: P-Iris | E32: =ROUNDUP(D32-(Содержание!$H$4*D32),0) -> 0
A33: 5МП | B33: AG3Z2812KCS-MPWIR | C33: 2,8 - 8,5mm, 1.2, 1/2.7", P-Iris, CS, IR, 3 Megapixel | D33: 226 | E33: =ROUNDUP(D33-(Содержание!$H$4*D33),0) -> 226 | F33: Новая модель
A34: 3МП | B34: AG4Z1214KCS-MPIR | C34: 1/2,7", 12,5 - 50 мм, 1.4-16C, 3-х мегапиксельный, ИК коррекция, CS крепление | D34: 305 | E34: =ROUNDUP(D34-(Содержание!$H$4*D34),0) -> 305 | F34: Цена снижена
A35: 3МП | B35: AG4Z2812KCS-MPIR | C35: 1/2,7", 2,8 - 10,0 мм, 1.2-360C, 3-х мегапиксельный, ИК коррекция, CS крепление | D35: 203 | E35: =ROUNDUP(D35-(Содержание!$H$4*D35),0) -> 203 | F35: Цена выросла
A36: 3МП | B36: AG6Z8516KCS-MP | C36: 1/2,7", 8,5 - 50 мм, 1.6-360C, 3-х мегапиксельный, CS крепление | D36: 182 | E36: =ROUNDUP(D36-(Содержание!$H$4*D36),0) -> 182 | F36: Цена снижена
A37: 5МП | B37: MG2514KC-MPIR-V31 | C37: 25,0mm, 2/3", C, F1.4, P-iris, IR-corrected, 5 Megapixel | D37: 0 | E37: =ROUNDUP(D37-(Содержание!$H$4*D37),0) -> 0
A38: 5МП | B38: MG3518KC-MPIR-V31 | C38: 35,0mm, 2/3", C, F1.8, P-iris, IR-corrected, 5 Megapixel | D38: 0 | E38: =ROUNDUP(D38-(Содержание!$H$4*D38),0) -> 0
A39: 5МП | B39: MG5020KC-MPIR-V31 | C39: 50,0mm, 2/3", C, F2.0, P-iris, IR-corrected, 5 Megapixel | D39: 0 | E39: =ROUNDUP(D39-(Содержание!$H$4*D39),0) -> 0
A41: Объективы стандартного разрешения
A42: Ручная диафрагма
B43: T2314FICS | C43: 1/3", 2,3 мм, 1.4 – 16C, CS | D43: 231 | E43: =ROUNDUP(D43-(Содержание!$H$4*D43),0) -> 231
B44: T2616FICS | C44: 1/3", 2,6 мм, 1.6 – 11C, CS | D44: 149 | E44: =ROUNDUP(D44-(Содержание!$H$4*D44),0) -> 149
B45: T2625CS-P | C45: 1/3", 2,6 мм, 2.5 – 32C, CS, Pinhole | D45: 530 | E45: =ROUNDUP(D45-(Содержание!$H$4*D45),0) -> 530
B46: T0412FICS | C46: 1/3", 4,0 мм, 1.2 – 16C, CS | D46: 79 | E46: =ROUNDUP(D46-(Содержание!$H$4*D46),0) -> 79
B47: T0812FICS | C47: 1/3", 8,0 мм, 1.2 – 16C, CS | D47: 77 | E47: =ROUNDUP(D47-(Содержание!$H$4*D47),0) -> 77
B48: H1214FICS | C48: 1/2", 12,0 мм, 1.4 – 16C, CS | D48: 106 | E48: =ROUNDUP(D48-(Содержание!$H$4*D48),0) -> 106
A49: DC диафрагма
B50: TG2314FCS | C50: 1/3", 2,3 мм, 1.4 – 360C, CS | D50: 276 | E50: =ROUNDUP(D50-(Содержание!$H$4*D50),0) -> 276
B51: TG2616FCS | C51: 1/3", 2,6 мм, 1.6 – 360C, CS | D51: 208 | E51: =ROUNDUP(D51-(Содержание!$H$4*D51),0) -> 208
B52: TG2625FCS-P | C52: 1/3", 2,6 мм, 2.5 – 360C, CS, Pinhole | D52: 745 | E52: =ROUNDUP(D52-(Содержание!$H$4*D52),0) -> 745
B53: TG0412FCS | C53: 1/3", 4,0 мм, 1.2 – 360C, CS | D53: 143 | E53: =ROUNDUP(D53-(Содержание!$H$4*D53),0) -> 143
B54: TG0812FCS | C54: 1/3", 8,0 мм, 1.2 – 360C, CS | D54: 132 | E54: =ROUNDUP(D54-(Содержание!$H$4*D54),0) -> 132
B55: HG1214FCS | C55: 1/2", 12,0 мм, 1.4 – 360C, CS | D55: 166 | E55: =ROUNDUP(D55-(Содержание!$H$4*D55),0) -> 166
A56: Video диафрагма
B57: TG2314AFCS | C57: 1/3", 2,3 мм, 1.4 – 360C, CS | D57: 326 | E57: =ROUNDUP(D57-(Содержание!$H$4*D57),0) -> 326
B58: TG2616AFCS | C58: 1/3", 2,6 мм, 1.6 – 360C, CS | D58: 251 | E58: =ROUNDUP(D58-(Содержание!$H$4*D58),0) -> 251
B59: TG2625AFCS-P | C59: 1/3", 2,6 мм, 2.5 – 360C, CS, Pinhole | D59: 796 | E59: =ROUNDUP(D59-(Содержание!$H$4*D59),0) -> 796
B60: HG1214AFCS | C60: 1/2", 12,0 мм, 1.4 – 360C, CS | D60: 200 | E60: =ROUNDUP(D60-(Содержание!$H$4*D60),0) -> 200
A61: Ручные вариофокальные объективы
B62: T2Z1816CS | C62: 1/3", 2:1, 1,8-3,6 мм, 1.6 – 16C, CS | D62: 305 | E62: =ROUNDUP(D62-(Содержание!$H$4*D62),0) -> 305
B63: T3Z2910CS | C63: 1/3", 3:1, 2,9-8,2 мм, 1.0 – 16C, CS, ASP | D63: 72 | E63: =ROUNDUP(D63-(Содержание!$H$4*D63),0) -> 72
B64: T3Z2910CS-IR | C64: 1/3", 3:1, 2,9-8,2 мм, 1.0 – 16C, CS, с ИК коррекцией, FS | D64: 86 | E64: =ROUNDUP(D64-(Содержание!$H$4*D64),0) -> 86
B65: T3Z3510CS | C65: 1/3", 3:1, 3,5-10,5 мм, 1.0 – 16C, CS, ASP | D65: 125 | E65: =ROUNDUP(D65-(Содержание!$H$4*D65),0) -> 125
B66: T3Z3510CS-IR | C66: 1/3", 3:1, 3,5-10,5 мм, 1,0 – 16C, CS, с ИК коррекцией, FS, ASP | D66: 154 | E66: =ROUNDUP(D66-(Содержание!$H$4*D66),0) -> 154
B67: T4Z2813CS-IR | C67: 1/3", 4:1, 2,8-12,0 мм, 1.3 – 16C, CS, с ИК коррекцией, FS, ASP | D67: 100 | E67: =ROUNDUP(D67-(Содержание!$H$4*D67),0) -> 100
B68: T5Z8513CS-IR | C68: 1/3", 5:1, 8,5-40,0 мм, 1.3 – 16C, CS, с ИК коррекцией, FS, ASP | D68: 228 | E68: =ROUNDUP(D68-(Содержание!$H$4*D68),0) -> 228
B69: T10Z0513CS | C69: 1/3", 10:1, 5,0-50,0 мм, 1.3 – 16C, CS | D69: 142 | E69: =ROUNDUP(D69-(Содержание!$H$4*D69),0) -> 142
B70: H2Z4516CS | C70: 1/2", 2:1, 4,5-10,0 мм, 1.6 – 16C, CS, ИК коррекция | D70: 143 | E70: =ROUNDUP(D70-(Содержание!$H$4*D70),0) -> 143
B71: H3Z4512CS-IR | C71: 1/2", 3:1, 4,5-12,5 мм, 1.2 – 16C, CS, ИК коррекция, FS, ASP | D71: 199 | E71: =ROUNDUP(D71-(Содержание!$H$4*D71),0) -> 199
B72: H3Z1014CS | C72: 1/2", 3:1, 10,0-30,0 мм, 1.4 – 16C, CS, Flat, ASP | D72: 303 | E72: =ROUNDUP(D72-(Содержание!$H$4*D72),0) -> 303
A73: Вариофокальные объективы с DC диафрагмой | E73: =ROUNDUP(D73-(Содержание!$H$4*D73),0) -> 0
B74: TG2Z1816FCS | C74: 1/3", 2:1, 1,8-3,6 мм, 1.6 – 360C, CS | D74: 376 | E74: =ROUNDUP(D74-(Содержание!$H$4*D74),0) -> 376
B75: TG3Z2910FCS | C75: 1/3", 3:1, 2,9-8,2 мм, 1.0 – 360C, CS, ASP | D75: 79 | E75: =ROUNDUP(D75-(Содержание!$H$4*D75),0) -> 79
B76: TG3Z2910FCS-IR | C76: 1/3", 3:1, 2,9-8,2 мм, 1.0 – 360C, CS, ИК коррекция, FS, ASP | D76: 94 | E76: =ROUNDUP(D76-(Содержание!$H$4*D76),0) -> 94
B77: TG3Z3510FCS | C77: 1/3", 3:1, 3,5-10,5 мм, 1.0 – 360C, CS | D77: 145 | E77: =ROUNDUP(D77-(Содержание!$H$4*D77),0) -> 145
B78: TG3Z3510FCS-IR | C78: 1/3", 3:1, 3,5-10,5 мм, 1.0 – 360C, CS, ИК коррекция, FS, ASP | D78: 188 | E78: =ROUNDUP(D78-(Содержание!$H$4*D78),0) -> 188
B79: TG4Z2813FCS-IR | C79: 1/3", 4:1, 2,8-12,0 мм, 1.3 – 360C, CS ИК коррекция, FS, ASP | D79: 122 | E79: =ROUNDUP(D79-(Содержание!$H$4*D79),0) -> 122
B80: TG5Z8513FCS-IR | C80: 1/3", 5:1, 8,5-40,0 мм, 1.3 – 360, CS, ИК коррекция, FS, ASP | D80: 228 | E80: =ROUNDUP(D80-(Содержание!$H$4*D80),0) -> 228
B81: TG10Z0513FCS | C81: 1/3", 10:1, 5,0-50,0 мм, 1.3 – 360C, CS, ASP | D81: 143 | E81: =ROUNDUP(D81-(Содержание!$H$4*D81),0) -> 143
B82: HG2Z4516FCS | C82: 1/2", 2:1, 4,5-10,0 мм, 1.6 – 360C, CS | D82: 199 | E82: =ROUNDUP(D82-(Содержание!$H$4*D82),0) -> 199
B83: HG3Z4512FCS-IR | C83: 1/2", 3:1, 4,5-12,5 мм, 1.2 – 360С, CS, ИК коррекция, FS, ASP | D83: 253 | E83: =ROUNDUP(D83-(Содержание!$H$4*D83),0) -> 253
B84: HG3Z1014FCS | C84: 1/2", 3:1, 10,0-30,0 мм, 1.4 – 360C, CS, Flat, ASP | D84: 391 | E84: =ROUNDUP(D84-(Содержание!$H$4*D84),0) -> 391
A85: Вариофокальные объективы с Video диафрагмой | E85: =ROUNDUP(D85-(Содержание!$H$4*D85),0) -> 0
B86: TG2Z1816AFCS | C86: 1/3", 2:1, 1,8-3,6 мм, 1.6 – 360C, CS | D86: 396 | E86: =ROUNDUP(D86-(Содержание!$H$4*D86),0) -> 396
B87: TG3Z2910AFCS | C87: 1/3", 3:1, 2,9-8,2 мм, 1.0 – 360C, CS, ASP | D87: 112 | E87: =ROUNDUP(D87-(Содержание!$H$4*D87),0) -> 112
B88: TG3Z2910AFCS-IR | C88: 1/3", 3:1, 2,9-8,2 мм, 1.0 – 360C, CS, ИК коррекция, FS, ASP | D88: 126 | E88: =ROUNDUP(D88-(Содержание!$H$4*D88),0) -> 126
B89: TG3Z3510AFCS | C89: 1/3", 3:1, 3,5-10,5 мм, 1.0 – 360C, CS, ASP | D89: 188 | E89: =ROUNDUP(D89-(Содержание!$H$4*D89),0) -> 188
B90: TG3Z3510AFCS-IR | C90: 1/3", 3:1, 3,5-10,5 мм, 1.0 – 360C, CS, ИК коррекция, FS, ASP | D90: 242 | E90: =ROUNDUP(D90-(Содержание!$H$4*D90),0) -> 242
B91: TG4Z2813AFCS-IR | C91: 1/3", 4:1, 2,8-12,0 мм, 1.3 – 360C, CS, ИК коррекция, FS, ASP | D91: 169 | E91: =ROUNDUP(D91-(Содержание!$H$4*D91),0) -> 169
B92: TG5Z8513AFCS-IR | C92: 1/3", 5:1, 8,5-40,0 мм, 1.3 – 360, CS, ИК коррекция, FS, ASP | D92: 328 | E92: =ROUNDUP(D92-(Содержание!$H$4*D92),0) -> 328
B93: TG10Z0513AFCS | C93: 1/3", 10:1, 5,0-50,0 мм, 1.3 – 360C, CS, ASP | D93: 188 | E93: =ROUNDUP(D93-(Содержание!$H$4*D93),0) -> 188
B94: HG2Z4516AFCS | C94: 1/2", 2:1, 4,5-10,0 мм, 1.6 – 360C, CS, ИК коррекция | D94: 222 | E94: =ROUNDUP(D94-(Содержание!$H$4*D94),0) -> 222
B95: HG3Z4512AFCS-IR | C95: 1/2", 3:1, 4,5-12,5 мм, 1.2 – 360С, CS, ИК коррекция, FS, ASP | D95: 270 | E95: =ROUNDUP(D95-(Содержание!$H$4*D95),0) -> 270
B96: HG3Z1014AFCS | C96: 1/2", 3:1, 10,0-30,0 мм, 1.4 – 360C, CS, Flat, ASP | D96: 408 | E96: =ROUNDUP(D96-(Содержание!$H$4*D96),0) -> 408
A97: Трансфокаторы с ручным приводом | E97: =ROUNDUP(D97-(Содержание!$H$4*D97),0) -> 0
B98: H6Z0812 | C98: 1/2", 6:1, 8,0-48,0 мм, 1.2 – 16C, C | D98: 622 | E98: =ROUNDUP(D98-(Содержание!$H$4*D98),0) -> 622
B99: M6Z1212 | C99: 2/3", 6:1, 12,5-75,0 мм, 1.2 – 16C, C | D99: 622 | E99: =ROUNDUP(D99-(Содержание!$H$4*D99),0) -> 622
A100: Трансфокаторы с ручным приводом и автодиафрагмой DC (Direct Drive) | E100: =ROUNDUP(D100-(Содержание!$H$4*D100),0) -> 0
B101: T6Z5710AIDC-CS | C101: 1/3", 6:1, 5,7-34,2 мм, 1.0 – 360C, CS | D101: 691 | E101: =ROUNDUP(D101-(Содержание!$H$4*D101),0) -> 691
B102: H6Z0812AIDC | C102: 1/2", 6:1, 8,0-48,0 мм, 1.2 – 560C, C | D102: 656 | E102: =ROUNDUP(D102-(Содержание!$H$4*D102),0) -> 656
A103: Трансфокаторы с ручным приводом и автодиафрагмой Video drive | E103: =ROUNDUP(D103-(Содержание!$H$4*D103),0) -> 0
B104: T6Z5710AIVD-CS | C104: 1/3", 6:1, 5,7-34,2 мм, 1.0 – 360C, CS | D104: 759 | E104: =ROUNDUP(D104-(Содержание!$H$4*D104),0) -> 759
B105: H6Z0812AIVD | C105: 1/2", 6:1, 8,0-48,0 мм, 1.2 – 560C, C | D105: 725 | E105: =ROUNDUP(D105-(Содержание!$H$4*D105),0) -> 725
A106: Моторизованные трансфокаторы | E106: =ROUNDUP(D106-(Содержание!$H$4*D106),0) -> 0
B107: T6Z5710M-CS | C107: 1/3", 6:1, 5,7-34,2 мм, 1.0 – 16C, CS | D107: 881 | E107: =ROUNDUP(D107-(Содержание!$H$4*D107),0) -> 881
B108: T6Z5710MS-CS | C108: 1/3", 6:1, 5,7-34,2 мм, 1.0 – 360C, CS | D108: 915 | E108: =ROUNDUP(D108-(Содержание!$H$4*D108),0) -> 915
B109: T6Z5710MP-CS | C109: 1/3", 6:1, 5,7-34,2 мм, 1.0 – 16C, CS, предустановки | D109: 1157 | E109: =ROUNDUP(D109-(Содержание!$H$4*D109),0) -> 1157
B110: T6Z5710MSP-CS | C110: 1/3", 6:1, 5,7-34,2 мм, 1.0 – 360C, CS, предустановки | D110: 1192 | E110: =ROUNDUP(D110-(Содержание!$H$4*D110),0) -> 1192
B111: T6Z5710AMS-CS | C111: 1/3", 6:1, 5,7-34,2 мм, 1.0 – 360C, CS | D111: 950 | E111: =ROUNDUP(D111-(Содержание!$H$4*D111),0) -> 950
B112: T6Z5710AMSP-CS | C112: 1/3", 6:1, 5,7-34,2 мм, 1.0 – 360C, CS, предустановки | D112: 1243 | E112: =ROUNDUP(D112-(Содержание!$H$4*D112),0) -> 1243
B113: T6Z5710DC-CS | C113: 1/3", 6:1, 5,7-34,2 мм, 1.0 – 360C, CS | D113: 898 | E113: =ROUNDUP(D113-(Содержание!$H$4*D113),0) -> 898
B114: T6Z5710PDC-CS | C114: 1/3", 6:1, 5,7-34,2 мм, 1.0 – 360C, CS, предустановки | D114: 1066 | E114: =ROUNDUP(D114-(Содержание!$H$4*D114),0) -> 1066
B115: T10Z5712M-CS | C115: 1/3", 10:1, 5,7-57,0 мм, 1.2 – 22C, CS | D115: 1053 | E115: =ROUNDUP(D115-(Содержание!$H$4*D115),0) -> 1053
B116: T10Z5712MS-CS | C116: 1/3", 10:1, 5,7-57,0 мм, 1.2 – 560C 1/3" CS | D116: 1106 | E116: =ROUNDUP(D116-(Содержание!$H$4*D116),0) -> 1106
B117: T10Z5712MP-CS | C117: 1/3", 10:1, 5,7-57,0 мм, 1.2 – 22C, CS, предустановки | D117: 1398 | E117: =ROUNDUP(D117-(Содержание!$H$4*D117),0) -> 1398
B118: T10Z5712MSP-CS | C118: 1/3", 10:1, 5,7-57,0 мм, 1.2 – 560C, CS, предустановки | D118: 1451 | E118: =ROUNDUP(D118-(Содержание!$H$4*D118),0) -> 1451
B119: T10Z5712AMS-CS | C119: 1/3", 10:1, 5,7-57,0 мм, 1.2 – 560C, CS | D119: 1140 | E119: =ROUNDUP(D119-(Содержание!$H$4*D119),0) -> 1140
B120: T10Z5712AMSP-CS | C120: 1/3", 10:1, 5,7-57,0 мм, 1.2 – 560C, CS, предустановки | D120: 1485 | E120: =ROUNDUP(D120-(Содержание!$H$4*D120),0) -> 1485
B121: T10Z5712DC-CS | C121: 1/3", 10:1, 5,7-57,0 мм, 1.2 – 560C, CS | D121: 935 | E121: =ROUNDUP(D121-(Содержание!$H$4*D121),0) -> 935
B122: T10Z5712PDC-CS | C122: 1/3", 10:1, 5,7-57,0 мм, 1.2 – 560C, CS, предустановки | D122: 1152 | E122: =ROUNDUP(D122-(Содержание!$H$4*D122),0) -> 1152
B123: T21Z5816M-CS | C123: 1/3", 21:1, 5,8-121,8 мм, 1.6 – 22C, CS | D123: 1796 | E123: =ROUNDUP(D123-(Содержание!$H$4*D123),0) -> 1796
B124: T21Z5816MS-CS | C124: 1/3", 21:1, 5,8-121,8 мм, 1.6 – 560C, CS | D124: 1831 | E124: =ROUNDUP(D124-(Содержание!$H$4*D124),0) -> 1831
B125: T21Z5816MP-CS | C125: 1/3", 21:1, 5,8-121,8 мм, 1.6 – 22C, CS, предустановки | D125: 2107 | E125: =ROUNDUP(D125-(Содержание!$H$4*D125),0) -> 2107
B126: T21Z5816MSP-CS | C126: 1/3", 21:1, 5,8-121,8 мм, 1.6 – 560C, CS, предустановки | D126: 2159 | E126: =ROUNDUP(D126-(Содержание!$H$4*D126),0) -> 2159
B127: T21Z5816AMS-CS | C127: 1/3", 21:1, 5,8-121,8 мм, 1.6 – 560C, CS | D127: 1814 | E127: =ROUNDUP(D127-(Содержание!$H$4*D127),0) -> 1814
B128: T21Z5816AMSP-CS | C128: 1/3", 21:1, 5,8-121,8 мм, 1.6 – 560C, CS, предустановки | D128: 2193 | E128: =ROUNDUP(D128-(Содержание!$H$4*D128),0) -> 2193
B129: T21Z5816DC-CS | C129: 1/3", 21:1, 5,8-121,8 мм, 1.6 – 560C, CS | D129: 1726 | E129: =ROUNDUP(D129-(Содержание!$H$4*D129),0) -> 1726
B130: T21Z5816PDC-CS | C130: 1/3", 21:1, 5,8-121,8 мм, 1.6 – 560C, CS, предустановки | D130: 1943 | E130: =ROUNDUP(D130-(Содержание!$H$4*D130),0) -> 1943
B131: T34Z5518AMS-CS | C131: 1/3", 34:1, 5,5-187,0 мм, 1.8 – 560C, CS | D131: 2453 | E131: =ROUNDUP(D131-(Содержание!$H$4*D131),0) -> 2453
B132: T34Z5518AMSP-CS | C132: 1/3", 34:1, 5,5-187,0 мм, 1.8 – 560C, CS, предустановки | D132: 2781 | E132: =ROUNDUP(D132-(Содержание!$H$4*D132),0) -> 2781
B133: T34Z5518AMSR-CS | C133: 1/3", 34:1, 5,5-187,0 мм, 1.8 – 560C, CS | D133: 2607 | E133: =ROUNDUP(D133-(Содержание!$H$4*D133),0) -> 2607
B134: T34Z5518AMSPR-CS | C134: 1/3", 34:1, 5,5-187,0 мм, 1.8 – 560C, CS, предустановки | D134: 2918 | E134: =ROUNDUP(D134-(Содержание!$H$4*D134),0) -> 2918
B135: T34Z5518DC-CS | C135: 1/3", 34:1, 5,5-187,0 мм, 1.8 – 560C, CS | D135: 2435 | E135: =ROUNDUP(D135-(Содержание!$H$4*D135),0) -> 2435
B136: T34Z5518PDC-CS | C136: 1/3", 34:1, 5,5-187,0 мм, 1.8 – 560C, CS, предустановки | D136: 2763 | E136: =ROUNDUP(D136-(Содержание!$H$4*D136),0) -> 2763
B137: H6Z0812M | C137: 1/2", 6:1, 8,0-48,0 мм, 1.2 – 16C, C крепление | D137: 812 | E137: =ROUNDUP(D137-(Содержание!$H$4*D137),0) -> 812
B138: H6Z0812MS | C138: 1/2", 6:1, 8,0-48,0 мм, 1.2 – 560C, C крепление | D138: 881 | E138: =ROUNDUP(D138-(Содержание!$H$4*D138),0) -> 881
B139: H6Z0812MP | C139: 1/2", 6:1, 8,0-48,0 мм, предустановки, 1.2 – 16C, C крепление | D139: 1123 | E139: =ROUNDUP(D139-(Содержание!$H$4*D139),0) -> 1123
B140: H6Z0812MSP | C140: 1/2", 6:1, 8,0-48,0 мм, предустановки, 1.2 – 560C C крепление | D140: 1157 | E140: =ROUNDUP(D140-(Содержание!$H$4*D140),0) -> 1157
B141: H6Z0812AMS | C141: 1/2", 6:1, 8,0-48,0 мм, 1.2 – 560C, C крепление | D141: 933 | E141: =ROUNDUP(D141-(Содержание!$H$4*D141),0) -> 933
B142: H6Z0812AMSP | C142: 1/2", 6:1, 8,0-48,0 мм, предустановки, 1.2 – 560C, C крепление | D142: 1209 | E142: =ROUNDUP(D142-(Содержание!$H$4*D142),0) -> 1209
B143: H10Z0812M | C143: 1/2", 10:1, 8,0-80,0 мм, 1.2 – 22C, C крепление | D143: 1243 | E143: =ROUNDUP(D143-(Содержание!$H$4*D143),0) -> 1243
B144: H10Z0812MS | C144: 1/2", 10:1, 8,0-80,0 мм, 1.2 – 560C, C крепление | D144: 1331 | E144: =ROUNDUP(D144-(Содержание!$H$4*D144),0) -> 1331
B145: H10Z0812MP | C145: 1/2", 10:1, 8,0-80,0 мм, 1.2 – 22C, предустановки, C крепление | D145: 1537 | E145: =ROUNDUP(D145-(Содержание!$H$4*D145),0) -> 1537
B146: H10Z0812MSP | C146: 1/2", 10:1, 8,0-80,0 мм, 1.2 – 560C, предустановки, C крепление | D146: 1623 | E146: =ROUNDUP(D146-(Содержание!$H$4*D146),0) -> 1623
B147: H10Z0812AMS | C147: 1/2", 10:1, 8,0-80,0 мм, 1.2 – 560C, C крепление | D147: 1152 | E147: =ROUNDUP(D147-(Содержание!$H$4*D147),0) -> 1152
B148: H10Z0812AMSP | C148: 1/2", 10:1, 8,0-80,0 мм, 1.2 – 560C, предустановки, C крепление | D148: 1368 | E148: =ROUNDUP(D148-(Содержание!$H$4*D148),0) -> 1368
A149: 1МП | B149: H10Z0819PDC-MP | C149: 1/2", 10:1, 8,0-80,0мм, 1.9 – 1000 (с нейтр. фильтром), DC автодиафрагма, предустановки, C крепление | D149: 780 | E149: =ROUNDUP(D149-(Содержание!$H$4*D149),0) -> 780 | F149: Цена выросла
A150: 1МП | B150: H10Z0819DC-MP | C150: 1/2", 10:1, 8,0-80,0мм, 1.9 – 1000 (с нейтр. фильтром), DC автодиафрагма, C крепление | D150: 724 | E150: =ROUNDUP(D150-(Содержание!$H$4*D150),0) -> 724 | F150: Цена выросла
A151: 1МП | B151: H10Z0819AMSP-MP | C151: 1/2", 10:1, 8,0-80,0мм, 1.9 – 1000 (с нейтр. фильтром), Video автодиафрагма, предустановки, C крепление | D151: 780 | E151: =ROUNDUP(D151-(Содержание!$H$4*D151),0) -> 780 | F151: Цена выросла
A152: 1МП | B152: H10Z0819AMS-MP | C152: 1/2", 10:1, 8,0-80,0мм, 1.9 – 1000 (с нейтр. фильтром), Video автодиафрагма, C крепление | D152: 724 | E152: =ROUNDUP(D152-(Содержание!$H$4*D152),0) -> 724 | F152: Цена выросла
B153: H10Z1218M | C153: 1/2", 10:1, 12,0-120,0 мм, 1.8 – 22C, C крепление | D153: 1331 | E153: =ROUNDUP(D153-(Содержание!$H$4*D153),0) -> 1331
B154: H10Z1218MS | C154: 1/2", 10:1, 12,0-120,0 мм, 1.8 – 560C, C крепление | D154: 1417 | E154: =ROUNDUP(D154-(Содержание!$H$4*D154),0) -> 1417
B155: H10Z1218MP | C155: 1/2", 10:1, 12,0-120,0 мм, 1.8 – 22C, предустановки, C крепление | D155: 1640 | E155: =ROUNDUP(D155-(Содержание!$H$4*D155),0) -> 1640
B156: H10Z1218MSP | C156: 1/2", 10:1, 12,0-120,0 мм, 1.8 – 560C, предустановки, C крепление | D156: 1726 | E156: =ROUNDUP(D156-(Содержание!$H$4*D156),0) -> 1726
B157: H10Z1218AMS-2 | C157: 1/2", 10:1, 12,0-120,0 мм, 1.8 – 560C, C крепление | D157: 1503 | E157: =ROUNDUP(D157-(Содержание!$H$4*D157),0) -> 1503
B158: H10Z1218AMSP-2 | C158: 1/2", 10:1, 12,0-120,0 мм, 1.8 – 560C, предустановки, C крепление | D158: 1848 | E158: =ROUNDUP(D158-(Содержание!$H$4*D158),0) -> 1848
B159: H10Z1218DC | C159: 1/2", 10:1, 12,0-120,0 мм, 1.8 – 560C, C крепление | D159: 1278 | E159: =ROUNDUP(D159-(Содержание!$H$4*D159),0) -> 1278
B160: H10Z1218PDC | C160: 1/2", 10:1, 12,0-120,0 мм, 1.8 – 560C, предустановки, C крепление | D160: 1606 | E160: =ROUNDUP(D160-(Содержание!$H$4*D160),0) -> 1606
B161: H16Z7516AMS | C161: 1/2", 16:1, 7,5-120,0 мм, 1.6 – 560C, C крепление | D161: 1762 | E161: =ROUNDUP(D161-(Содержание!$H$4*D161),0) -> 1762
B162: H16Z7516AMSP | C162: 1/2", 16:1, 7,5-120,0 мм, 1.6 – 560C, предустановки, C крепление | D162: 2107 | E162: =ROUNDUP(D162-(Содержание!$H$4*D162),0) -> 2107
B163: H16Z7516AMSR | C163: 1/2", 16:1, 7,5-120,0 мм, 1.6 – 560C, C крепление | D163: 1882 | E163: =ROUNDUP(D163-(Содержание!$H$4*D163),0) -> 1882
B164: H16Z7516AMSPR | C164: 1/2", 16:1, 7,5-120,0 мм, 1.6 – 560C, предустановки, C крепление | D164: 2401 | E164: =ROUNDUP(D164-(Содержание!$H$4*D164),0) -> 2401
B165: H16Z7516DC | C165: 1/2", 16:1, 7,5-120,0 мм, 1.6 – 560C, C крепление | D165: 1572 | E165: =ROUNDUP(D165-(Содержание!$H$4*D165),0) -> 1572
B166: H16Z7516PDC | C166: 1/2", 16:1, 7,5-120,0 мм, 1.6 – 560C, предустановки, C крепление | D166: 2037 | E166: =ROUNDUP(D166-(Содержание!$H$4*D166),0) -> 2037
B167: H16Z7516AMS-IR | C167: 1/2", 16:1, 7,5-120,0 мм, 1.6 – 560C, C крепление, ИК коррекция | D167: 3368 | E167: =ROUNDUP(D167-(Содержание!$H$4*D167),0) -> 3368
B168: H16Z7516AMSP-IR | C168: 1/2", 16:1, 7,5-120,0 мм, 1.6 – 560C, предустановки, C крепление, ИК коррекция | D168: 3570 | E168: =ROUNDUP(D168-(Содержание!$H$4*D168),0) -> 3570
B169: H16Z7516AMSR-IR | C169: 1/2", 16:1, 7,5-120,0 мм, 1.6 – 560C, C крепление, ИК коррекция | D169: 3368 | E169: =ROUNDUP(D169-(Содержание!$H$4*D169),0) -> 3368
B170: H16Z7516AMSPR-IR | C170: 1/2", 16:1, 7,5-120,0 мм, 1.6 – 560C, предустановки, C крепление, ИК коррекция | D170: 3570 | E170: =ROUNDUP(D170-(Содержание!$H$4*D170),0) -> 3570
A171: 2МП | B171: H21Z1016AMS-MP | C171: 1/2", 21:1, 10,0-210,0 мм, 1,5 - 1000, C крепление, Video Auto Iris, 2 мегапиксельный | D171: 2677 | E171: =ROUNDUP(D171-(Содержание!$H$4*D171),0) -> 2677
A172: 2МП | B172: H21Z1016AMSP-MP | C172: 1/2", 21:1, 10,0-210,0 мм, 1,5 - 1000, предустановки, C крепление, Video Auto Iris, Preset, 2 мегапиксельный | D172: 2937 | E172: =ROUNDUP(D172-(Содержание!$H$4*D172),0) -> 2937
A173: 3МП | B173: H21Z1016DC-MP | C173: 1/2", 21:1, 10,0-210,0 мм, 1,5 - 1000, C крепление, DC Iris, 2 мегапиксельный | D173: 2677 | E173: =ROUNDUP(D173-(Содержание!$H$4*D173),0) -> 2677
A174: 3МП | B174: H21Z1016PDC-MP | C174: 1/2", 21:1, 10,0-210,0 мм, 1,5 - 1000, предустановки, C крепление, DC Iris, Preset, 2 мегапиксельный | D174: 2937 | E174: =ROUNDUP(D174-(Содержание!$H$4*D174),0) -> 2937
A175: 2МП | B175: M24Z1527PDC-MP | C175: 2/3" f15.0-360mm 2.7 DC 2MP 24X Preset Spot Filter C | D175: 7772 | E175: =ROUNDUP(D175-(Содержание!$H$4*D175),0) -> 7772
A176: 2МП | B176: M24Z2138PDC-MP | C176: 2/3" 21.0-500mm 3.8 DC 2MP 24X Preset Sport Filter. C | D176: 9499 | E176: =ROUNDUP(D176-(Содержание!$H$4*D176),0) -> 9499
A177: 3МП | B177: E24Z1018M-MP | C177: 1/1.8, 24:1, 10,0мм - 240мм, 1.8 - 500C, 3 мегапиксельный | D177: 4491 | E177: =ROUNDUP(D177-(Содержание!$H$4*D177),0) -> 4491
A178: 3МП | B178: E24Z1018M-MPIR | C178: 1/1.8, 24:1, 10,0мм - 240мм, 1.8 - 500C, 3 мегапиксельный, IR | D178: 5786 | E178: =ROUNDUP(D178-(Содержание!$H$4*D178),0) -> 5786
A179: 3МП | B179: E24Z1018MS-MP | C179: 1/1.8, 24:1, 10,0мм - 240мм, 1.8 - 500C, Spotfilter, 3 мегапиксельный | D179: 4663 | E179: =ROUNDUP(D179-(Содержание!$H$4*D179),0) -> 4663
A180: 3МП | B180: E24Z1018MS-MPIR | C180: 1/1.8, 24:1, 10,0мм - 240мм, 1.8 - 500C, Spotfilter, 3 мегапиксельный, IR | D180: 5958 | E180: =ROUNDUP(D180-(Содержание!$H$4*D180),0) -> 5958
A181: 3МП | B181: E24Z1018MP-MP | C181: 1/1.8, 24:1, 10,0мм - 240мм, 1.8 - 500C, предустановки, 3 мегапиксельный | D181: 4663 | E181: =ROUNDUP(D181-(Содержание!$H$4*D181),0) -> 4663
A182: 3МП | B182: E24Z1018MP-MPIR | C182: 1/1.8, 24:1, 10,0мм - 240мм, 1.8 - 500C, предустановки, 3 мегапиксельный, IR | D182: 5958 | E182: =ROUNDUP(D182-(Содержание!$H$4*D182),0) -> 5958
A183: 3МП | B183: E24Z1018MSP-MP | C183: 1/1.8, 24:1, 10,0мм - 240мм, 1.8 - 500C, предустановки, Spotfilter, 3 мегапиксельный | D183: 4749 | E183: =ROUNDUP(D183-(Содержание!$H$4*D183),0) -> 4749
A184: 3МП | B184: E24Z1018MSP-MPIR | C184: 1/1.8, 24:1, 10,0мм - 240мм, 1.8 - 500C, предустановки, Spotfilter, 3 мегапиксельный, IR | D184: 6045 | E184: =ROUNDUP(D184-(Содержание!$H$4*D184),0) -> 6045
A185: 3МП | B185: E24Z1018AMS-MP | C185: 1/1.8, 24:1, 10,0мм - 240мм, 1.8 - 500C, Video Auto Iris, C крепление, Spotfilter, 3 мегапиксельный | D185: 4146 | E185: =ROUNDUP(D185-(Содержание!$H$4*D185),0) -> 4146
A186: 3МП | B186: E24Z1018AMS-MPIR | C186: 1/1.8, 24:1, 10,0мм - 240мм, 1.8 - 500C, Video Auto Iris, C крепление, Spotfilter, IR, 3 мегапиксельный | D186: 5441 | E186: =ROUNDUP(D186-(Содержание!$H$4*D186),0) -> 5441
A187: 3МП | B187: E24Z1018AMSP-MP | C187: 1/1.8, 24:1, 10,0мм - 240мм, 1.8 - 500C, ", Video Auto Iris, C крепление, предустановки, 3 мегапиксельный | D187: 4275 | E187: =ROUNDUP(D187-(Содержание!$H$4*D187),0) -> 4275
A188: 3МП | B188: E24Z1018AMSP-MPIR | C188: 1/1.8, 24:1, 10,0мм - 240мм, 1.8 - 500C, ", Video Auto Iris, C крепление, предустановки, IR, 3 мегапиксельный | D188: 5613 | E188: =ROUNDUP(D188-(Содержание!$H$4*D188),0) -> 5613
A189: 3МП | B189: E24Z1018DC-MP | C189: 10.0mm - 240mm, 1.8 - 500C, 1/1.8", DC Auto Iris, C, 3 Megapixel | D189: 4146 | E189: =ROUNDUP(D189-(Содержание!$H$4*D189),0) -> 4146 | F189: Новая модель
A190: 3МП | B190: E24Z1018DC-MPIR | C190: 10.0mm - 240mm, 1.8 - 500C, 1/1.8", DC Auto Iris, C, 3 Megapixel, IR | D190: 5441 | E190: =ROUNDUP(D190-(Содержание!$H$4*D190),0) -> 5441 | F190: Новая модель
A191: 3МП | B191: E24Z1018PDC-MP | C191: 1/1.8, 24:1, 10,0мм - 240мм, 1.8 - 500C, DC Auto Iris, C крепление, предустановки, 3 мегапиксельный | D191: 4275 | E191: =ROUNDUP(D191-(Содержание!$H$4*D191),0) -> 4275
A192: 3МП | B192: E24Z1018PDC-MPIR | C192: 1/1.8, 24:1, 10,0мм - 240мм, 1.8 - 500C, DC Auto Iris, C крепление, предустановки, IR, 3 мегапиксельный | D192: 5613 | E192: =ROUNDUP(D192-(Содержание!$H$4*D192),0) -> 5613
A193: 1.3МП | B193: H27Z9535AM-MP | C193: 1/2", 9,5 - 256,5 mm, F3,5, C крепление, Video Auto Iris, 1.3 мегапиксельный | D193: 4150 | E193: =ROUNDUP(D193-(Содержание!$H$4*D193),0) -> 4150 | F193: Цена снижена
A194: 1.3МП | B194: H27Z9535AMP-MP | C194: 1/2", 9,5 - 256,5 mm, F3,5, C крепление, Video Auto Iris, предустановки, 1.3 мегапиксельный | D194: 4400 | E194: =ROUNDUP(D194-(Содержание!$H$4*D194),0) -> 4400 | F194: Цена снижена
A195: 1.3МП | B195: H27Z9535DC-MP | C195: 1/2", 9,5 - 256,5 mm, F3,5, C крепление, DC Auto Iris, 1.3 мегапиксельный | D195: 4150 | E195: =ROUNDUP(D195-(Содержание!$H$4*D195),0) -> 4150 | F195: Цена снижена
A196: 1.3МП | B196: H27Z9535PDC-MP | C196: 1/2", 9,5 - 256,5 mm, F3,5, C крепление, DC Auto Iris, предустановки, 1.3 мегапиксельный | D196: 4400 | E196: =ROUNDUP(D196-(Содержание!$H$4*D196),0) -> 4400 | F196: Цена снижена
B197: H30Z1015AMS | C197: 1/2", 30:1, 10,0-300,0 мм,1.5 – 560C, C крепление, Video Auto Iris | D197: 5181 | E197: =ROUNDUP(D197-(Содержание!$H$4*D197),0) -> 5181
B198: H30Z1015AMSP | C198: 1/2", 30:1, 10,0-300,0 мм,1.5 – 560C, C крепление, Video Auto Iris, Spot Filter, Preset | D198: 5613 | E198: =ROUNDUP(D198-(Содержание!$H$4*D198),0) -> 5613
B199: H30Z1015AMSR | C199: 1/2", 30:1, 10,0-300,0 мм,1.5 – 560C, C крепление, Video Auto Iris / manual Override, Spot Filter | D199: 5924 | E199: =ROUNDUP(D199-(Содержание!$H$4*D199),0) -> 5924
B200: H30Z1015AMSPR | C200: 1/2", 30:1, 10,0-300,0 мм,1.5 – 560C, C крепление, Video Auto Iris / manual Override, Spot Filter, Preset | D200: 6408 | E200: =ROUNDUP(D200-(Содержание!$H$4*D200),0) -> 6408
A201: 2МП | B201: H35Z1015AMS-MP | C201: 1/2", 10,0 - 350 мм, F1,5, C крепление, Video Auto Iris, Spot Filter, C, 1.3 мегапиксельный | D201: 5428 | E201: =ROUNDUP(D201-(Содержание!$H$4*D201),0) -> 5428 | F201: Цена выросла
A202: 2МП | B202: H35Z1015AMSP-MP | C202: 1/2", 10,0 - 350 мм, F1,5, C крепление, Video Auto Iris, Spot Filter, Preset, 1.3 мегапиксельный | D202: 5767 | E202: =ROUNDUP(D202-(Содержание!$H$4*D202),0) -> 5767 | F202: Цена выросла
A203: 2МП | B203: H35Z1015DC-MP | C203: 1/2", 10,0 - 350 мм, F1,5, C крепление, DC Auto Iris, C, 1.3 мегапиксельный | D203: 5428 | E203: =ROUNDUP(D203-(Содержание!$H$4*D203),0) -> 5428 | F203: Цена выросла
A204: 2МП | B204: H35Z1015PDC-MP | C204: 1/2", 10,0 - 350 мм, F1,5, C крепление, DC Auto Iris, Preset, C, 1.3 мегапиксельный | D204: 5767 | E204: =ROUNDUP(D204-(Содержание!$H$4*D204),0) -> 5767 | F204: Цена выросла
... 99 more rows

Sheet IP камеры и NVR
A1: IP-камеры и NVR
C4: Модель | D4: Описание | E4: Розница, USD | F4: Моя цена | G4: Комментарии
B6: CS-крепление объектива
C7: ZN-C2M* | D7: FullHD камера мех. день/ночь, разрешение 2МП (1920х1080), двойной поток (H.264, MJPEG), 1/2,7" прогрессивная КМОП матрица, цв. 0,8 люкс (F1,2, 30 IRE), ч/б 0,07 люкс (F1,2, медленный затвор вкл., 30 IRE), C/CS крепление (DC/ручная), 12VDC/24VAC или PoE, BNC выход видео (настроечный), аудио вх/вых (G.711/8K), тревожный вх/вых, слот Micro SD (до 32ГБ), Onvif, -10..+50C; (*720p запись на NVR серии PixelMaster) | E7: 551 | F7: =ROUNDUP(E7-(Содержание!$H$4*E7),0) -> 551 | G7: *720p recording with PixelMaster
B8: Цилиндрический корпус
C9: ZN-B2MTP | D9: FullHD камера мех. день/ночь в цилиндрическом корпусе со встроенной ИК-подсветкой, разрешение 2МП (1920x1080), двойной поток (H.264, MJPEG), 1/2.8" Sony IMX122 CMOS, цв. 0,16 люкс (F1,4, 25 IRE), ч/б 0 люкс с ИК-подсветкой (42 светодиода, до 25м), встроенный варифокальный объектив computar 3-9 мм, автодиафрагма P-iris, удаленное управление зумом, фокусировкой и диафрагмой, 12VDC/24VAC или PoE, выход на сервисный монитор, аудио вх/вых (G.711/8K), тревожный вх/вых, слот Micro SD (до 32ГБ), Onvif, IP66, -40..+50C (24В АС) | E9: 936 | F9: =ROUNDUP(E9-(Содержание!$H$4*E9),0) -> 936
C10: ZN-B2MTP-2 | D10: FullHD камера мех. день/ночь в цилиндрическом корпусе со встроенной ИК-подсветкой, разрешение 2МП (1920x1080), двойной поток (H.264, MJPEG), 1/2.8" Sony IMX122 CMOS, цв. 0,16 люкс (F1,4, 25 IRE), ч/б 0 люкс с ИК-подсветкой (42 светодиода, до 25м), встроенный варифокальный объектив computar 10-23 мм, автодиафрагма P-iris, удаленное управление зумом, фокусировкой и диафрагмой, 12VDC/24VAC или PoE, выход на сервисный монитор, аудио вх/вых (G.711/8K), тревожный вх/вых, слот Micro SD (до 32ГБ), Onvif, IP66, -40..+50C (24В АС) | E10: 939 | F10: =ROUNDUP(E10-(Содержание!$H$4*E10),0) -> 939
B11: Внутренние купольные
C12: ZN-D1MTP | D12: HD камера день/ночь в купольном корпусе, разрешение 1,3МП (1280х1024), двойной поток (H.264, MJPEG), 1/2.8" Sony IMX122 CMOS, цв. 0,21 люкс (50 IRE), ч/б 0,06 люкс (50IRE), встроенный варифокальный объектив 3 - 9 мм, автодиафрагма P-iris, удаленное управление зумом, фокусировкой и диафрагмой, 12VDC/24VAC или PoE, выход на сервисный монитор, аудио вх/вых (G.711/8K), тревожный вх/вых, Onvif, -10..+50C | E12: 597 | F12: =ROUNDUP(E12-(Содержание!$H$4*E12),0) -> 597
C13: ZN-D1MTP-IR | D13: HD камера мех. день/ночь в купольном корпусе со встроенной ИК-подсветкой, разрешение 1,3МП (1280х1024), двойной поток (H.264, MJPEG), 1/2.8" Sony IMX122 CMOS, цв. 0,21 люкс (50 IRE), ч/б 0 люкс (с ИК-подсветкой), встроенный варифокальный объектив 3 - 9 мм, автодиафрагма P-iris, удаленное управление зумом, фокусировкой и диафрагмой, 12VDC/24VAC или PoE, выход на сервисный монитор, аудио вх/вых (G.711/8K), тревожный вх/вых, Onvif, -10..+50C | E13: 232 | F13: =ROUNDUP(E13-(Содержание!$H$4*E13),0) -> 232
C14: ZN-D2MTP-IR | D14: FullHD камера мех. день/ночь в купольном корпусе, разрешение 2МП (1920x1080), двойной поток (H.264, MJPEG), 1/2.8" Sony IMX122 CMOS, цв. 0,21 люкс (50 IRE), ч/б 0,06 люкс (50IRE), встроенный варифокальный объектив 3 - 9 мм, автодиафрагма P-iris, удаленное управление зумом, фокусировкой и диафрагмой, 12VDC/24VAC или PoE, выход на сервисный монитор, аудио вх/вых (G.711/8K), тревожный вх/вых, Onvif, -10..+50C | E14: 700 | F14: =ROUNDUP(E14-(Содержание!$H$4*E14),0) -> 700
B15: Уличные купольные
C16: ZN-DT1MTP | D16: HD антивандальная камера мех. день/ночь в купольном корпусе, разрешение 1,3МП (1280х1024), двойной поток (H.264, MJPEG), 1/2,5" прогрессивный CMOS сенсор, цв. 0,21 люкс (F1,2 50 IRE) ч/б 0,06 люкс (F1,2 50 IRE), встроенный варифокальный объектив 3 - 9 мм, автодиафрагма P-iris, удаленное управление зумом и фокусировкой, 12VDC/24VAC или PoE, выход на сервисный монитор, аудио вх/вых (G.711/8K), тревожный вх/вых, слот Micro SD (до 32ГБ), Onvif, IP66, -10ºC ~ 50ºC, с нагревателем (ZNA-HD2) -28,9ºC ~ 50ºC | E16: 715 | F16: =ROUNDUP(E16-(Содержание!$H$4*E16),0) -> 715
C17: ZN-DT1MTP-IR | D17: HD антивандальная камера мех. день/ночь в купольном корпусе со встроенной ИК-подсветкой, разрешение 1,3МП (1280х1024), двойной поток (H.264, MJPEG), 1/2,5" прогрессивный CMOS сенсор, цв. 0,21 люкс (F1,2 50 IRE) ч/б 0 люкс (с ИК-подсветкой), встроенный варифокальный объектив 3 - 9 мм, автодиафрагма P-iris, удаленное управление зумом и фокусировкой, 12VDC/24VAC или PoE, выход на сервисный монитор, аудио вх/вых (G.711/8K), тревожный вх/вых, , слот Micro SD (до 32ГБ), Onvif, IP66, -10ºC ~ 50ºC, с нагревателем (ZNA-HD2) -28,9ºC ~ 50ºC | E17: 751 | F17: =ROUNDUP(E17-(Содержание!$H$4*E17),0) -> 751
C18: ZN-DT2MTP | D18: FulHD антивандальная камера мех. день/ночь в купольном корпусе, разрешение 2МП (1920x1080), двойной поток (H.264, MJPEG), 1/2.8" Sony IMX122 CMOS, цв. 0,21 люкс (F1,2 50 IRE) ч/б 0,06 люкс (F1,2 50 IRE), встроенный варифокальный объектив 3 - 9 мм, автодиафрагма P-iris, удаленное управление зумом и фокусировкой, 12VDC/24VAC или PoE, выход на сервисный монитор, аудио вх/вых (G.711/8K), тревожный вх/вых, , слот Micro SD (до 32ГБ), Onvif, IP66, -10ºC ~ 50ºC, с нагревателем (ZNA-HD2) -28,9ºC ~ 50ºC | E18: 785 | F18: =ROUNDUP(E18-(Содержание!$H$4*E18),0) -> 785
C19: ZN-DT2MTP-IR | D19: FulHD антивандальная камера мех. день/ночь в купольном корпусе со встроенной ИК-подсветкой, разрешение 2МП (1920x1080), двойной поток (H.264, MJPEG), 1/2.8" Sony IMX122 CMOS, цв. 0,21 люкс (F1,2 50 IRE) ч/б 0 люкс (с ИК-подсветкой), встроенный варифокальный объектив 3 - 9 мм, автодиафрагма P-iris, удаленное управление зумом и фокусировкой, 12VDC/24VAC или PoE, выход на сервисный монитор, аудио вх/вых (G.711/8K), тревожный вх/вых, слот Micro SD (до 32ГБ), Onvif, IP66, -10ºC ~ 50ºC, с нагревателем (ZNA-HD2) -28,9ºC ~ 50ºC | E19: 818 | F19: =ROUNDUP(E19-(Содержание!$H$4*E19),0) -> 818
B20: Мини-серия, встроенный 5х AF объектив
C21: ZN-M2AF* | D21: FullHD мини-камера, мех. день/ночь, разрешение 2МП (1920x1080), двойной поток (H.264, MJPEG), 1/2.8" Sony IMX-036 CMOS, 0,24 люкс (F3.5 / 30IRE (цвет)), встроенный автофокусный объектив 5,0- 25 мм 51,3-11град.гор., удаленное управление зумом и фокусировкой, Onvif, PoE, выход на сервисный монитор, 51x48х63мм, -10..+50С | E21: 506 | F21: =ROUNDUP(E21-(Содержание!$H$4*E21),0) -> 506 | G21: Уточняйте наличие на складе
B22: Мини-серия
C23: ZN-MB243M | D23: FullHD уличная цилиндрическая мини-камера, мех. день/ночь, ИК-подсветка (18 светодиодов), разрешение 2МП (1920x1080), двойной поток (H.264, MJPEG), 1/2.8" Sony IMX-036 CMOS, 0,14 люкс (F2.0 / 30IRE (цвет)) встроенный объектив 4мм 84,4град. гор., Onvif, PoE, выход на сервисный монитор, Ø58x85мм(Д), длина кабелей 40см, IP66, от -20 до 50°C | E23: 402.9117647 | F23: =ROUNDUP(E23-(Содержание!$H$4*E23),0) -> 403
C24: ZN-MB260M | D24: FullHD уличная цилиндрическая мини-камера, мех. день/ночь, ИК-подсветка (18 светодиодов), разрешение 2МП (1920x1080), двойной поток (H.264, MJPEG), 1/2.8" Sony IMX-036 CMOS, 0,14 люкс (F2.0 / 30IRE (цвет)) встроенный объектив 6мм 53град. гор., Onvif, PoE, выход на сервисный монитор, Ø58x85мм(Д), длина кабелей 40см, IP66, от -20 до 50°C | E24: 402.9117647 | F24: =ROUNDUP(E24-(Содержание!$H$4*E24),0) -> 403
C25: ZN-MDI243M-IR | D25: FullHD внутренняя купольная мини-камера, мех. день/ночь, ИК-подсветка (2 светодиода), разрешение 2МП (1920x1080), двойной поток (H.264, MJPEG), 1/2.8" Sony IMX-036 CMOS, 0,63 люкс (F2.0 / 50IRE (цвет)), встроенный объектив 4,3мм 84,4град. гор., Onvif, PoE, выход на сервисный монитор, Ø130x76мм(В), IP66, от -10 до 40°C | E25: 369.5882353 | F25: =ROUNDUP(E25-(Содержание!$H$4*E25),0) -> 370
C26: ZN-MDI260M-IR | D26: FullHD внутренняя купольная мини-камера, мех. день/ночь, ИК-подсветка (2 светодиода), разрешение 2МП (1920x1080), двойной поток (H.264, MJPEG), 1/2.8" Sony IMX-036 CMOS, 0,63 люкс (F2.0 / 50IRE (цвет)), встроенный объектив 6мм 53,3град. гор., Onvif, PoE, выход на сервисный монитор, Ø130x76мм(В), IP66, от -10 до 40°C | E26: 369.5882353 | F26: =ROUNDUP(E26-(Содержание!$H$4*E26),0) -> 370
C27: ZN-MD221M | D27: FullHD уличная купольная мини-камера, эл. день/ночь, разрешение 2МП (1920x1080), двойной поток (H.264, MJPEG), 1/2.8" Sony IMX-036 CMOS, 0,14 люкс (F2.0 / 30IRE (цвет)) встроенный объектив 2,1мм 132,6град.гор., Onvif, PoE, выход на сервисный монитор, Ø110x67,5мм (В), IP66, от -30 до 50°C | E27: 415 | F27: =ROUNDUP(E27-(Содержание!$H$4*E27),0) -> 415 | G27: Цена снижена
C28: ZN-MD243M | D28: FullHD уличная купольная мини-камера, эл. день/ночь, разрешение 2МП (1920x1080), двойной поток (H.264, MJPEG), 1/2.8" Sony IMX-036 CMOS, 0,14 люкс (F2.0 / 30IRE (цвет)) встроенный объектив 4,3мм 71,45град.гор., Onvif, PoE, выход на сервисный монитор, Ø110x67,5мм (В), IP66, от -30 до 50°C | E28: 415 | F28: =ROUNDUP(E28-(Содержание!$H$4*E28),0) -> 415 | G28: Цена снижена
B29: Скоростные поворотные камеры
C30: ZN-P4NT50 | D30: PTZ Dome IP66 / IK10, 25 fps @ 2MP Full-HD, 1/2.8" CMOS, ICR, DWDR, 0.4 Lux F1.6 50 IRE, 0.03 Lux F1.6 50 IRE (n/b), 4.7 - 94mm, SD card slot, 24VAC / PoE+ | E30: 3416 | F30: =ROUNDUP(E30-(Содержание!$H$4*E30),0) -> 3416 | G30: Новая модель
C31: ZN-P4NT50L | D31: PTZ Dome IP66, 25 fps @ 2MP Full-HD, 1/2.8" CMOS, ICR, DWDR, IR-LEDs, 0.4 Lux F1.6 50 IRE, 0 Lux F1.6 50 IRE (n/b IR on), 4.7 - 94mm, SD card slot, 24VAC | E31: 4963 | F31: =ROUNDUP(E31-(Содержание!$H$4*E31),0) -> 4963 | G31: Новая модель
C32: ZN-PTZ220M-XT | D32: FullHD уличная купольная PTZ камера, эл. день/ночь, разрешение 2МП (1920х1080) (до 3 пользователей одновременно), двойной поток (H.264, MJPEG), 1/3" CMOS, цв. 1,7 люкс (F1,6 50 IRE) ч/б 0,3 люкс (F1,6, 50 IRE), объектив 20х 4.7 - 94.0 мм AF, удаленное управление зумом и фокусировкой, 128 предустановок, 4 маршрута, 8 режимов автосканирования, протоколы Pelco P/D, D-Max, GANZ и т.д., Onvif, 24VAC, BNC выход видео (настроечный), аудио вх/вых (G.711/8K), тревожный вх/вых, слот Micro SD (до 32ГБ), IP66, от -40 до +50°C | E32: 3118 | F32: =ROUNDUP(E32-(Содержание!$H$4*E32),0) -> 3118 | G32: Снята с производства
B34: Принадлежности
C35: ZNA-CA1 | D35: Адаптер для подвесной установки купольных уличных камер PixelPro (кроме мини-серии) | E35: 88 | F35: =ROUNDUP(E35-(Содержание!$H$4*E35),0) -> 88
C36: PMA2 | D36: Pole mount adapter for ZNA-WM2A | E36: 94 | F36: =ROUNDUP(E36-(Содержание!$H$4*E36),0) -> 94 | G36: Новая модель
C37: ZNA-HD2 | D37: Дополнительный нагреватель для купольных уличных камер PixelPro -MTP, до -29°C (кроме мини-серии) | E37: 59 | F37: =ROUNDUP(E37-(Содержание!$H$4*E37),0) -> 59
C38: ZNA-WM2A | D38: Адаптер для настенной установки купольных уличных камер серии PixelPro (кроме мини-серии) | E38: 165 | F38: =ROUNDUP(E38-(Содержание!$H$4*E38),0) -> 165 | G38: Цена снижена
C39: ZC-FM3 | D39: Адаптер для установки в подвесной потолок внутренних купольных камер PixelPro (кроме мини-серии) | E39: 88 | F39: =ROUNDUP(E39-(Содержание!$H$4*E39),0) -> 88
C40: ZC7-PM1 | D40: Адаптер для подвесной установки внутренних купольных камер PixelPro (кроме мини-серии) | E40: 45 | F40: =ROUNDUP(E40-(Содержание!$H$4*E40),0) -> 45
C41: ZC7-WM1 | D41: Адаптер для подвесной установки внутренних купольных камер PixelPro (кроме мини-серии) | E41: 103 | F41: =ROUNDUP(E41-(Содержание!$H$4*E41),0) -> 103
C42: ZNA-SDI | D42: Дымчатая полусфера для внутренних камер PixelPro (кроме мини-серии) | E42: 29 | F42: =ROUNDUP(E42-(Содержание!$H$4*E42),0) -> 29
C43: ZNA-MDPM1 | D43: Адаптер для подвесной установки уличных купольных камер PixelPro мини-серии | E43: 0 | F43: =ROUNDUP(E43-(Содержание!$H$4*E43),0) -> 0
C44: ZNA-WMB2 | D44: Адаптер для настенного монтажа ZN-PTZ220M-XT "гусиная шея" | E44: 448 | F44: =ROUNDUP(E44-(Содержание!$H$4*E44),0) -> 448
C45: ZNA-CMB2 | D45: Адаптер для потолочного монтажа ZN-PTZ220M-XT прямой | E45: 448 | F45: =ROUNDUP(E45-(Содержание!$H$4*E45),0) -> 448
C46: ZNA-POEExtender | D46: Инжектор PoE 56В 19,6Вт, питание 220В | E46: 62 | F46: Fixed price | G46: Цена снижена
B47: Сетевые видеорегистраторы
C48: NR4HL-V | D48: 4-канальный сетевой триплексный FullHD видеорегистратор, сжатие H.264, LINUX OS, HDMI, VGA 1920х1080, запись 100к/с 1080p, аудио вх(4xIP, 1x лин.), вых(4xIP, 1x лин.), трев. вх(4xIP+2), вых(4xIP+1 реле), до 2 SATA жёстких дисков по 4ТБ каждый, LAN, WAN, 4xLAN PoE питание камер, 2хUSB, RS-485, RS-232, eSATA, пульт ДУ, Watchdog, высота 1U, 2 БП, Android/iOS, работа с камерами PixelPro, ПО DMS Lite на 64 канала | E48: 912 | F48: =ROUNDUP(E48-(Содержание!$H$4*E48),0) -> 912 | G48: Новая модель
C49: NR8HL-V | D49: 8-канальный сетевой триплексный FullHD видеорегистратор, сжатие H.264, LINUX OS, HDMI, VGA 1920х1080, запись 200к/с 1080p, аудио вх(8xIP, 1x лин.), вых(8xIP, 1x лин.), трев. вх(8xIP+2), вых(8xIP+1 реле), до 2 SATA жёстких дисков по 4ТБ каждый, LAN, WAN, 8xLAN PoE питание камер, 2хUSB, RS-485, RS-232, eSATA, пульт ДУ, Watchdog, высота 1U, 2 БП, Android/iOS, работа с камерами PixelPro, ПО DMS Lite на 64 канала | E49: 1291 | F49: =ROUNDUP(E49-(Содержание!$H$4*E49),0) -> 1291 | G49: Нвоая модель
C50: NR8H | D50: 8-канальный сетевой триплексный FullHD видеорегистратор, сжатие H.264, LINUX OS, HDMI-выход 1920х1080, запись 200к/с 1080p, аудио вх(8xIP, 1x лин.), вых(8xIP, 1x лин.), трев. вх(8xIP+2), вых(8xIP+1 реле), до 5 SATA жёстких дисков по 4ТБ каждый, LAN, WAN, 8xLAN PoE питание камер, (2+1)хUSB, RS-485, RS-232, eSATA, пульт ДУ, Watchdog, высота 2U, 1 БП, Android/iOS, работа с камерами PixelPro, ПО DMS Lite на 64 канала | E50: 2060 | F50: =ROUNDUP(E50-(Содержание!$H$4*E50),0) -> 2060 | G50: Цена снижена
C51: NR16H | D51: 16-канальный сетевой триплексный FullHD видеорегистратор, сжатие H.264, LINUX OS, HDMI-выход 1920х1080, запись 400к/с 1080p, аудио вх(16xIP, 1x лин.), вых(16xIP, 1x лин.), трев. вх(16xIP+2), вых(16xIP+1 реле), до 5 SATA жёстких дисков по 4ТБ каждый, LAN, WAN, 8xLAN PoE встр. + 8xLAN PoE хаб для питания камер, (2+1)хUSB, RS-485, RS-232, eSATA, пульт ДУ, Watchdog, высота 2U, 2 БП, Android/iOS, работа с камерами PixelPro, ПО DMS Lite на 64 канала | E51: 2600 | F51: =ROUNDUP(E51-(Содержание!$H$4*E51),0) -> 2600 | G51: Цена снижена
B52: Принадлежности
C53: NR-RM1 | D53: Адаптер для монтажа NR4HL / NR8HL в 19" стойку | E53: 25 | F53: =ROUNDUP(E53-(Содержание!$H$4*E53),0) -> 25 | G53: Цена снижена
C54: NR-RM2 | D54: Адаптер для монтажа NR8H / NR16H в 19" стойку | E54: 25 | F54: =ROUNDUP(E54-(Содержание!$H$4*E54),0) -> 25 | G54: Цена снижена
C55: NR4PoE | D55: 4-х портовый коммутатор, каскадируемый до 4 уровней (см. схему подключения) | E55: 380 | F55: =ROUNDUP(E55-(Содержание!$H$4*E55),0) -> 380 | G55: Цена снижена
C56: NR16PoE-2 | D56: 8-ми портовый коммутатор, каскадируемый | E56: 535 | F56: =ROUNDUP(E56-(Содержание!$H$4*E56),0) -> 535 | G56: Новая модель
B57: Жесткие диски - 24/7
C58: Таблица совместимости камер PixelPro и регистраторов PixelMaster
C59: Список рекомендованных жестких дисков для Pixelmaster
C60: ZRS-HDD1000 | D60: S-ATA HDD 1TB 24/7 | E60: 152 | F60: Fixed price
C61: ZRS-HDD2000 | D61: S-ATA HDD 2TB 24/7 | E61: 183 | F61: Fixed price
C62: ZRS-HDD3000 | D62: S-ATA HDD 3TB 24/7 | E62: 216 | F62: Fixed price
C63: ZRS-HDD4000 | D63: S-ATA HDD 4TB 24/7 | E63: 246 | F63: Fixed price
A64: Серия PixelPro GXi с видеоаналитикой
B65: CS-крепление объектива
C66: ZN-NH22XE | D66: FullHD камера мех. день/ночь, прогрессивная 1/2,9" CMOS, 2МП 1920x1080@25 к/с, двойной поток (H.264, MJPEG), 0,5 люкс цвет, 0.001 люкс ч/б (DSS вкл) @F1.2, 50IRE, С/CS крепление, BNC выход видео (настроечный), аудио вх/вых (G.711/8K), экранное меню, Onvif, интерфейсы RS485/232, MicroSD (до 64ГБ) и USB, PoE/12VDC, 0..+50С, встроенная видеоаналитика (расширяемая лицензия) | E66: 788 | F66: =ROUNDUP(E66-(Содержание!$H$4*E66),0) -> 788
B67: Купольные камеры
C68: ZN-D212XE | D68: FullHD купольная фишай-камера эл. день/ночь, 1/2,7" CMOS, разрешение 2МП 1920x1080@25к/с, двойной поток (H.264, MJPEG, MPEG4), объектив 1,2мм F2.0, 180 град гор. 160град. верт., аудио вх./вых(G711), PoE, 12В DC 4Вт, Onvif, слот MicroSD (до 64ГБ), Ø144мм x 63,5мм(В), поверхностный монтаж, вес 360г, -10..+50C, встроенная видеоаналитика (расширяемая лицензия) | E68: 844 | F68: =ROUNDUP(E68-(Содержание!$H$4*E68),0) -> 844
C69: ZN1-F5FN8 | D69: FullHD купольная фишай-камера эл. день/ночь, 1/2,5" CMOS, разрешение 3МП 2048x1536@14к/с, двойной поток (H.264, MJPEG, MPEG4), объектив 1,2мм F2.0, 180ºx180º, ImmerVision, e-PTZ, аудио вх./вых(G711), PoE, 12В DC 4Вт, Onvif G, S, слот MicroSD (до 64ГБ), Ø144мм x 57,2мм(В), поверхностный монтаж, вес 360г, -10..+50C, встроенная видеоаналитика (расширяемая лицензия) | E69: 844 | F69: =ROUNDUP(E69-(Содержание!$H$4*E69),0) -> 844
C70: ZN-DT352VE | D70: UXGA купольная антивандальная камера эл. день/ночь, 1/3.2" 4:3 CMOS, разрешение 2МП UXGA (1600х1200@5к/с), двойной поток (H.264, MJPEG), встроенный вариофокальный объектив 3,3 - 12мм F1.6, 0,5 люкс, аудио вх./вых (G711), , PoE, 12В DC 500мA, слот MicroSD (до 8ГБ), 150ммØ x 113мм(В), вес 1170г, -10..+50C, встроенная видеоаналитика (расширяемая лицензия) | E70: 794.13 | F70: =ROUNDUP(E70-(Содержание!$H$4*E70),0) -> 795
C71: ZN-DN312XE-M | D71: FullHD купольная камера мех. день/ночь, 1/2,7" CMOS, разрешение 2МП 1920x1080@25к/с, двойной поток (H.264, MJPEG), объектив 3 - 9мм, цвет 0,5 люкс, ч/б 0,01 люкс, аудио вх./вых(G711), PoE/12VDC, Ø144мм x 121мм(В), вес 520г, 0..+50C, встроенная видеоаналитика (расширяемая лицензия) | E71: 840.48 | F71: =ROUNDUP(E71-(Содержание!$H$4*E71),0) -> 841
C72: ZN-DNT352XE-M | D72: FullHD уличная вандалозащищенная купольная камера мех. день/ночь, 1/2,9" CMOS, разрешение 2МП 1920x1080@25к/с, двойной поток (H.264, MJPEG), объектив 3 - 9мм, цвет 0,5 люкс, ч/б 0,01 люкс, аудио вх./вых(G711), , PoE/12VDC, слот MicroSD (до 64ГБ), Onvif, Ø155мм x 129мм(В), вес 1200г, -40..+50C при 12В (14Вт), встроенная видеоаналитика (расширяемая лицензия) | E72: 1090.77 | F72: =ROUNDUP(E72-(Содержание!$H$4*E72),0) -> 1091
C73: ZN-DNT352XE-MIR | D73: FullHD уличная вандалозащищенная купольная камера мех. день/ночь с ИК-подсветкой, 1/2,7" CMOS, разрешение 2МП 1920x1080@25к/с, двойной поток (H.264, MJPEG), объектив 3 - 9мм, цвет 0,5 люкс, ч/б 0 люкс (с ИК-подсветкой), аудио вх./вых(G711), PoE/12VDC, слот MicroSD (до 64ГБ), Onvif, Ø155мм x 129мм(В), вес 1200г, -40..+50C при 12В (16Вт), встроенная видеоаналитика (расширяемая лицензия) | E73: 960.99 | F73: =ROUNDUP(E73-(Содержание!$H$4*E73),0) -> 961
C74: ZN-DN332XE-MPD | D74: FullHD купольная PTZ камера мех. день/ночь, 1/2,7" CMOS, разрешение 2МП 1920x1080@25к/с, двойной поток (H.264, MJPEG), объектив 3 - 9мм с удаленным управлением, панорамирование 0-355°, наклон 0-80град., 16 предустановок, цвет 0,5 люкс, ч/б 0,001 люкс, аудио вх./вых(G711), BNC выход видео (настроечный), PoE/12В DC/24В АС, слот MicroSD (до 64ГБ), Onvif, Ø154мм x 130мм(В), вес 1200г, установка за потолок, 0..+50C, встроенная видеоаналитика (расширяемая лицензия) | E74: 1090.77 | F74: =ROUNDUP(E74-(Содержание!$H$4*E74),0) -> 1091
C75: ZN-DNT372XE-MPD | D75: FullHD уличная вандалозащищенная купольная PTZ камера мех. день/ночь, 1/2,7" CMOS, разрешение 2МП 1920x1080@30к/с, двойной поток (H.264, MJPEG), объектив 3 - 9мм с удаленным управлением, панорамирование 0-355°, наклон 0-80град., 16 предустановок, цвет 0,5 люкс, ч/б 0,001 люкс, аудио вх./вых(G711), PoE/12В DC/24В АС, слот MicroSD (до 64ГБ), Onvif, Ø154мм x 130мм(В), вес 1600г, -20..+50C при 12/24В, встроенная видеоаналитика (расширяемая лицензия) | E75: 1242 | F75: =ROUNDUP(E75-(Содержание!$H$4*E75),0) -> 1242
C76: ZN1-D4FN5 | D76: FullHD купольная камера эл. день/ночь, 1/2,9" CMOS, разрешение 2МП 1920x1080@25к/с, двойной поток (H.264, MJPEG), объектив 4мм, цвет 1 люкс, ч/б 0,01 люкс, аудио вх./вых(G711), PoE/12VDC, слот MicroSD (до 64ГБ), Onvif, Ø110мм x 95мм(В), вес 300г, 0..+40C, встроенная видеоаналитика (расширяемая лицензия) | E76: 538 | F76: =ROUNDUP(E76-(Содержание!$H$4*E76),0) -> 538
C77: ZN1-D4NFN6L | D77: FullHD купольная камера мех. день/ночь, 1/2,9" CMOS, разрешение 2МП 1920x1080@25к/с, двойной поток (H.264, MJPEG), объектив 4,3мм F2.0 74,4° гор., цвет 1 люкс, ч/б 0 люкс (с ИК-подсветкой), BNC выход видео (настроечный), PoE/12В, слот MicroSD (до 64ГБ), Onvif, Ø148x100(H)мм, вес 430г, 0..+40C, встроенная видеоаналитика (расширяемая лицензия) | E77: 534 | F77: =ROUNDUP(E77-(Содержание!$H$4*E77),0) -> 534
C78: ZN1-D4NMZ43L | D78: FullHD купольная камера мех. день/ночь, 1/2,9" CMOS, разрешение 2МП 1920x1080@25к/с, двойной поток (H.264, MJPEG), моторизованный объектив 3-9мм 133,5°-40,8° гор., цвет 1 люкс, ч/б 0 люкс (с ИК-подсветкой), BNC выход видео (настроечный), PoE/12В, слот MicroSD (до 64ГБ), Onvif, Ø148x100(H)мм, вес 470г, 0..+40C, встроенная видеоаналитика (расширяемая лицензия) | E78: 686 | F78: =ROUNDUP(E78-(Содержание!$H$4*E78),0) -> 686
C79: ZN1-M4FN3 | D79: FullHD купольная камера эл. день/ночь, 1/2.7" CMOS, разрешение 2МП 1920x1080@25к/с, двойной поток (H.264, MJPEG), объектив 2,8мм F2.0 110° гор., цвет 1 люкс, ч/б 0,001 люкс, DWDR, только PoE, слот MicroSD (до 64ГБ), Onvif, Ø106мм x 56мм(В), вес 270г, 0..+40C, IK09, встроенная видеоаналитика (расширяемая лицензия) | E79: 438 | F79: =ROUNDUP(E79-(Содержание!$H$4*E79),0) -> 438
B80: Кубический корпус
C81: ZN1-Q3FN2 | D81: HD куб-камера эл. день/ночь, 1/4" CMOS, разрешение 1МП 1280x720@25к/с, двойной поток (H.264, MJPEG), объектив 2,7мм F2.0 91° гор., цвет 0,8 люкс, ч/б 0,1 люкс, DWDR, аудио вх./вых(G711), ИК датчик движения, встроенные микрофон и динамик, WiFi, 12В DC (без PoE), слот MicroSD (до 64ГБ), Onvif, 76x143x92мм, вес 142г, 0..+40C, встроенная видеоаналитика (расширяемая лицензия) | E81: 411 | F81: =ROUNDUP(E81-(Содержание!$H$4*E81),0) -> 411
B82: Цилиндрический корпус
C83: ZN-BT662XE-MIR | D83: FullHD камера мех. день/ночь, 1/2,7" CMOS, 2МП FullHD разрешение 1920x1080@25к/с, двойной поток (H.264, MJPEG), объектив 3 - 9мм F1.2, удаленное управление зумом и фокусировкой, 1 люкс цвет 0 люкс ч/б (с ИК-пдсветкой), аудио вх./вых(G711), BNC выход видео (настроечный), PoE/12VDC, вес 1.5кг, встроенная ИК-подсветка до 25м, -40..+50C 12В, IP66, встроенная видеоаналитика (расширяемая лицензия) | E83: 1165 | F83: =ROUNDUP(E83-(Содержание!$H$4*E83),0) -> 1165
C84: ZN1-B4NVD43 | D84: FullHD камера мех. день/ночь, 1/2,9" CMOS, 2МП FullHD разрешение 1920x1080@25к/с, двойной поток (H.264, MJPEG), объектив 3 - 9мм F1.2 98,2°-37,4° гор., 1 люкс цвет 0 люкс ч/б (с ИК-подсветкой, 12 светодиодов), трев.вх./вых, BNC выход видео (настроечный), PoE/12VDC, вес 860г, встроенная ИК-подсветка до 25м, -20..+50C РоЕ/12В, IP66, встроенная видеоаналитика (расширяемая лицензия) | E84: 748 | F84: =ROUNDUP(E84-(Содержание!$H$4*E84),0) -> 748
C85: ZN1-B4NMZ43 | D85: FullHD камера мех. день/ночь, 1/2,9" CMOS, 2МП FullHD разрешение 1920x1080@25к/с, двойной поток (H.264, MJPEG), моторизованный объектив 3-9мм 133,5°-40,8° гор., 0,5 люкс цвет 0 люкс ч/б (с ИК-подсветкой, 16 светодиодов), трев.вх./вых, BNC выход видео (настроечный), PoE/12VDC, вес 870г, встроенная ИК-подсветка до 25м, -20..+50C РоЕ/12В, IP66, встроенная видеоаналитика (расширяемая лицензия) | E85: 810 | F85: =ROUNDUP(E85-(Содержание!$H$4*E85),0) -> 810
B86: Pinhole камеры
C87: ZN1-V4FN3 | D87: FullHD пинхол-камера эл. день/ночь, 1/3" CMOS, 2МП FullHD разрешение 1920x1080@25к/с, двойной поток (H.264, MJPEG), объектив 2.8мм F2.0 82° гор., 1 люкс цвет 0,007 люкс ч/б (DSS вкл), аудио вх./вых(G711), PoE/12VDC, вес эл. блока 225г, камеры 250г, -10..+40C, длина кабеля 6,1м, встроенная видеоаналитика (расширяемая лицензия) | E87: 739 | F87: =ROUNDUP(E87-(Содержание!$H$4*E87),0) -> 739
B88: Применение | C88: ZN1-V4FN4 | D88: FullHD пинхол-камера эл. день/ночь, 1/3" CMOS, 2МП FullHD разрешение 1920x1080@25к/с, двойной поток (H.264, MJPEG), объектив 3.7мм F2.5 63° гор., 1,4 люкс цвет 0,01 люкс ч/б (DSS вкл), аудио вх./вых(G711), PoE/12VDC, вес эл. блока 225г, камеры 250г, -10..+40C, длина кабеля 6,1м, встроенная видеоаналитика (расширяемая лицензия) | E88: 739 | F88: =ROUNDUP(E88-(Содержание!$H$4*E88),0) -> 739
B89: Скоростные поворотные камеры
C90: ZN-PTZ202XE | D90: FullHD купольная PTZ камера мех. день/ночь, 1/3" CMOS, разрешение 2МП 1920x1080@25к/с, двойной поток (H.264, MJPEG), объектив 4,45-80мм 20х опт. зум, панорамирование 360град., наклон -5-185град., 255 предустановок, 6 туров, цвет 1,5 (0,02) люкс, ч/б 0,1 (0,01)люкс, аудио вх./вых(G711), трев. вх/вых, PoE+/24В АС, слот MicroSD (до 64ГБ), Onvif, Ø180мм x 240мм(В), вес 2100г, 0..+50C, встроенная видеоаналитика слежения (расширяемая лицензия) | E90: 3594 | F90: =ROUNDUP(E90-(Содержание!$H$4*E90),0) -> 3594
C92: ZN-PTZ202XE-XT | D92: FullHD уличная купольная PTZ камера мех. день/ночь, 1/3" CMOS, разрешение 2МП 1920x1080@25к/с, двойной поток (H.264, MJPEG), объектив 4,45-89мм 20х опт. зум, панорамирование 360град., наклон -5-185град., 255 предустановок, 6 туров, цвет 1,5 (0,02) люкс, ч/б 0,1 (0,01)люкс, аудио вх./вых(G711), трев. вх/вых, PoE+/24В АС, слот MicroSD (до 64ГБ), Onvif, Ø232мм x 296мм(В), вес 4600г, -40..+50C 24В, встроенная видеоаналитика слежения (расширяемая лицензия) | E92: 3971 | F92: =ROUNDUP(E92-(Содержание!$H$4*E92),0) -> 3971
A93: IP-видеосерверы
C95: ZS1-1DS | D95: 1-канальный H.264, MJPEG двухпотоковый видеоэнкодер, 1хBNC видео вх/вых, разрешение D1, 2CIF, CIF, QCIF, 25к/с, 2x цифровые вх/вых, 1x аудио вх/вых (G.711), 485/422, RS-232C, USB2.0, слот SD card, 12В пост./240мА или PoE, 10/100Base-T, металлический корпус, (ШxВxГ) 103x38x141мм, 385г | E95: 555 | F95: =ROUNDUP(E95-(Содержание!$H$4*E95),0) -> 555
C96: ZS1-4DS | D96: 4-канальный H.264, MJPEG двухпотоковый видеоэнкодер, 4x BNC видео вх/вых., разрешение D1, 4CIF, VGA, CIF, QVGA, QCIF, 25к/с, 4x цифровые вх/вых, 4x аудио вх 1х вых(G.711), RS-485/422, RS-232C, слот SD card, 12В пост./1100мА, 10/100 Base-T, металлически корпус, (ШxВxГ), 137x38x244мм,780г | E96: 1277 | F96: =ROUNDUP(E96-(Содержание!$H$4*E96),0) -> 1277
C97: ZA-NVE12K | D97: 19" кассета для 3 карт-энкодеров ZN-RS4012VE (12 каналов) (HotSwap), 1U, с блоком питания для карт (85~264VAC/43~63 Гц/2 A), (ШxВxГ) 482x44x286 мм, 1,8 кг без карт (370 г/карта) | E97: 969 | F97: =ROUNDUP(E97-(Содержание!$H$4*E97),0) -> 969
C98: ZA-NVE40K | D98: 19" кассета для 10 карт-энкодеров ZN-RS4040VE (40 каналов) (HotSwap), 4U, с блоком питания для карт (90~264VAC/43~63 Гц/2 A), (ШxВxГ) 482x177x325мм, 6,9 кг без карт (380 г/карта) | E98: 2992 | F98: =ROUNDUP(E98-(Содержание!$H$4*E98),0) -> 2992
C99: ZS1-4DB1 | D99: 4-канальная H.264, MPEG4, MJPEG двухпотоковая карта-видеоэнкодер, 4 BNC видео входа, разрешение D1, 2CIF, CIF, QCIF, 100 к/с, 4 цифровые вх/ 4 вых., 4 аудио вх./ 1аудио вых. (G.711), RS-485 4шт, 12VDC/845 мА, 10/100Base-T, (ШxВ) 241x125 мм, 370 г, встроенная видеоаналитика (расширяемая), Onvif, для работы в корпусе ZA-NVE12K | E99: 1173 | F99: =ROUNDUP(E99-(Содержание!$H$4*E99),0) -> 1173
C100: ZS1-4DB2 | D100: 4-канальная H.264, MPEG4, MJPEG двухпотоковая карта-видеоэнкодер, 4 BNC видео входа, разрешение D1, 2CIF, CIF, QCIF, 100 к/с, 4 цифровые вх/ 4 вых., 4 аудио вх./ 1аудио вых. (G.711), RS-485 4шт, 12VDC/845 мА, 10/100Base-T, (ШxВ) 100x220 мм, 240г, встроенная видеоаналитика (расширяемая), Onvif, для работы в корпусе ZA-NVE40K | E100: 1173 | F100: =ROUNDUP(E100-(Содержание!$H$4*E100),0) -> 1173
A101: Лицензии видеоаналитики для GXi оборудования
B102: Лицензии, поставляемые в комплекте с оборудованием
C103: ZNS-PRES1 | D103: 1 зона детектирования, определение вмешательства, устранение дрожания камеры, фильтр присутствия
C104: ZNS-PRES | D104: 40 зон детектирования, определение вмешательства, устранение дрожания камеры, фильтр присутствия
B105: Расширенные лицензии
C106: ZNS-COUNT | D106: 40 зон детектирования, определение вмешательства, счётчики на экране, подсчёт пересечений линии | E106: 162 | F106: =ROUNDUP(E106-(Содержание!$H$4*E106),0) -> 162 | G106: Цена снижена
C107: ZNS-ACCESS | D107: 40 зон детектирования, фильтр несоблюдения дистанции, счётчики на экране, подсчёт пересечений линии) | E107: 193 | F107: =ROUNDUP(E107-(Содержание!$H$4*E107),0) -> 193 | G107: Цена снижена
C108: ZNS-DETECT | D108: 40 зон детектирования, определение вмешательства, уменьшение дрожания камеры, слежение за объектом, фильтр присутствия, фильтр класса и скорости, фильтр направления и задержки в зоне | E108: 193 | F108: =ROUNDUP(E108-(Содержание!$H$4*E108),0) -> 193 | G108: Цена снижена
C109: ZNS-FOLLOW | D109: Определение вмешательства, уменьшение дрожания камеры, слежение за объектом, автослежение для поворотной камеры | E109: 293 | F109: =ROUNDUP(E109-(Содержание!$H$4*E109),0) -> 293 | G109: Цена снижена
C110: ZNS-SURV | D110: 40 зон детектирования, определение вмешательства, уменьшение дрожания камеры, слежение за объектом, фильтр оставленных/удалённых объектов, фильтр класса и скорости, фильтр несоблюдения дистанции, счётчики на экране, метаданные | E110: 262 | F110: =ROUNDUP(E110-(Содержание!$H$4*E110),0) -> 262 | G110: Цена снижена
C111: ZNS-PRO | D111: 40 зон детектирования, определение вмешательства, уменьшение дрожания камеры, слежение за объектом, фильтр присутствия, фильтр оставленных/удалённых объектов, фильтр класса и скорости, фильтр несоблюдения дистанции, счётчики на экране, метаданные, слежение за людьми, подсчёт пересечений линии | E111: 385 | F111: =ROUNDUP(E111-(Содержание!$H$4*E111),0) -> 385 | G111: Цена снижена
C112: ZNS-ADVANCEDIP | D112: 40 зон детектирования, определение вмешательства, уменьшение дрожания камеры, слежение за объектом, фильтр оставленных/удалённых объектов, фильтр класса и скорости, фильтр несоблюдения дистанции, счётчики на экране, метаданные,счетчик | E112: 323 | F112: =ROUNDUP(E112-(Содержание!$H$4*E112),0) -> 323 | G112: Цена снижена
C113: ZNS-TRACK | D113: 40 зон детектирования, определение вмешательства, уменьшение дрожания камеры, слежение за объектом, фильтр присутствия, фильтр оставленных/удалённых объектов, фильтр класса и скорости, фильтр несоблюдения дистанции, счётчики на экране, метаданные, автослежение для поворотной камеры | E113: 539 | F113: =ROUNDUP(E113-(Содержание!$H$4*E113),0) -> 539 | G113: Цена снижена
C114: Таблица совместимоси лицензий и оборудования
A115: Принадлежности для GXi оборудования
C116: ZNA-POEExtender | D116: Инжектор PoE 56В 19,6Вт, питание 220В | E116: 62 | F116: Fixed price | G116: Цена снижена
C117: ZCA-220-3.0A | D117: Блок питания для внутренней установки, 24 VAC, 3.0 A | E117: 104 | F117: =ROUNDUP(E117-(Содержание!$H$4*E117),0) -> 104 | G117: Цена выросла
C118: ZCA-PSU220 | D118: Уличный блок питания (IP66) 24 VAC, 3.1 A | E118: 330 | F118: =ROUNDUP(E118-(Содержание!$H$4*E118),0) -> 330 | G118: Цена снижена
B119: ZN-DN312XE-M / ZN-DNT352XE-M
C120: WMB-3000 | D120: Стенной кронштейн | E120: 92 | F120: =ROUNDUP(E120-(Содержание!$H$4*E120),0) -> 92
C121: CMB-3000 | D121: Потолочный кронштейн | E121: 117 | F121: =ROUNDUP(E121-(Содержание!$H$4*E121),0) -> 117
C122: CMA-3000 | D122: Адаптер для углового крепления | E122: 117 | F122: =ROUNDUP(E122-(Содержание!$H$4*E122),0) -> 117
C123: PMA-3000 | D123: Адаптер для крепления на столб | E123: 117 | F123: =ROUNDUP(E123-(Содержание!$H$4*E123),0) -> 117
C124: GBP-35XX | D124: Кронштейн для клеммной коробки | E124: 29 | F124: =ROUNDUP(E124-(Содержание!$H$4*E124),0) -> 29
C125: SD-35XX | D125: Дымчатая полусфера | E125: 15 | F125: =ROUNDUP(E125-(Содержание!$H$4*E125),0) -> 15
B126: ZN-DN312XE
C127: FMB-3102 | D127: Кронштейн для монтажа заподлицо | E127: 185 | F127: =ROUNDUP(E127-(Содержание!$H$4*E127),0) -> 185
B128: ZN-DNT352XE
C129: FMB-3502 | D129: Кронштейн для монтажа заподлицо | E129: 185 | F129: =ROUNDUP(E129-(Содержание!$H$4*E129),0) -> 185
B130: ZN-PTZ202XE-XT
C131: WMB-4600 | D131: Стенной кронштейн | E131: 262 | F131: =ROUNDUP(E131-(Содержание!$H$4*E131),0) -> 262
C132: CMB-4600 | D132: Потолочный кронштейн | E132: 262 | F132: =ROUNDUP(E132-(Содержание!$H$4*E132),0) -> 262
C133: CMA-4600 | D133: Адаптер для углового крепления | E133: 262 | F133: =ROUNDUP(E133-(Содержание!$H$4*E133),0) -> 262
C134: PMA-4600 | D134: Адаптер для крепления на столб | E134: 200 | F134: =ROUNDUP(E134-(Содержание!$H$4*E134),0) -> 200
B135: ZN-DNT372XE
C136: WMB-3000S | D136: Стенной кронштейн | E136: 169 | F136: =ROUNDUP(E136-(Содержание!$H$4*E136),0) -> 169
C137: CMB-3000S | D137: Потолочный кронштейн | E137: 185 | F137: =ROUNDUP(E137-(Содержание!$H$4*E137),0) -> 185
C138: FMB-3702 | D138: Кронштейн для монтажа заподлицо | E138: 231 | F138: =ROUNDUP(E138-(Содержание!$H$4*E138),0) -> 231
B139: ZN-DN332XE
C140: FMB-3302 | D140: Кронштейн для монтажа заподлицо | E140: 185 | F140: =ROUNDUP(E140-(Содержание!$H$4*E140),0) -> 185
B141: ZN-BT662XE
C142: PMA-6600 | D142: Адаптер для крепления на столб | E142: 169 | F142: =ROUNDUP(E142-(Содержание!$H$4*E142),0) -> 169
C143: JBK-6600 | D143: Адаптер распределительной коробки | E143: 123 | F143: =ROUNDUP(E143-(Содержание!$H$4*E143),0) -> 123
B144: ZN1-D4FN
C145: WMB-3200 | D145: Стенной кронштейн | E145: 62 | F145: =ROUNDUP(E145-(Содержание!$H$4*E145),0) -> 62
C146: CMB-3200 | D146: Потолочный кронштейн | E146: 200 | F146: =ROUNDUP(E146-(Содержание!$H$4*E146),0) -> 200
B147: ZN1-M4FN3
C148: SGB-300 | D148: Круглая площадка для монтажа на подвесной потолок | E148: 77 | F148: =ROUNDUP(E148-(Содержание!$H$4*E148),0) -> 77
C149: DGB-300 | D149: Круглая площадка для монтажа на подвесной потолок увел. диаметра | E149: 77 | F149: =ROUNDUP(E149-(Содержание!$H$4*E149),0) -> 77
C150: PMC-300 | D150: Адаптер для монтажа на прямой потолочный кронштейн | E150: 77 | F150: =ROUNDUP(E150-(Содержание!$H$4*E150),0) -> 77
A151: Ganz GenSTAR
B152: CS- камеры
C153: ZN8-CAN | D153: 4МП IP камера мех. день/ночь, матрица 1/3" CMOS, 1-й поток 2688x1520, 2560x1440@20к/с / 2304x1296, 1920x1080@25к/с, 2-й поток до 1280x720@25к/с, H.264/MJPEG, BNC, 2D/3D DNR, DWDR, CS крепление (DC/ручная), цвет 0,01люкс, ч/б 0,005люкс, DWDR, 2D/3D DNR, трев. вх/вых, аудио вх/вых, слот MicroSD (до 64ГБ), ROI, коридорный режим, 12В DC / 24В AC / PoE 3Вт макс., -10°C - 50°C, Onvif | E153: 370 | F153: =ROUNDUP(E153-(Содержание!$H$4*E153),0) -> 370
B154: Уличные цилиндрические камеры
C155: ZN8-BANVF59 | D155: 4МП уличная цилиндрическая IP камера мех. день/ночь со встроенной ИК-подсветкой 25м, матрица 1/3" CMOS, разрешение 2688x1520@15к/с / 2304x1296@20к/с / FullHD 1920x1080@25к/с, двойной поток H.264/MJPEG, 3D DNR, DWDR, объектив 3-12мм 87° - 35° гор., цвет 0,01люкс, ч/б 0люкс (с ИК-подсветкой), ROI, слот MicroSD (до 64ГБ), 12В DC / PoE 5.5Вт макс., Onvif, IP66, -40°C - 60°C, 264.5мм(В)x80.3мм(Ø) | E155: 326 | F155: =ROUNDUP(E155-(Содержание!$H$4*E155),0) -> 326
C156: ZN8-NANFN4 | D156: 4МП уличная цилиндрическая IP камера мех. день/ночь со встроенной ИК-подсветкой 30м, матрица 1/3" CMOS, разрешение 2688x1520@15к/с / 2304x1296@20к/с / FullHD 1920x1080@25к/с, двойной поток H.264/MJPEG, 2D/3D DNR, DWDR, объектив 3,6мм 75° гор., цвет 0,01люкс, ч/б 0люкс (с ИК-подсветкой), ROI, 12В DC / PoE 5Вт макс., Onvif, IP66, -40°C - 55°C, 169(Г)×70(В)×60(Ш) | E156: 200 | F156: =ROUNDUP(E156-(Содержание!$H$4*E156),0) -> 200
C157: ZN8-N4NFN4 | D157: 2 Мегапиксельная цилиндрическая камера, 1,3" CMOS, 3.6мм, TDN, DNR, DWDR, IR подсветка 20-30м, IP66, 12vdc/POE
C158: ZN8-B4NVF56 | D158: 2 Мегапиксельная цилиндрическая камера, 1,3" CMOS, 2.8 ~ 12мм, TDN, DNR, DWDR, IR подсветка 20-30м, IP66, 12vdc/POE
B159: Рыбий глаз
C160: ZN8-F7NTFN10L | D160: 6МП купольная фишай IP камера мех. день/ночь с ИК-подсветкой до 10м, 1/1.8" CMOS, разрешение 3072х2048@15к/с / 1920x1920 / 1440ч1440 / 1920x1080@25к/с / DEWARP 1х полный кадр + 3/5/7 регионов, 180° панорама, двойной поток (H.264, MJPEG), 2D/3D DNR, объектив 1,6мм F2.0 180°гор. 180°верт., аудио вх./вых, PoE / 12В DC 8Вт, слот MicroSD (до 64ГБ), Ø160мм x 47мм(В), 700г, Onvif, IP66, -30..+50C | E160: 700 | F160: =ROUNDUP(E160-(Содержание!$H$4*E160),0) -> 700
B161: Купольные скоростные поворотные камеры
C162: ZN8-P4NTAF60L | D162: FullHD уличная купольная IP PTZ камера, мех. день/ночь, разрешение 2МП, ИК-подсветка до 100м, двойной поток (H.264, MJPEG), 1/2.8" CMOS, цв.0.02 люкс, ч/б 0,002 люкс, ч/б ИК вкл. 0 люкс, объектив 4.7мм - 103мм 58.16°-2.9° 22x оптический зум, 8 светодиодов ИК-подсветки с автоподстройкой яркости, 3D DNR, DWDR, 255 предустановок, 12 туров, автосканирование, Pelco P/D, 7х трев.вх 2х трев.вых.,BNC выход видео (настроечный), аудио вх/вых, слот Micro SD (до 64ГБ), Onvif, 24В AC 40Вт, IP66, от -40 до +60°C, 332ммx 205мм 4.3кг БП 24В 3А в комплекте, кронштейн для крепления на стену поставляется в комплекте | E162: 1679 | F162: =ROUNDUP(E162-(Содержание!$H$4*E162),0) -> 1679
B163: Купольные стациолнарные камеры
C164: ZN8-MANTFN4L | D164: 4МП уличная купольная IP камера мех. день/ночь со встроенной ИК-подсветкой 7м, матрица 1/3" CMOS, разрешение 2688x1520@15к/с / 2304x1296@20к/с / FullHD 1920x1080@25к/с, двойной поток H.264/MJPEG, 2D/3D DNR, DWDR, объектив 3,6мм 75° гор., цвет 0,01люкс, ч/б 0люкс (с ИК-подсветкой), ROI, 12В DC / PoE 5Вт макс., Onvif, IP65, -40°C - 60°C, 53мм(В)x100мм(Ø) | E164: 195 | F164: =ROUNDUP(E164-(Содержание!$H$4*E164),0) -> 195
C165: ZN8-DANTVF59L | D165: 4МП уличная купольная IP камера мех. день/ночь со встроенной ИК-подсветкой 20м, матрица 1/3" CMOS, разрешение 2688x1520@15к/с / 2304x1296@20к/с / FullHD 1920x1080@25к/с, двойной поток H.264/MJPEG, 3D DNR, DWDR, объектив 3-12мм 87° - 35° гор., цвет 0,2люкс, ч/б 0люкс (с ИК-подсветкой), слот MicroSD (до 64ГБ), ROI, 12В DC / PoE 7.5Вт макс., Onvif, IP66, -40°C - 60°C, 112мм(В)x130мм(Ø) | E165: 312 | F165: =ROUNDUP(E165-(Содержание!$H$4*E165),0) -> 312
C166: ZN8-M4NTFN4L | D166: 2МП уличная антивандальная купольная камера, 1/3“ CMOS, 3.6mm, TDN, DNR, DWDR, IR подсветка до 10м, IP65, 12vdc/POE
B167: Сетевые видеорегистраторы
C168: NR8-4M71 | D168: 4-канальный сетевой триплексный видеорегистратор, сжатие H.264, LINUX OS, запись 6MP/5MP/4MP/3MP 15к/с; 1080P 25к/с на канал, аудио вх/вых, трев. вх/вых 2/2, 1xSATA до 4ТБ, WAN, 4xLAN PoE питание камер до 9Вт на порт, 2хUSB, HDMI, VGA, Android/iOS, работа с камерами Onvif, ПО для ПК в комплекте. 255 x 47.5 x 235мм, 930г | E168: 227 | F168: =ROUNDUP(E168-(Содержание!$H$4*E168),0) -> 227
C169: NR8-8M71 | D169: 8-канальный сетевой триплексный видеорегистратор, сжатие H.264, LINUX OS, запись 6MP/5MP/4MP/3MP 15к/с; 1080P 25к/с на канал, аудио вх/вых, трев. вх/вых 2/2, 1xSATA до 4ТБ, WAN, 8xLAN PoE питание камер до 15Вт на порт, 2хUSB, HDMI, VGA, Android/iOS, работа с камерами Onvif, ПО для ПК в комплекте. 372 x 44.5 x 311мм, 2.8кг | E169: 300 | F169: =ROUNDUP(E169-(Содержание!$H$4*E169),0) -> 300
C170: NR8-8M72 | D170: 8-канальный сетевой триплексный видеорегистратор, сжатие H.264, LINUX OS, запись 6MP/5MP/4MP/3MP 15к/с; 1080P 25к/с на канал, аудио вх/вых, трев. вх/вых 2/2, 2xSATA до 4ТБ, WAN, 8xLAN PoE питание камер до 15Вт на порт, 2хUSB, HDMI, VGA, Android/iOS, работа с камерами Onvif, ПО для ПК в комплекте. 372 x 44.5 x 311мм, 2.8кг | E170: 400 | F170: =ROUNDUP(E170-(Содержание!$H$4*E170),0) -> 400
C171: NR8-16M74 | D171: 16-канальный сетевой триплексный видеорегистратор, сжатие H.264, LINUX OS, запись 6MP/5MP/4MP/3MP 15к/с; 1080P 25к/с на канал, аудио вх/вых, трев. вх/вых 2/2, до 4 SATA жёстких дисков по 4ТБ каждый, WAN, 16xLAN PoE питание камер до 10Вт на порт, 3хUSB, HDMI, VGA, Android/iOS, работа с камерами Onvif, ПО для ПК в комплекте. 440 x 67 x 376мм, 4кг | E171: 560 | F171: =ROUNDUP(E171-(Содержание!$H$4*E171),0) -> 560
C172: NR8-32M78-0 | D172: 32-канальный сетевой триплексный видеорегистратор, сжатие H.264, LINUX OS, запись 6MP/5MP/4MP/3MP 15к/с; 1080P 25к/с на канал, аудио вх/вых, трев. вх/вых 1/1, до 8 SATA жёстких дисков по 4ТБ каждый, 1xGigabit LAN, 1x100Mbit LAN, 2хUSB, RS-485, HDMI, VGA, Android/iOS, работа с камерами Onvif, ПО для ПК в комплекте. 440 x 89.9 x 435мм, 7.2кг | E172: 763 | F172: =ROUNDUP(E172-(Содержание!$H$4*E172),0) -> 763
C173: Примечание | D173: В регистраторах серии NR8 рекомендуется использовать жесткие диски из специальных серий для систем видеонаблюдения: Seagate SV35 и Western Digital AV-GP
B174: Принадлежности
C175: ZA8-CBK625 | D175: Адаптер для крепления купольной камеры на потолочный кронштейн. Заменяет стандартное основание камеры ZN8-DANTVF59L | E175: 45 | F175: =ROUNDUP(E175-(Содержание!$H$4*E175),0) -> 45
C176: ZA8-CBK624 | D176: Стенной Г-образный кронштейн для купольной камеры ZN8-DANTVF59L | E176: 120 | F176: =ROUNDUP(E176-(Содержание!$H$4*E176),0) -> 120
C177: ZA8-CBK626 | D177: Адаптер для крепления кронштейна на угол, совместим с ZA8-CBK624 | E177: 75 | F177: =ROUNDUP(E177-(Содержание!$H$4*E177),0) -> 75
C178: ZA8-CBK627 | D178: Адаптер для крепления кронштейна на столб | E178: 89 | F178: =ROUNDUP(E178-(Содержание!$H$4*E178),0) -> 89
C179: ZA8-CBK623 | D179: Адаптер для крепления купольнйо камеры на потолок, совместим с ZN8-DANTVF59L | E179: 89 | F179: =ROUNDUP(E179-(Содержание!$H$4*E179),0) -> 89
C180: ZA8-CBK633 | D180: Коммутационная коробка круглая для купольных и цилиндрических камер, совместима с ZA8-CBK624, ZN8-BANVF59, ZN8-NANFN4, ZN8-DANTVF59L | E180: 105 | F180: =ROUNDUP(E180-(Содержание!$H$4*E180),0) -> 105
C181: ZA8-CBK634 | D181: Коммутационная коробка для ZN8-MANTFN4L | E181: 45 | F181: =ROUNDUP(E181-(Содержание!$H$4*E181),0) -> 45
C182: ZA8-CBK636 | D182: Стенной кронштейн для фишай-камеры ZN8-F7NTFN10L | E182: 105 | F182: =ROUNDUP(E182-(Содержание!$H$4*E182),0) -> 105
C183: ZA8-CBK637 | D183: Потолочный кронштейн для фишай-камеры ZN8-F7NTFN10L | E183: 89 | F183: =ROUNDUP(E183-(Содержание!$H$4*E183),0) -> 89
C184: ZA8-BK604 | D184: Адаптер для крепления кронштейна PTZ на столб | E184: 314 | F184: =ROUNDUP(E184-(Содержание!$H$4*E184),0) -> 314
C185: ZA8-BK605 | D185: Адаптер для крепления кронштейна PTZ на угол | E185: 240 | F185: =ROUNDUP(E185-(Содержание!$H$4*E185),0) -> 240
C186: ZA8-BK607B | D186: Потолочный кронштейн для ZN8-P4NTAF60L. | E186: 60 | F186: =ROUNDUP(E186-(Содержание!$H$4*E186),0) -> 60
B187: Жесткие диски - 24/7
C188: ZRS-HDD1000 | D188: S-ATA HDD 1TB 24/7 | E188: 152 | F188: Fixed price
C189: ZRS-HDD2000 | D189: S-ATA HDD 2TB 24/7 | E189: 183 | F189: Fixed price
C190: ZRS-HDD3000 | D190: S-ATA HDD 3TB 24/7 | E190: 216 | F190: Fixed price
C191: ZRS-HDD4000 | D191: S-ATA HDD 4TB 24/7 | E191: 246 | F191: Fixed price
C194: ***новые позиции выделены красным
C195: ***снижение цены выделено синим

Sheet Аналоговые камеры и DVR
A1: Аналоговые камеры и DVR / GANZ кожухи
C4: Модель | D4: Описание | E4: Розница, USD | F4: Моя цена | G4: Комментарии
B5: CS- камеры
B6: GX5 - технология сверхвысокой чувствительности
C7: ZC-YX270P | D7: 1/3" CCD, цветная телекамера эл. день/ночь, 700 TVL, 0.0003 lux (colour) / 0.00003 lux (b/w) F1.2 / 30IRE / Sens-up, DNR, DWDR, BLC, HLC, 16x digital zoom, DC-Iris, 12/24VDC, 108.4мм x 46мм x 60мм | E7: 210 | F7: =ROUNDUP(E7-(Содержание!$H$4*E7),0) -> 210 | G7: Цена снижена
C8: ZC-YX270PE* | D8: 1/3" CCD, цветная телекамера эл. день/ночь, 700 TVL, 0.0003 lux (colour) / 0.00003 lux (b/w) F1.2 / 30IRE / Sens-up, DNR, DWDR, BLC, HLC, 16x digital zoom, DC-Iris, 230VAC, 108.4мм x 46мм x 60мм | E8: 250 | F8: =ROUNDUP(E8-(Содержание!$H$4*E8),0) -> 250 | G8: Уточняйте наличие на складе
C9: ZC-NX270P | D9: 1/3" CCD, цветная телекамера мех. день/ночь, 700 TVL, 0.00007 lux (colour) / 0.000007 lux (b/w) F1.2 / 30IRE / Sens-up, DNR, DWDR, BLC, HLC, 16x digital zoom, DC-Iris, 12/24VDC, 108.4мм x 46мм x 60мм | E9: 350 | F9: =ROUNDUP(E9-(Содержание!$H$4*E9),0) -> 350 | G9: Цена снижена
C10: ZC-NXW270PR | D10: 1/3" CCD, цветная телекамера мех. день/ночь, 700 TVL, 0.00007 lux (colour) / 0.000007 lux (b/w) F1.2 / 30IRE / Sens-up, DNR, BLC, HLC, 16x digital zoom, WDR, DC-Iris, 12/24VDC, RS-485, 108.4мм x 46мм x 60мм | E10: 450 | F10: =ROUNDUP(E10-(Содержание!$H$4*E10),0) -> 450 | G10: Цена снижена
B11: Камеры стандартной чувствительности
C12: ZC-YX280P | D12: 1/3" CCD, цветная телекамера, 700TVL, 0,4L, день/ночь (электронное переключение), цифровой WDR, BLC, HLC, OSD меню, 12VDC/24VAC | E12: 190 | F12: =ROUNDUP(E12-(Содержание!$H$4*E12),0) -> 190 | G12: Цена снижена
C13: ZC-YX280PE | D13: 1/3" CCD, цветная телекамера, 700TVL, 0,4L, день/ночь (электронное переключение), цифровой WDR, BLC, HLC, OSD меню, 230VAC | E13: 190 | F13: =ROUNDUP(E13-(Содержание!$H$4*E13),0) -> 190 | G13: Цена снижена
C14: ZC-NX280P | D14: 1/3" CCD, цветная телекамера, 700TVL, 0,04L, день/ночь (мех. переключение), цифровой WDR, BLC, HLC, OSD меню, 12VDC/24VAC | E14: 250 | F14: =ROUNDUP(E14-(Содержание!$H$4*E14),0) -> 250 | G14: Цена снижена
C15: ZC-NX280PE | D15: 1/3" CCD, цветная телекамера, 700TVL, 0,04L, день/ночь (мех. переключение), цифровой WDR, BLC, HLC, OSD меню, 230VAC | E15: 250 | F15: =ROUNDUP(E15-(Содержание!$H$4*E15),0) -> 250 | G15: Цена снижена
B16: Уличные цилиндрические камеры с ИК подсветкой
C17: ZC-BNT8039PXA | D17: Уличная камера (IP67) с механическим переключением день/ночь с варифокальным объективом 3-9 мм, с автодиафрагмой DC, 1/3" Sony HAD II CCD, 700 линий, 0 люкс (с ИК подсветкой), 24 встроенных ИК светодиода, 12/24 вольт, прокладка кабеля в кронштейне | E17: 357 | F17: =ROUNDUP(E17-(Содержание!$H$4*E17),0) -> 357 | G17: Цена снижена
C18: ZC-BNX8039PBA | D18: Уличная камера (IP67) с механическим переключением день/ночь с варифокальным объективом 3-9 мм, с автодиафрагмой DC, 1/3" Sony HAD II CCD, 600 линий, 0 люкс (с ИК подсветкой), 24 встроенных ИК светодиода, внешняя настройка фокусного расстояния, 12/24 вольт, прокладка кабеля в кронштейне | E18: 357 | F18: =ROUNDUP(E18-(Содержание!$H$4*E18),0) -> 357 | G18: Цена снижена
B19: Купольные внутренние камеры
C20: ZC-D8039PBA | D20: Цветная камера с варифокальным объективом 3,0 - 9,0 мм, автодиафрагма DC, 1/3" Sony HAD II CCD, 600 линий, 0,5 люкс (F1,2) электронное переключение день/ночь, 3-осный модуль, 12/24 вольт | E20: 214 | F20: =ROUNDUP(E20-(Содержание!$H$4*E20),0) -> 214 | G20: Цена снижена
C21: ZC-D8039PXA | D21: Цветная камера с варифокальным объективом 3,0 - 9,0 мм, автодиафрагма DC, 1/3" Sony HAD II CCD, 700 линий, 0,5 люкс (F1,2) электронное переключение день/ночь, 3-осный модуль, 12/24 вольт | E21: 233 | F21: =ROUNDUP(E21-(Содержание!$H$4*E21),0) -> 233 | G21: Цена снижена
B22: Купольные камеры ZC-D в вандалозащищенных кожухах
C23: ZC-DNT8039PBA | D23: Цветная уличная (IP67) камера с варифокальным объективом 3,0 - 9,0 мм, автодиафрагма DC, 1/3" Sony HAD II CCD, 600 линий, 0,04 люкс (F1,4) механическое переключение день/ночь, 3-осный модуль, 12/24 вольт | E23: 308 | F23: =ROUNDUP(E23-(Содержание!$H$4*E23),0) -> 308 | G23: Цена снижена
C24: ZC-DNT8039PXA | D24: Цветная уличная (IP67) камера с варифокальным объективом 3,0 - 9,0 мм, автодиафрагма DC, 1/3" Sony HAD II CCD, 700 линий, 0,04 люкс (F1,4) механическое переключение день/ночь, 3-осный модуль, 12/24 вольт | E24: 337 | F24: =ROUNDUP(E24-(Содержание!$H$4*E24),0) -> 337 | G24: Цена снижена
C25: ZC-DNT8039PBA-IR | D25: Цветная уличная (IP67) камера с варифокальным объективом 3,0 - 9,0 мм, автодиафрагма DC, 1/3" Sony HAD II CCD, 600 линий, 0 люкс (ИК вкл.), 24 встроенных ИК светодиода, механическое переключение день/ночь, 3-осный модуль, 12/24 вольт | E25: 353 | F25: =ROUNDUP(E25-(Содержание!$H$4*E25),0) -> 353 | G25: Цена снижена
C26: ZC-DNT8039PXA-IR | D26: Цветная уличная (IP67) камера с варифокальным объективом 3,0 - 9,0 мм, автодиафрагма DC, 1/3" , 700 линий, 0 люкс (ИК вкл.), 24 встроенных ИК светодиода, механическое переключение день/ночь, 3-осный модуль, 12/24 вольт | E26: 382 | F26: =ROUNDUP(E26-(Содержание!$H$4*E26),0) -> 382 | G26: Цена снижена
B27: Принадлежности для 8000 серии
C28: ZCA-SM800 | D28: Сервисный кабель (video) для камер 8000 серии | E28: 15 | F28: =ROUNDUP(E28-(Содержание!$H$4*E28),0) -> 15
C29: ZCA-FM8T | D29: Адаптер для крепления в подвесной потолок для уличной купольной камеры ZC-DT8000 | E29: 45 | F29: =ROUNDUP(E29-(Содержание!$H$4*E29),0) -> 45
C30: ZC-FM3 | D30: Адаптер для крепления в подвесной потолок для уличной купольной камеры ZC-D8000 | E30: 88 | F30: =ROUNDUP(E30-(Содержание!$H$4*E30),0) -> 88
C31: ZCA-PM8T | D31: Адаптер для подвесной установки уличных купольных камер ZC-DT8000 | E31: 59 | F31: =ROUNDUP(E31-(Содержание!$H$4*E31),0) -> 59
C32: ZCA-UP8T | D32: UTP модуль для уличных купольных камер ZC-DT8000 | E32: 45 | F32: =ROUNDUP(E32-(Содержание!$H$4*E32),0) -> 45
C33: ZCA-UP8 | D33: UTP модуль для внутренних купольных камер ZC-D8000 | E33: 45 | F33: =ROUNDUP(E33-(Содержание!$H$4*E33),0) -> 45
C34: ZCA-SD8 | D34: Дымчатая сфера для внутренних камер ZC-D8000 | E34: 29 | F34: =ROUNDUP(E34-(Содержание!$H$4*E34),0) -> 29
C35: ZC7-WM1 | D35: Настенное крепление, внутреннее | E35: 103 | F35: =ROUNDUP(E35-(Содержание!$H$4*E35),0) -> 103
C36: ZC8-WM2 | D36: Настенное крепление, уличное | E36: 180 | F36: =ROUNDUP(E36-(Содержание!$H$4*E36),0) -> 180
C37: PMA2 | D37: Адаптер для крепления на столб | E37: 88 | F37: =ROUNDUP(E37-(Содержание!$H$4*E37),0) -> 88
B38: Кронштейны для настенного крепления камер
C39: ZP-B10 | D39: Кронштейн 18 см. пластиковый, белый или серый, внутренняя прокладка кабеля, регулировка без инструментов | E39: 12 | F39: =ROUNDUP(E39-(Содержание!$H$4*E39),0) -> 12 | G39: Цена снижена. Уточняйте цвет
C40: BK140 | D40: Кронштейн 14 см, металлический, белый или черный, регулировка без инструментов | E40: 15 | F40: =ROUNDUP(E40-(Содержание!$H$4*E40),0) -> 15 | G40: Цена снижена
C41: BCV140 | D41: Кронштейн 14 см, металлический, черный или белый, регулировка без инструментов с использованием накидной гайки | E41: 20 | F41: =ROUNDUP(E41-(Содержание!$H$4*E41),0) -> 20 | G41: Цена снижена
C42: BKX | D42: Удлинитель 50 мм черный/белый | E42: 8 | F42: =ROUNDUP(E42-(Содержание!$H$4*E42),0) -> 8 | G42: Цена снижена
B43: Блоки питания
C44: CV12P | D44: Блок питания 12 вольт 1000 мА | E44: 62 | F44: =ROUNDUP(E44-(Содержание!$H$4*E44),0) -> 62
C45: CV12UP | D45: Блок питания для скрытой установки, 12 вольт 1000 мА | E45: 79 | F45: =ROUNDUP(E45-(Содержание!$H$4*E45),0) -> 79
C46: CV12-II | D46: Блок питания 12 вольт 800 мА с фланцами | E46: 40 | F46: =ROUNDUP(E46-(Содержание!$H$4*E46),0) -> 40
C47: CV24-II | D47: Блок питания 24 вольт 400 мА с фланцами | E47: 40 | F47: =ROUNDUP(E47-(Содержание!$H$4*E47),0) -> 40 | G47: Цена снижена
C48: CV2408-6A | D48: Блок питания для монтажа в 19' стойку, входное напряжение 110/240 В, 2,4/1,2 А, выходное напряжение - 24/28 В на 8 выходов, макс. 1А на камеру, суммарный ток не более 6А, светодиодный дисплей состояния каждого канала. | E48: 554 | F48: =ROUNDUP(E48-(Содержание!$H$4*E48),0) -> 554
C49: CV2416-12A | D49: Блок питания для монтажа в 19' стойку, входное напряжение 110/240 В, 4,8/2,4 А, выходное напряжение - 24/28 В на 16 выходов, макс. 1А на камеру, суммарный ток не более 12А, светодиодный дисплей состояния каждого канала. | E49: 1078 | F49: =ROUNDUP(E49-(Содержание!$H$4*E49),0) -> 1078
B50: Поворотные купольные камеры ZC-PT
C51: ZC-PT212P | D51: Моторизованная купольная камера в кожухе для внутреннего использования, 12x оптическое увеличение, 3,8 - 45,6 мм, 1/4"-CCD , 0.002 lux (цвет), 0.0002 lux (ч/б), 650 ТВЛ, маскирование, WDR, DNR | E51: 1466 | F51: =ROUNDUP(E51-(Содержание!$H$4*E51),0) -> 1466
C52: ZC-PT212P-XT | D52: Моторизованная купольная камера в уличном кожухе (IP66), 12x оптическое увеличение, 3,8 - 45,6 мм, 1/4"-CCD , 0.002 lux (цвет), 0.0002 lux (ч/б), 650 ТВЛ, маскирование, WDR, DNR, 24В | E52: 1760 | F52: =ROUNDUP(E52-(Содержание!$H$4*E52),0) -> 1760
C53: ZC-PT236P-II | D53: Моторизованная купольная камера в кожухе для внутреннего использования, 36x оптическое увеличение, 3.4 - 120 мм, 1/4"-CCD ExView, 0.01 люкс, 650 ТВЛ, маскирование, WDR, DNR | E53: 1907 | F53: =ROUNDUP(E53-(Содержание!$H$4*E53),0) -> 1907
C54: ZC-PT236P-XT-II | D54: Моторизованная купольная камера в уличном кожухе, 36x оптическое увеличение, 3.4 - 120 мм, 1/4"-CCD ExView, 0.01 люкс, 650 ТВЛ, маскирование, WDR, DNR, 24В АС, IP66, -40..+50C | E54: 2053 | F54: =ROUNDUP(E54-(Содержание!$H$4*E54),0) -> 2053
B55: Принадлежности для камер серии ZC-PT
C56: ZCA-SC201 | D56: Клавиатура управления (3 оси), для макс. 223 камер серии ZC-PT, управление мультиплексором и цифровым регистратором. | E56: 1113 | F56: =ROUNDUP(E56-(Содержание!$H$4*E56),0) -> 1113
C57: ZCA-DS4 | D57: RS485 дистрибьютор команд управления, 1 вход, 4 выхода, 1HE, 19", питание 12 вольт постоянного тока, 8 Ватт (без блока питания) | E57: 661 | F57: =ROUNDUP(E57-(Содержание!$H$4*E57),0) -> 661
C58: ZCA-DS8 | D58: RS485 дистрибьютор команд управления, 1 вход, 8 выходов, 1HE, 19", питание 12 вольт постоянного тока, 8 Ватт (без блока питания) | E58: 733 | F58: =ROUNDUP(E58-(Содержание!$H$4*E58),0) -> 733
C59: ZCA-DS16 | D59: RS485 дистрибьютор команд управления, 1 вход, 16 выходов, 1HE, 19", питание 12 вольт постоянного тока, 8 Ватт (без блока питания) | E59: 807 | F59: =ROUNDUP(E59-(Содержание!$H$4*E59),0) -> 807
C60: ZCA-TB200 | D60: Адаптер для установки в подвесные потолки | E60: 117 | F60: =ROUNDUP(E60-(Содержание!$H$4*E60),0) -> 117
C61: ZCA-TB200A | D61: Адаптер для установки ZC-PT212P в подвесные потолки | E61: 66 | F61: =ROUNDUP(E61-(Содержание!$H$4*E61),0) -> 66
C62: ZCA-HC200 | D62: Адаптер для установки на жесткие потолки | E62: 83 | F62: =ROUNDUP(E62-(Содержание!$H$4*E62),0) -> 83
C63: ZCA-GT100 | D63: Простой кронштейн для установки внутренних и уличных камер на стенной, угловой или подвесной кронштейн | E63: 117 | F63: =ROUNDUP(E63-(Содержание!$H$4*E63),0) -> 117
C64: ZCA-ST25 | D64: Трубчатый удлинитель, 25 см, для подвеса уличного или внутреннего кожуха купольной камеры | E64: 117 | F64: =ROUNDUP(E64-(Содержание!$H$4*E64),0) -> 117
C65: ZCA-ST50 | D65: Трубчатый удлинитель, 50 см, для подвеса уличного или внутреннего кожуха купольной камеры | E65: 136 | F65: =ROUNDUP(E65-(Содержание!$H$4*E65),0) -> 136
C66: ZCA-SP200 | D66: Крепление на стену | E66: 180 | F66: =ROUNDUP(E66-(Содержание!$H$4*E66),0) -> 180 | G66: Цена снижена
C67: ZCA-PTDM | D67: Адаптер для крепления на трубе, узкий (232х136 мм) | E67: 134 | F67: =ROUNDUP(E67-(Содержание!$H$4*E67),0) -> 134 | G67: Цена снижена
C68: ZCA-PWDM | D68: Адаптер для крепления на трубе, широкий (270х170 мм) | E68: 134 | F68: =ROUNDUP(E68-(Содержание!$H$4*E68),0) -> 134 | G68: Цена снижена
C69: ZCA-PTB | D69: Адаптер -коробка для крепления GT200 на шесте, с внутренней прокладкой кабеля, узкий (291х170х250 мм) | E69: 371 | F69: =ROUNDUP(E69-(Содержание!$H$4*E69),0) -> 371
C70: ZCA-PWB | D70: Адаптер -коробка для крепления GT200 на шесте, с внутренней прокладкой кабеля, широкий (270х168х155 мм) | E70: 371 | F70: =ROUNDUP(E70-(Содержание!$H$4*E70),0) -> 371
C71: ZCA-CST | D71: Угловой адаптер для GT200/100 | E71: 134 | F71: =ROUNDUP(E71-(Содержание!$H$4*E71),0) -> 134
C72: ZCA-CTB | D72: Угловой адаптер-коробка для GT200/100, узкий (300х164х222 мм) | E72: 337 | F72: =ROUNDUP(E72-(Содержание!$H$4*E72),0) -> 337
C73: ZCA-CWB | D73: Угловой адаптер-коробка для GT200/100, широкий (232х234х210 мм) | E73: 337 | F73: =ROUNDUP(E73-(Содержание!$H$4*E73),0) -> 337
C74: ZCA-220-1.5A | D74: Блок питания ZC-PT для внутренней установки, 24 вольт, 1,5 А. | E74: 102 | F74: =ROUNDUP(E74-(Содержание!$H$4*E74),0) -> 102
C75: ZCA-220-3.0A | D75: Блок питания ZC-PT для внутренней установки, 24 вольт, 3 А. | E75: 132 | F75: =ROUNDUP(E75-(Содержание!$H$4*E75),0) -> 132
C76: ZCA-PSU220 | D76: Уличный блок питания (IP66) с клеммной коробкой, 24 вольт, 3,1А. | E76: 330 | F76: =ROUNDUP(E76-(Содержание!$H$4*E76),0) -> 330
C77: ZCA-IPA | D77: Адаптер для крепления внутренней камеры к GT100/200 и ST25/50 | E77: 117 | F77: =ROUNDUP(E77-(Содержание!$H$4*E77),0) -> 117
C78: ZCA-IPA3 | D78: Адаптер для крепления внутренней камеры ZC-PT212P к GT100/200 и ST25/50 | E78: 117 | F78: =ROUNDUP(E78-(Содержание!$H$4*E78),0) -> 117
B79: Поворотная камера ZC-PT336P-IR 360°
C80: ZC-PT336P-IR | D80: 360° PTZ уличная поворотная камера, IP68, 1/4" Sony Super HAD CCD, день/ночь механический, 0.1 люкс (50 IRE), 0.01 люкс (ICR включен): (ночной режим), 3.4-122.4мм 36x оптическое увеличение, 12x цифровое увеличение, широкий динамический диапазон, DNR, двухконтурный ИК-прожектор, дальность 50м, IP68, -40..+50C | E80: 4458 | F80: =ROUNDUP(E80-(Содержание!$H$4*E80),0) -> 4458
B81: Принадлежности для ZC-PT336P-IR
C82: ZCA-CM3 | D82: Адаптер для потолочного крепления | E82: 162 | F82: =ROUNDUP(E82-(Содержание!$H$4*E82),0) -> 162
C83: ZCA-WM3 | D83: Адаптер для крепления на стену | E83: 191 | F83: =ROUNDUP(E83-(Содержание!$H$4*E83),0) -> 191
C84: ZCA-CMA3 | D84: Адаптер для углового крепления | E84: 205 | F84: =ROUNDUP(E84-(Содержание!$H$4*E84),0) -> 205
C85: ZCA-PMA3 | D85: Адаптер для установки на столб квадратного профиля | E85: 234 | F85: =ROUNDUP(E85-(Содержание!$H$4*E85),0) -> 234
C86: ZCA-PM3 | D86: Адаптер для установки на плоскую площадку | E86: 176 | F86: =ROUNDUP(E86-(Содержание!$H$4*E86),0) -> 176
C87: ZCA-SC301 | D87: Клавиатура управления по RS-485, с джойстиком | E87: 953 | F87: =ROUNDUP(E87-(Содержание!$H$4*E87),0) -> 953
C88: ZCA-J307 | D88: Разветвительная коробка с PCB | E88: 220 | F88: =ROUNDUP(E88-(Содержание!$H$4*E88),0) -> 220
C89: ZCA-J308 | D89: Разветвительная коробка без PCB | E89: 162 | F89: =ROUNDUP(E89-(Содержание!$H$4*E89),0) -> 162
A91: DVR
B93: DigiMaster серия
C94: DR-4FX1 | D94: 4-канальный пентаплексный цифровой видеорегистратор, сжатие H.264, ОС Linux, VGA, HDMI, 1хSPOT выходы, запись 100к/с (960H/4CIF/2CIF/CIF), аудио вх/вых 4/1, трев. вх/вых 4/1, HDD 1xSATA до 4ТБ, LAN, 2хUSB, RS-485, пульт ДУ, высота 1U | E94: 379 | F94: =ROUNDUP(E94-(Содержание!$H$4*E94),0) -> 379
C95: DR-8FX2 | D95: 8-канальный пентаплексный цифровой видеорегистратор, сжатие H.264, ОС Linux, VGA, HDMI, 1хSPOT выходы, запись 200к/с (960H/4CIF/2CIF/CIF), аудио вх/вых 4/1, трев. вх/вых 4/1, HDD 2xSATA до 4ТБ каждый, LAN, 2хUSB, RS-485, пульт ДУ, Watchdog, высота 1U | E95: 622 | F95: =ROUNDUP(E95-(Содержание!$H$4*E95),0) -> 622
C96: DR-16FX2 | D96: 16-канальный пентаплексный цифровой видеорегистратор, сжатие H.264, ОС Linux, VGA, HDMI, 1хSPOT выходы, запись 400к/с (960H/4CIF/2CIF/CIF), аудио вх/вых 4/1, трев. вх/вых 4/1, HDD 2xSATA до 4ТБ каждый, LAN, 2хUSB, RS-485, пульт ДУ, Watchdog, высота 1U | E96: 784 | F96: =ROUNDUP(E96-(Содержание!$H$4*E96),0) -> 784
C97: DR4H-DVD | D97: 4-канальный триплексный цифровой видеорегистратор, сжатие H.264, ОС Linux, скорость записи 100к/с (CIF), 50 к/с (2CIF), 25 к/с (4CIF), поддержка смартфонов и КПК, установка до 2 x SATA по 2ТБ, CD/DVD пишущий привод, LAN, VGA выход, 4 х тревожные вх/вых, RS-485, 2 x USB | E97: 784 | F97: =ROUNDUP(E97-(Содержание!$H$4*E97),0) -> 784
C98: DR8H-DVD* | D98: 8-канальный пентаплексный цифровой видеорегистратор, сжатие H.264, ОС Linux, скорость записи 200к/с (CIF), 100 к/с (2CIF), 50 к/с (4CIF), аудио вх/вых 4/1, поддержка смартфонов и КПК, установка до 4 x SATA жёстких дисков по 2ТБ каждый, CD/DVD пишущий привод, LAN, HDMI, VGA выход, 8 х тревожные вх/вых, RS-485, (2+1)хUSB, высота 2U, POS | E98: 1324 | F98: =ROUNDUP(E98-(Содержание!$H$4*E98),0) -> 1324 | G98: Уточняйте наличие на складе
C99: DR-8FX5 | D99: 8-канальный пентаплексный цифровой видеорегистратор, сжатие H.264, ОС Linux, VGA, HDMI, композитный, 2хSPOT, 8x кольцевые выходы, запись 200к/с (960H/4CIF/2CIF/CIF), аудио вх/вых 8/1, трев. вх/вых (8+2)/4, HDD 5xSATA до 4ТБ каждый, LAN, WAN, (2+1)хUSB, 2xRS-485, RS-232, eSATA, пульт ДУ, Watchdog, высота 2U | E99: 1512 | F99: =ROUNDUP(E99-(Содержание!$H$4*E99),0) -> 1512
C100: DR-16FX5 | D100: 16-канальный пентаплексный цифровой видеорегистратор, сжатие H.264, ОС Linux, VGA, HDMI, композитный, 2хSPOT, 16x кольцевые выходы, запись 400к/с (960H/4CIF/2CIF/CIF), аудио вх/вых 16/1, трев. вх/вых (16+2)/4, HDD 5xSATA до 4ТБ каждый, LAN, WAN, (2+1)хUSB, 2xRS-485, RS-232, eSATA, пульт ДУ, Watchdog, высота 2U | E100: 1688 | F100: =ROUNDUP(E100-(Содержание!$H$4*E100),0) -> 1688
B101: Принадлежности
C102: DR-RM1 | D102: Адаптер для монтажа DR4H в 19" стойку (кроме моделей HL) | E102: 28 | F102: =ROUNDUP(E102-(Содержание!$H$4*E102),0) -> 28
C103: DR-RM2 | D103: Адаптер для монтажа 8 и 16-канальных DVR в 19" стойку | E103: 28 | F103: =ROUNDUP(E103-(Содержание!$H$4*E103),0) -> 28
B104: Жесткие диски 24/7
C105: ZRS-HDD1000 | D105: S-ATA HDD 1TB 24/7 | E105: 152 | F105: Fixed price
C106: ZRS-HDD2000 | D106: S-ATA HDD 2TB 24/7 | E106: 183 | F106: Fixed price
C107: ZRS-HDD3000 | D107: S-ATA HDD 3TB 24/7 | E107: 216 | F107: Fixed price
C108: ZRS-HDD4000 | D108: S-ATA HDD 4TB 24/7 | E108: 246 | F108: Fixed price
C109: Список рекомендованных к установке жестких дисков для DVR Digimaster DRxH, DR-xFX
C110: DMS Lite | D110: Программное обеспечения для работы с камерами GANZ PixelPro и регистраторами PixelMaster (без видеоаналитики). Запись/просмотр до 64 каналов на один сервер, поддержка нескольких мониторов, просмотр живого и архивного видео, поддержка аудио, трев. Вх/вых, карт, уведомление оператора о тревогах. | E110: 0
A111: Ganz Genstar AHD оборудование
B112: Купольные AHD камеры
C113: Z8-M4NTFN4LAP | D113: Купольная AHD камера, 1920х1080, Sony IMX322, 0.01Lux, F1.2, 3.6мм, 12В пост., мех. ИК-фильтр, ИК-подсветка 15м, 3D DNR, dWDR, ICR, BLC, HLC, ATW, 12В, IP66, -40…+55С, Ф106.07×96.42×77.65мм, 300г | E113: 90 | F113: =ROUNDUP(E113-(Содержание!$H$4*E113),0) -> 90
C114: Z8-D4NTVF56LAP | D114: Купольная AHD камера, 1920х1080, Sony IMX322, 0.01Lux, F1.2, F1.2, 2.8-12мм, 12В пост., мех. ИК-фильтр, ИК-подсветка 30м, 3D DNR, dWDR, ICR, BLC, HLC, ATW, 12В, IP66, -40…+55С, Ф133×144.8×101.6мм, 540г | E114: 128 | F114: =ROUNDUP(E114-(Содержание!$H$4*E114),0) -> 128
B115: Цилиндрические AHD камеры
C116: Z8-N4NFN4AP | D116: Цилиндрическая AHD камера, 1920х1080, Sony IMX322, 0.001Lux, F1.2, 3.6мм, 12В пост., мех. ИК-фильтр, ИК-подсветка 20м, 3D DNR, dWDR, ICR, BLC, HLC, ATW, 12В, IP66,-40…+55С, Φ170×69×65мм, 350г | E116: 90 | F116: =ROUNDUP(E116-(Содержание!$H$4*E116),0) -> 90
C117: Z8-N4NVF56AP | D117: Цилиндрическая AHD камера, 1920х1080, Sony IMX322, 0.001Lux, F1.2, F1.2, 2.8-12мм, 12В пост., мех. ИК-фильтр, ИК-подсветка 30м, 3D DNR, dWDR, ICR, BLC, HLC, ATW, 12В, IP66, -40…+55С, Φ228×975×84мм, 550г | E117: 131 | F117: =ROUNDUP(E117-(Содержание!$H$4*E117),0) -> 131
C118: Z8-B4NVF56AP | D118: Цилиндрическая AHD камера, 1920х1080, Sony IMX322, 0.001Lux, F1.2, F1.2, 2.8-12мм, 12В пост., мех. ИК-фильтр, ИК-подсветка 35м, 3D DNR, dWDR, ICR, BLC, HLC, ATW, 12В, IP66, -40…+55С, Φ230×105×90мм, 800г | E118: 134 | F118: =ROUNDUP(E118-(Содержание!$H$4*E118),0) -> 134
B119: AHD DVR
C120: DRH8-4M41-A | D120: 4-канальный AHD видеорегистратор, запись видео 15к/с, 4х аудио входа RCA, интерком, 4 трев.вх 4 трев.вых, 1х VGA, 1х HDMI, 1х RJ45, 2х USB, 1xSATA до 4ТБ; 12В DC/4A, 350x295x45мм, ПО GANZ CMS в комплекте | E120: 154 | F120: =ROUNDUP(E120-(Содержание!$H$4*E120),0) -> 154
C121: DRH8-8M41-A | D121: 8-канальный AHD видеорегистратор, запись видео 15к/с, 4х аудио входа RCA, интерком, 4 трев.вх 4 трев.вых, 1х VGA, 1х HDMI, 1х RJ45, 2х USB, 1xSATA до 4ТБ; 12В DC/4A, 350x295x45мм, ПО GANZ CMS в комплекте | E121: 208 | F121: =ROUNDUP(E121-(Содержание!$H$4*E121),0) -> 208
C122: DRH8-16M44-A | D122: 16-канальный AHD видеорегистратор, запись видео 15к/с, 16х аудио входов RCA, интерком, 16 трев.вх 4 трев.вых, 1х VGA, 1х HDMI, 1х RJ45, 2х USB, 4xSATA до 6ТБ каждый, RS-485; 12В DC/6A, 440x400.5x60мм, ПО GANZ CMS в комплекте | E122: 591 | F122: =ROUNDUP(E122-(Содержание!$H$4*E122),0) -> 591
B123: Жесткие диски 24/7
C124: ZRS-HDD1000 | D124: S-ATA HDD 1TB 24/7 | E124: 152 | F124: Fixed price
C125: ZRS-HDD2000 | D125: S-ATA HDD 2TB 24/7 | E125: 183 | F125: Fixed price
C126: ZRS-HDD3000 | D126: S-ATA HDD 3TB 24/7 | E126: 216 | F126: Fixed price
C127: ZRS-HDD4000 | D127: S-ATA HDD 4TB 24/7 | E127: 246 | F127: Fixed price
C128: Примечание | D128: В регистраторах серии DRH8 рекомендуется использовать жесткие диски из специальных серий для систем видеонаблюдения: Seagate SV35.5TM Series,Barracuda XT Series
A129: GANZ Lite
B130: Цилиндрические камеры
C131: LYB-IR212PS | D131: Уличная цилиндрическая камера, IP66, 1/3" Sony Super HAD CCD, 4мм - 9мм, 650 TVL, 0 Lux (IR on), IR-LEDs, 12VDC | E131: 133 | F131: =ROUNDUP(E131-(Содержание!$H$4*E131),0) -> 133 | G131: Цена снижена
C132: LYX-IR622PS | D132: Уличная цилиндрическая камера, IP66, 1/3" Sony Super HAD CCD, 6мм - 22мм, 700TVL, 0 Lux (IR on), IR-LEDs, 12VDC | E132: 145 | F132: =ROUNDUP(E132-(Содержание!$H$4*E132),0) -> 145 | G132: Цена снижена
C133: LYB-IR-212PS-CB | D133: Уличная цилиндрическая камера, IP66, 1/3" Sony Super HAD CCD, 2.8мм - 12мм, 650 TVL, 0 Lux (IR on), IR-LEDs, 12VDC, для потолочного крепления | E133: 133 | F133: =ROUNDUP(E133-(Содержание!$H$4*E133),0) -> 133 | G133: Новая модель
C134: LYB-SIR212PS | D134: Уличная цилиндрическая камера, IP66, 1/3" Sony Super HAD CCDII, 2.8мм - 12мм, 650 TVL, 0 Lux (IR on), Smart-IR-LEDs, 12VDC/24 VAC | E134: 145 | F134: =ROUNDUP(E134-(Содержание!$H$4*E134),0) -> 145 | G134: Цена снижена
C135: LYB-SIR622PS | D135: Уличная цилиндрическая камера, IP66, 1/3" Sony Super HAD CCDII, 6мм - 22мм, 650 TVL, 0 Lux (IR on), Smart-IR-LEDs, 12VDC/24 VAC | E135: 157 | F135: =ROUNDUP(E135-(Содержание!$H$4*E135),0) -> 157 | G135: Цена снижена
B136: Купольные камеры
C137: LDWB212PS-2 | D137: Внутреняя купольная камера, 4мм - 9мм lens, 1/3" Pixim CMOS, 0,1 Lux (F1,2 / 50IRE), 690TVL, WDR, 3DNR, 12 VDC | E137: 133 | F137: =ROUNDUP(E137-(Содержание!$H$4*E137),0) -> 133 | G137: Новая модель
C138: LFTB-IR3.6PS | D138: Плоская мини-купольная камера,with 3.6мм lens, 1/3" Sony Effio-E ExView CCD II, 0 Lux (IR on), 650 TVL, 12 VDC, integrated IR-LED, IP66 | E138: 97 | F138: =ROUNDUP(E138-(Содержание!$H$4*E138),0) -> 97 | G138: Цена снижена
C139: LTB-IR3.6PS | D139: Уличная камера, IP66, 1/3" IT-CCD, 3.6мм, 650 TVL, 0 Lux (IR on), integrated IR-LEDs, 12 VDC | E139: 85 | F139: =ROUNDUP(E139-(Содержание!$H$4*E139),0) -> 85 | G139: Цена снижена
C140: LTB-IR49PS | D140: Уличная купольная камера,IP66 with variolens, 1/3" IT-CCD, 4мм - 9мм, 650 TVL, 0 Lux (IR on), integrated IR-LEDs, 12 VDC | E140: 121 | F140: =ROUNDUP(E140-(Содержание!$H$4*E140),0) -> 121 | G140: Цена снижена
C141: LTX-IR212PS | D141: Уличная купольная камера, IP66 with Variolens, 1/3" IT-CCD, 2.8мм - 12мм, 700 TVL, 0 Lux (IR on), integrated IR-LEDs, 12 VDC | E141: 169 | F141: =ROUNDUP(E141-(Содержание!$H$4*E141),0) -> 169 | G141: Цена снижена
C142: LTNX-IR212PA | D142: Уличная купольная камера, IP66 with Variolens 2.8 - 12мм, 1/3" IT-CCD, 650 TVL, 0 Lux (IR on), IR-LEDs with ca. 20m range, 12VDC/24 VAC | E142: 205 | F142: =ROUNDUP(E142-(Содержание!$H$4*E142),0) -> 205 | G142: Цена снижена
B143: CS- камеры
C144: LCNX-PS | D144: Цветная камера, 1/3" 960H High Sensivity CCD, 700 TVL, 0.01 Lux, DWDR, BLC, DNR, 12VDC | E144: 109 | F144: =ROUNDUP(E144-(Содержание!$H$4*E144),0) -> 109 | G144: Цена снижена
C145: LCNX-PES | D145: Цветная камера, 1/3" 960H High Sensivity CCD, 700 TVL, 0.01 Lux, DWDR, BLC, DNR, 230VAC | E145: 121 | F145: =ROUNDUP(E145-(Содержание!$H$4*E145),0) -> 121 | G145: Цена снижена
C146: LCWB-P-2 | D146: Цветная камера, WDR, день/ночь - мех. переключение, 690 TVL, 1/3" Pixim CMOS, 0,1 lux, 12VDC/24VAC | E146: 194 | F146: =ROUNDUP(E146-(Содержание!$H$4*E146),0) -> 194 | G146: Цена снижена
C147: LCWB-PE-2 | D147: Цветная камера, WDR, день/ночь - мех. переключение, 690 TVL, 1/3" Pixim CMOS, 0,1 lux, 230VAC | E147: 194 | F147: =ROUNDUP(E147-(Содержание!$H$4*E147),0) -> 194 | G147: Цена снижена
B148: DVR
C149: LR04 | D149: 4-канальный цифровой видеорегистратор, H.264, LINUX OS, LAN, VGA-Out, 1x S-ATA HDD, до 2 TB., смартфон & КПК поддержка., тревожные вх./вых, RS485 | E149: 290 | F149: =ROUNDUP(E149-(Содержание!$H$4*E149),0) -> 290 | G149: Цена снижена
C150: LR08 | D150: 8-канальный цифровой видеорегистратор, H.264, LINUX OS, LAN, VGA-Out, 1x S-ATA HDD, до 2 TB., смартфон & КПК поддержка., тревожные вх./вых, RS485 | E150: 424 | F150: =ROUNDUP(E150-(Содержание!$H$4*E150),0) -> 424 | G150: Цена снижена
C151: LR16 | D151: 16-канальный цифровой видеорегистратор, H.264, LINUX OS, LAN, VGA-Out, 1x S-ATA HDD, до 2 TB., смартфон & КПК поддержка., тревожные вх./вых, RS485 | E151: 629 | F151: =ROUNDUP(E151-(Содержание!$H$4*E151),0) -> 629 | G151: Цена снижена
A152: Кожухи GANZ
C153: GH-FI | D153: Пылезащищенный внутренний пластиковый кожух (IP66) без козырька и обогревателя, со стенным кронштейном (GH-FWM) | E153: 111 | F153: =ROUNDUP(E153-(Содержание!$H$4*E153),0) -> 111
C154: GH-12 | D154: Уличный кожух IP67, с козырьком и нагревателем, без кронштейна, 12 вольт, -20…+50C, <700мА | E154: 157 | F154: =ROUNDUP(E154-(Содержание!$H$4*E154),0) -> 157 | G154: Цена выросла
C155: GH-24 | D155: Уличный кожух IP67, с козырьком и нагревателем, без кронштейна, 24 вольт, -20…+50C, <350мА | E155: 157 | F155: =ROUNDUP(E155-(Содержание!$H$4*E155),0) -> 157 | G155: Цена выросла
C156: GH-230 | D156: Уличный кожух IP67, с козырьком и нагревателем, без кронштейна, 230 вольт, -20…+50C, <40мА | E156: 157 | F156: =ROUNDUP(E156-(Содержание!$H$4*E156),0) -> 157 | G156: Цена выросла
C158: GH-FWC12 | D158: Уличный пластиковый кожух IP66, с козырьком, нагревателем 12 вольт и стенным кронштейном с кабелем 90 см, проведенным внутри него (коаксиал и питание), открывается с обеих сторон, -20…+55C, 8.4Вт нагрев, 17Вт общая | E158: 153 | F158: =ROUNDUP(E158-(Содержание!$H$4*E158),0) -> 153
C159: GH-FWC24 | D159: Уличный пластиковый кожух IP66, с козырьком, нагревателем 24 вольт и стенным кронштейном с кабелем 90 см, проведенным внутри него (коаксиал и питание), открывается с обеих сторон, -20…+55C, 8.4Вт нагрев, 17Вт общая | E159: 153 | F159: =ROUNDUP(E159-(Содержание!$H$4*E159),0) -> 153
C160: GH-FWC230 | D160: Уличный пластиковый кожух IP66, с козырьком, нагревателем 230 вольт и стенным кронштейном с кабелем 90 см, проведенным внутри него (коаксиал и питание), открывается с обеих сторон, -20…+55C, 8.4Вт нагрев, 17Вт общая | E160: 153 | F160: =ROUNDUP(E160-(Содержание!$H$4*E160),0) -> 153
C161: GH-FWU230-G | D161: Уличный пластиковый кожух IP66, с козырьком, нагревателем 230 вольт и стенным кронштейном с кабелем 90 см, проведенным внутри него, открывается с обеих сторон, материал смотрового окошка - стекло, -20…+55C, 8.4Вт нагрев, 17Вт общая | E161: 231 | F161: =ROUNDUP(E161-(Содержание!$H$4*E161),0) -> 231
C162: GH-FW230-G | D162: Уличный пластиковый кожух IP66, с козырьком, нагревателем 230 вольт и стенным кронштейном с кабелями питания и CAT5, проведенными внутри него, открывается с обеих сторон-20…+55C, материал смотрового окошка - стекло, 8.4Вт нагрев, 17Вт общая | E162: 200 | F162: =ROUNDUP(E162-(Содержание!$H$4*E162),0) -> 200
C163: GH-FW12 | D163: Уличный пластиковый кожух IP66, с козырьком, нагревателем 12 вольт и стенным кронштейном, открывается с обеих сторон, -20…+55C, 8.4Вт нагрев, 17Вт общая | E163: 129 | F163: =ROUNDUP(E163-(Содержание!$H$4*E163),0) -> 129 | G163: Цена выросла
C164: GH-FW24 | D164: Уличный пластиковый кожух IP66, с козырьком, нагревателем 24 вольт и стенным кронштейном, открывается с обеих сторон, -20…+55C, 8.4Вт нагрев, 17Вт общая | E164: 129 | F164: =ROUNDUP(E164-(Содержание!$H$4*E164),0) -> 129 | G164: Цена выросла
C165: GH-FW230 | D165: Уличный пластиковый кожух IP66, с козырьком, нагревателем 230 вольт и стенным кронштейном, открывается с обеих сторон, -20…+55C, 8.4Вт нагрев, 17Вт общая | E165: 129 | F165: =ROUNDUP(E165-(Содержание!$H$4*E165),0) -> 129 | G165: Цена выросла
C166: GH-F12 | D166: Уличный пластиковый кожух IP66, с козырьком и нагревателем 12 вольт, открывается с обеих сторон, без кронштейна, -20…+55C, 8.4Вт нагрев, 17Вт общая | E166: 94 | F166: =ROUNDUP(E166-(Содержание!$H$4*E166),0) -> 94 | G166: Цена выросла
C167: GH-F24 | D167: Уличный пластиковый кожух IP66, с козырьком и нагревателем 24 вольт, открывается с обеих сторон, без кронштейна, -20…+55C, 8.4Вт нагрев, 17Вт общая | E167: 94 | F167: =ROUNDUP(E167-(Содержание!$H$4*E167),0) -> 94 | G167: Цена выросла
C168: GH-F-iPaK-P | D168: Уличный пластиковый кожух IP66, с козырьком, стенным кронштейном, открывается с обеих сторон. Установлены нагреватель и PoE сплиттер для питания кожуха и камеры 12 вольт, -20…+55C, 8.4Вт нагрев, 17Вт общая | E168: 412 | F168: =ROUNDUP(E168-(Содержание!$H$4*E168),0) -> 412
B169: Принадлежности
C170: GH-FWM | D170: Стенной кронштейн 20 см, с соединительным шарниром для кожухов GH-Fast | E170: 31 | F170: =ROUNDUP(E170-(Содержание!$H$4*E170),0) -> 31 | G170: Цена снижена
C171: GH-CM | D171: Кронштейн для крепления кожухов GH на потолке с соединительным шарниром и внутренней прокладкой кабеля | E171: 196 | F171: =ROUNDUP(E171-(Содержание!$H$4*E171),0) -> 196
C172: GH-CM2 | D172: Кронштейн для крепления кожухов GH-Fast на потолке с соединительным шарниром и внутренней прокладкой кабеля | E172: 245 | F172: =ROUNDUP(E172-(Содержание!$H$4*E172),0) -> 245 | G172: Цена снижена
C173: GH-SM | D173: Спейсер для WM при наружной прокладке кабеля | E173: 25 | F173: =ROUNDUP(E173-(Содержание!$H$4*E173),0) -> 25 | G173: Цена снижена
C174: GH-PAR | D174: Адаптер для крепления на шесте (диаметр шеста от 60 до 140 мм) | E174: 66 | F174: =ROUNDUP(E174-(Содержание!$H$4*E174),0) -> 66 | G174: Цена снижена
C175: GH-PS24/12 | D175: Блок питания для камеры 24 В. вх/12 В. вых., 360 мА | E175: 69 | F175: =ROUNDUP(E175-(Содержание!$H$4*E175),0) -> 69 | G175: Цена снижена
C176: GH-PS230/12 | D176: Блок питания для камеры 230 В. вх/12 В. вых., 360 мА | E176: 69 | F176: =ROUNDUP(E176-(Содержание!$H$4*E176),0) -> 69 | G176: Цена снижена
C177: GH-PS230/24 | D177: Блок питания для камеры 230 В. вх/24 В. вых., 500 мА | E177: 69 | F177: =ROUNDUP(E177-(Содержание!$H$4*E177),0) -> 69 | G177: Цена снижена
C178: GH-PS230/12H | D178: Блок питания для камеры в кожухах GH-Fast, 230 В. вх/12В. вых., 1,5 А | E178: 83 | F178: =ROUNDUP(E178-(Содержание!$H$4*E178),0) -> 83
C179: GH-B24 | D179: Вентилятор 24 В для кожухов серии GH и GH-Fast | E179: 89 | F179: =ROUNDUP(E179-(Содержание!$H$4*E179),0) -> 89
C180: GH-B12 | D180: Вентилятор 12 В для кожухов серии GH и GH-Fast | E180: 91 | F180: =ROUNDUP(E180-(Содержание!$H$4*E180),0) -> 91 | G180: Цена снижена
C181: GH-FHT12 | D181: Опциональный нагреватель с вентилятором 12 вольт для кожухов серии GH-Fast. Увеличивает температурный диапазон от -40 до +50°C | E181: 89 | F181: =ROUNDUP(E181-(Содержание!$H$4*E181),0) -> 89
C182: GH-FHT24 | D182: Опциональный нагреватель с вентилятором 24 вольт для кожухов серии GH-Fast. Увеличивает температурный диапазон от -40 до +50°C | E182: 98 | F182: =ROUNDUP(E182-(Содержание!$H$4*E182),0) -> 98
C183: GH-FHT230 | D183: Опциональный нагреватель с вентилятором 230 вольт для кожухов серии GH-Fast. Увеличивает температурный диапазон от -40 до +50°C | E183: 173 | F183: =ROUNDUP(E183-(Содержание!$H$4*E183),0) -> 173
D185: ***новые позиции выделены красным
D186: ***снижение цены выделено синим

Sheet Мониторы
A1: МОНИТОРЫ GANZ
C2: Модель | D2: Описание | E2: Розница, USD | F2: Моя цена | G2: Комментарии
A3: LED
C4: LME17 | D4: TFT ЖК-монитор со светодиодной подсветкой, диагональ 17", разрешение до 1280х1024 4:3, PAL//NTSC, встроенные динамики, 2xBNC вх/вых, питание 12В, БП в комплекте, VESA 75x75mm (BS M4 x 12мм), на подставке | E4: 562 | F4: =ROUNDUP(E4-(Содержание!$H$4*E4),0) -> 562 | G4: Цена снижена
C5: LME19 | D5: TFT ЖК-монитор со светодиодной подсветкой, диагональ 19", разрешение до 1280х1024 4:3, PAL//NTSC, встроенные динамики, 2xBNC вх/вых, питание 12В, БП в комплекте, VESA 75x75mm (BS M4 x 12мм), на подставке | E5: 660 | F5: =ROUNDUP(E5-(Содержание!$H$4*E5),0) -> 660
C6: LME23.6SP | D6: ЖК монитор со светодиодной подсветкой 23,6" макс. 1920x1080 при 60 Гц, 5 мс, до 300кд/м2, 16,7млн цветов, контраст 5000:1, формат изображения 16:9, PIP, POP, деинтерлейс, 3Д фильтр, PAL/NTSC, RGB вход (15-штырьковый разъём, D-sub), HDMI вход, BNC вх/вы х2, встроенные динамики 2х1,5Вт, вход аудио PC stereo, RCA, 12В 33 Вт, VESA 100 x 100 мм (M4 x 10 мм винт), на подставке, вес 3,2кг, 580х428х164мм, VGA кабель, кабель питания и пульт ДУ в комплекте, экран защищен листом оргстекла | E6: 770 | F6: =E6-(Содержание!$H$4*E6) -> 770
C7: LME32 | D7: ЖК монитор со светодиодной подсветкой 32" макс. 1920x1080 при 60 Гц, 8,5 мс, до 400кд/м2, 16,7млн цветов, контраст 5000:1, формат изображения 16:9, PIP, POP, деинтерлейс, 3Д фильтр, PAL/NTSC, RGB вход (15-штырьковый разъём, D-sub), 2хHDMI, BNC вx/вых, вход триггера, встроенные динамики 2х1,5Вт, вход аудио PC stereo, RCA, 220В 70Вт, VESA 200x100мм/200х200мм, на подставке, вес 12,1кг, 747х450х80мм, HDMI кабель и пульт ДУ в комплекте, металлический корус | E7: 1351 | F7: =E7-(Содержание!$H$4*E7) -> 1351
C9: Принадлежности
C10: ZMA-HL3-2-S | D10: LCD wall mount, black, for VESA standard hole spacing (75/100/100x200/200), 2-part, distance from wall 18mm, can be loaded by up to 35 kg, for LCDs from 23" to 37" | E10: 23.1 | F10: =E10-(Содержание!$H$4*E10) -> 23.1 | G10: Новая модель
C11: ZMA-H9-2-S | D11: LCD wall mount can be tilted by ±6°, black, for VESA standard hole spacing (50/75/100), 2-part, distance from wall 40mm, can be loaded by up to 20 kg, for LCDs from 10" to 30" | E11: 16.5 | F11: =E11-(Содержание!$H$4*E11) -> 16.5 | G11: Новая модель
C12: ZMA-H5-1-S | D12: LCD wall mount, can be tilted/swivelled by ±20°/±10°, black, for VESA standard hole spacing (75/100), with spirit level, with cable suspension, with snap function, distance from wall 75mm, can be loaded by up to 20 kg, for LCDs from 10" to 30" | E12: 36.3 | F12: =E12-(Содержание!$H$4*E12) -> 36.3 | G12: Новая модель
C13: ZMA-HL4-1-S | D13: LCD ceiling mount, can be tilted/swivelled by ±20°/±135°, with cable feed through the mount tube, black, for VESA standard hole spacing (50/75/100), can be loaded by up to 30 kg, for LCDs from 10" to 30", adjustable length 600 - 850mm | E13: 77 | F13: =E13-(Содержание!$H$4*E13) -> 77 | G13: Новая модель
C14: LMA-UWM100 | D14: LCD wall mount, for VESA standard hole spacing (200x200/300x200/400x100/400x200), can be loaded by up to 100 kg | E14: 78.1 | F14: =E14-(Содержание!$H$4*E14) -> 78.1 | G14: Новая модель
D16: ***новые позиции выделены красным
D17: ***снижение цены выделено синим

Sheet Тепловизоры
A1: ТЕПЛОВИЗОРЫ GANZ и Low Light камеры
C4: Модель | D4: Описание | E4: Розница, USD | F4: Моя цена | G4: Комментарии
A5: PixelPro GXi тепловизоры
C6: ZN-TH1109VE-07-H | D6: H.264 IP тепловизор, 9Hz, разрешение 320х240 (масштабирование QCIF/D1), объектив 7.5мм F1.4, 42,1° гор., матрица 17мкм неохлаждаемый микроболометр на оксиде ванадия, спектральный диапазон 8-14мкм, чувствительность менее 50мK, BNC выход видео (настроечный), интерфейсы RS485, аудио вх./вых(G711), слот SD, питание PoE, 12VDC, встроенная видеоаналитика (расширяемая лицензия), работа при температуре от -40 до 50°C (холодный старт при 0°C), поставляется с кожухом | E6: 8753 | F6: =ROUNDUP(E6-(Содержание!$H$4*E6),0) -> 8753
C7: ZN-TH1109VE-16-H | D7: H.264 IP тепловизор, 9Hz, разрешение 320х240 (масштабирование QCIF/D1), объектив 16,7мм F1.2, 18,7° гор., матрица 17мкм неохлаждаемый микроболометр на оксиде ванадия, спектральный диапазон 8-14мкм, чувствительность менее 50мK, BNC выход видео (настроечный), интерфейсы RS485, аудио вх./вых(G711), слот SD, питание PoE, 12VDC, встроенная видеоаналитика (расширяемая лицензия), работа при температуре от -40 до 50°C (холодный старт при 0°C), поставляется с кожухом | E7: 9857 | F7: =ROUNDUP(E7-(Содержание!$H$4*E7),0) -> 9857
C8: ZN-TH1109VE-25-H | D8: H.264 IP тепловизор, 9Hz, разрешение 320х240 (масштабирование QCIF/D1), объектив 25мм F1.2, 12,4° гор., матрица 17мкм неохлаждаемый микроболометр на оксиде ванадия, спектральный диапазон 8-14мкм, чувствительность менее 50мK, BNC выход видео (настроечный), интерфейсы RS485, аудио вх./вых(G711), слот SD, питание PoE, 12VDC, встроенная видеоаналитика (расширяемая лицензия), работа при температуре от -40 до 50°C (холодный старт при 0°C), поставляется с кожухом | E8: 9857 | F8: =ROUNDUP(E8-(Содержание!$H$4*E8),0) -> 9857
C9: ZN-TH1109VE-35-H | D9: H.264 IP тепловизор, 9Hz, разрешение 320х240 (масштабирование QCIF/D1), объектив 35мм F1.2, 8,9° гор., матрица 17мкм неохлаждаемый микроболометр на оксиде ванадия, спектральный диапазон 8-14мкм, чувствительность менее 50мK, BNC выход видео (настроечный), интерфейсы RS485, аудио вх./вых(G711), слот SD, питание PoE, 12VDC, встроенная видеоаналитика (расширяемая лицензия), работа при температуре от -40 до 50°C (холодный старт при 0°C), поставляется с кожухом | E9: 11360 | F9: =ROUNDUP(E9-(Содержание!$H$4*E9),0) -> 11360
C10: ZN-TH1109VE-50-H | D10: H.264 IP тепловизор, 9Hz, разрешение 320х240 (масштабирование QCIF/D1), объектив 50мм F1.2, 6,2° гор., матрица 17мкм неохлаждаемый микроболометр на оксиде ванадия, спектральный диапазон 8-14мкм, чувствительность менее 50мK, BNC выход видео (настроечный), интерфейсы RS485, аудио вх./вых(G711), слот SD, питание PoE, 12VDC, встроенная видеоаналитика (расширяемая лицензия), работа при температуре от -40 до 50°C (холодный старт при 0°C), поставляется с кожухом | E10: 12079 | F10: =ROUNDUP(E10-(Содержание!$H$4*E10),0) -> 12079
A11: GANZ Thermal серия
C12: ZNT6-HBT1FN20-P | D12: H.264 IP тепловизор, 9Hz, разрешение 320х240 , объектив 7.5мм F1.2, 40° гор., матрица 17мкм неохлаждаемый микроболометр на оксиде ванадия, спектральный диапазон 8-14мкм, чувствительность менее 50мK, BNC выход видео, интерфейс RS485, Pelco-D, питание PoE, 12VDC/24VAC, IP66, работа при температуре от -40 до 50°C, Onvif | E12: 4849 | F12: =ROUNDUP(E12-(Содержание!$H$4*E12),0) -> 4849 | G12: Цена выросла
C13: ZNT6-HBT1FN29-P | D13: H.264 IP тепловизор, 9Hz, разрешение 320х240 , объектив 13мм F1.0, 24° гор., матрица 17мкм неохлаждаемый микроболометр на оксиде ванадия, спектральный диапазон 8-14мкм, чувствительность менее 50мK, BNC выход видео, интерфейс RS485, Pelco-D, питание PoE, 12VDC/24VAC, IP66, работа при температуре от -40 до 50°C, Onvif | E13: 5120 | F13: =ROUNDUP(E13-(Содержание!$H$4*E13),0) -> 5120 | G13: Цена выросла
C14: ZNT6-HBT1FN23-P | D14: H.264 IP тепловизор, 9Hz, разрешение 320х240 , объектив 19мм F1.1, 16° гор., матрица 17мкм неохлаждаемый микроболометр на оксиде ванадия, спектральный диапазон 8-14мкм, чувствительность менее 50мK, BNC выход видео, интерфейс RS485, Pelco-D, питание PoE, 12VDC/24VAC, IP66, работа при температуре от -40 до 50°C, Onvif | E14: 5235 | F14: =ROUNDUP(E14-(Содержание!$H$4*E14),0) -> 5235 | G14: Цена выросла
C15: ZNT6-HBT1FN25-P | D15: H.264 IP тепловизор, 9Hz, разрешение 320х240 , объектив 35мм F1.2, 9° гор., матрица 17мкм неохлаждаемый микроболометр на оксиде ванадия, спектральный диапазон 8-14мкм, чувствительность менее 50мK, BNC выход видео, интерфейс RS485, Pelco-D, питание PoE, 12VDC/24VAC, IP66, работа при температуре от -40 до 50°C, Onvif | E15: 6350 | F15: =ROUNDUP(E15-(Содержание!$H$4*E15),0) -> 6350 | G15: Цена выросла
C16: ZNT6-HBT1FN26-P | D16: H.264 IP тепловизор, 9Hz, разрешение 320х240 , объектив 50мм F1.2, 6° гор., матрица 17мкм неохлаждаемый микроболометр на оксиде ванадия, спектральный диапазон 8-14мкм, чувствительность менее 50мK, BNC выход видео, интерфейс RS485, Pelco-D, питание PoE, 12VDC/24VAC, IP66, работа при температуре от -40 до 50°C, Onvif | E16: 7920 | F16: =ROUNDUP(E16-(Содержание!$H$4*E16),0) -> 7920 | G16: Цена выросла
C17: ZNT6-PBT1FN20-P | D17: H.264 PTZ IP тепловизор, 9Hz, разрешение 320х240 , объектив 7.5мм F1.2, 40° гор., матрица 17мкм неохлаждаемый микроболометр на оксиде ванадия, спектральный диапазон 8-14мкм, чувствительность менее 50мK, пан.360°, накл. ±120°, 30°/с ±2,5°, BNC выход видео, интерфейс RS485, Pelco-D, питание PoE, 12VDC/24VAC, IP66, работа при температуре от -20 до 50°C, внутренняя память 2ГБ, Onvif | E17: 7467 | F17: =ROUNDUP(E17-(Содержание!$H$4*E17),0) -> 7467 | G17: Цена выросла
C18: ZNT6-PBT1FN29-P | D18: H.264 PTZ IP тепловизор, 9Hz, разрешение 320х240 , объектив 13мм F1.0, 24° гор., матрица 17мкм неохлаждаемый микроболометр на оксиде ванадия, спектральный диапазон 8-14мкм, чувствительность менее 50мK, пан.360°, накл. ±120°, 30°/с ±2,5°, BNC выход видео, интерфейс RS485, Pelco-D, питание PoE, 12VDC/24VAC, IP66, работа при температуре от -20 до 50°C, внутренняя память 2ГБ, Onvif | E18: 7685 | F18: =ROUNDUP(E18-(Содержание!$H$4*E18),0) -> 7685 | G18: Цена выросла
C19: ZNT6-PBT1FN23-P | D19: H.264 PTZ IP тепловизор, 9Hz, разрешение 320х240 , объектив 19мм F1.1, 16° гор., матрица 17мкм неохлаждаемый микроболометр на оксиде ванадия, спектральный диапазон 8-14мкм, чувствительность менее 50мK, пан.360°, накл. ±120°, 30°/с ±2,5°, BNC выход видео, интерфейс RS485, Pelco-D, питание PoE, 12VDC/24VAC, IP66, работа при температуре от -20 до 50°C, внутренняя память 2ГБ, Onvif | E19: 7894 | F19: =ROUNDUP(E19-(Содержание!$H$4*E19),0) -> 7894 | G19: Цена выросла
C20: ZNT6-PBT1FN25-P | D20: H.264 PTZ IP тепловизор, 9Hz, разрешение 320х240 , объектив 35мм F1.2, 9° гор., матрица 17мкм неохлаждаемый микроболометр на оксиде ванадия, спектральный диапазон 8-14мкм, чувствительность менее 50мK, пан.360°, накл. ±120°, 30°/с ±2,5°, BNC выход видео, интерфейс RS485, Pelco-D, питание PoE, 12VDC/24VAC, IP66, работа при температуре от -20 до 50°C, внутренняя память 2ГБ, Onvif | E20: 8980 | F20: =ROUNDUP(E20-(Содержание!$H$4*E20),0) -> 8980 | G20: Цена выросла
C21: ZNT6-HBT2FN32-P | D21: H.264 IP тепловизор, 9Hz, разрешение 640х480 , объектив 7.5мм F1.4, 90° гор., матрица 17мкм неохлаждаемый микроболометр на оксиде ванадия, спектральный диапазон 8-14мкм, чувствительность менее 50мK, BNC выход видео, интерфейс RS485, Pelco-D, питание PoE, 12VDC/24VAC, IP66, работа при температуре от -40 до 50°C, внутренняя память 2ГБ, Onvif | E21: 11000 | F21: =ROUNDUP(E21-(Содержание!$H$4*E21),0) -> 11000 | G21: Цена выросла
C22: ZNT6-HBT2FN21-P | D22: H.264 IP тепловизор, 9Hz, разрешение 640х480 , объектив 14.25мм F1.2, 44° гор., матрица 17мкм неохлаждаемый микроболометр на оксиде ванадия, спектральный диапазон 8-14мкм, чувствительность менее 50мK, BNC выход видео, интерфейс RS485, Pelco-D, питание PoE, 12VDC/24VAC, IP66, работа при температуре от -40 до 50°C, внутренняя память 2ГБ, Onvif | E22: 10450 | F22: =ROUNDUP(E22-(Содержание!$H$4*E22),0) -> 10450 | G22: Цена выросла
C23: ZNT6-HBT2FN22-P | D23: H.264 IP тепловизор, 9Hz, разрешение 640х480 , объектив 16.7мм F1.2, 37° гор., матрица 17мкм неохлаждаемый микроболометр на оксиде ванадия, спектральный диапазон 8-14мкм, чувствительность менее 50мK, BNC выход видео, интерфейс RS485, Pelco-D, питание PoE, 12VDC/24VAC, IP66, работа при температуре от -40 до 50°C, внутренняя память 2ГБ, Onvif | E23: 10390 | F23: =ROUNDUP(E23-(Содержание!$H$4*E23),0) -> 10390 | G23: Цена выросла
C24: ZNT6-HBT2FN24-P | D24: H.264 IP тепловизор, 9Hz, разрешение 640х480 , объектив 25мм F1.2, 25° гор., матрица 17мкм неохлаждаемый микроболометр на оксиде ванадия, спектральный диапазон 8-14мкм, чувствительность менее 50мK, BNC выход видео, интерфейс RS485, Pelco-D, питание PoE, 12VDC/24VAC, IP66, работа при температуре от -40 до 50°C, внутренняя память 2ГБ, Onvif | E24: 10430 | F24: =ROUNDUP(E24-(Содержание!$H$4*E24),0) -> 10430 | G24: Цена выросла
C25: ZNT6-HBT2FN25-P | D25: H.264 IP тепловизор, 9Hz, разрешение 640х480 , объектив 35мм F1.2, 18° гор., матрица 17мкм неохлаждаемый микроболометр на оксиде ванадия, спектральный диапазон 8-14мкм, чувствительность менее 50мK, BNC выход видео, интерфейс RS485, Pelco-D, питание PoE, 12VDC/24VAC, IP66, работа при температуре от -40 до 50°C, внутренняя память 2ГБ, Onvif | E25: 10600 | F25: =ROUNDUP(E25-(Содержание!$H$4*E25),0) -> 10600 | G25: Цена выросла
C26: ZNT6-HBT2FN26-P | D26: H.264 IP тепловизор, 9Hz, разрешение 640х480 , объектив 50мм F1.2, 12° гор., матрица 17мкм неохлаждаемый микроболометр на оксиде ванадия, спектральный диапазон 8-14мкм, чувствительность менее 50мK, BNC выход видео, интерфейс RS485, Pelco-D, питание PoE, 12VDC/24VAC, IP66, работа при температуре от -40 до 50°C, внутренняя память 2ГБ, Onvif | E26: 12190 | F26: =ROUNDUP(E26-(Содержание!$H$4*E26),0) -> 12190 | G26: Цена выросла
C27: ZNT6-PBT2FN21-P | D27: H.264 PTZ IP тепловизор, 9Hz, разрешение 640х480 , объектив 14.25мм F1.2, 44° гор., матрица 17мкм неохлаждаемый микроболометр на оксиде ванадия, спектральный диапазон 8-14мкм, чувствительность менее 50мK, пан.360°, накл. ±120°, 30°/с ±2,5°, BNC выход видео, интерфейс RS485, Pelco-D, питание PoE, 12VDC/24VAC, IP66, работа при температуре от -20 до 50°C, внутренняя память 2ГБ, Onvif | E27: 13440 | F27: =ROUNDUP(E27-(Содержание!$H$4*E27),0) -> 13440 | G27: Цена выросла
C28: ZNT6-PBT2FN22-P | D28: H.264 PTZ IP тепловизор, 9Hz, разрешение 640х480 , объектив 16.7мм F1.2, 37° гор., матрица 17мкм неохлаждаемый микроболометр на оксиде ванадия, спектральный диапазон 8-14мкм, чувствительность менее 50мK, пан.360°, накл. ±120°, 30°/с ±2,5°, BNC выход видео, интерфейс RS485, Pelco-D, питание PoE, 12VDC/24VAC, IP66, работа при температуре от -20 до 50°C, внутренняя память 2ГБ, Onvif | E28: 13450 | F28: =ROUNDUP(E28-(Содержание!$H$4*E28),0) -> 13450 | G28: Цена выросла
C29: ZNT6-PBT2FN24-P | D29: H.264 PTZ IP тепловизор, 9Hz, разрешение 640х480 , объектив 25мм F1.2, 25° гор., матрица 17мкм неохлаждаемый микроболометр на оксиде ванадия, спектральный диапазон 8-14мкм, чувствительность менее 50мK, пан.360°, накл. ±120°, 30°/с ±2,5°, BNC выход видео, интерфейс RS485, Pelco-D, питание PoE, 12VDC/24VAC, IP66, работа при температуре от -20 до 50°C, внутренняя память 2ГБ, Onvif | E29: 13640 | F29: =ROUNDUP(E29-(Содержание!$H$4*E29),0) -> 13640 | G29: Цена выросла
C30: ZNT6-PBT2FN25-P | D30: H.264 PTZ IP тепловизор, 9Hz, разрешение 640х480 , объектив 35мм F1.2, 18° гор., матрица 17мкм неохлаждаемый микроболометр на оксиде ванадия, спектральный диапазон 8-14мкм, чувствительность менее 50мK, пан.360°, накл. ±120°, 30°/с ±2,5°, BNC выход видео, интерфейс RS485, Pelco-D, питание PoE, 12VDC/24VAC, IP66, работа при температуре от -20 до 50°C, внутренняя память 2ГБ, Onvif | E30: 13820 | F30: =ROUNDUP(E30-(Содержание!$H$4*E30),0) -> 13820 | G30: Цена выросла
C31: WB-1W | D31: Настенный кронштейн для ZNT6-Hxxx | E31: 140 | F31: =ROUNDUP(E31-(Содержание!$H$4*E31),0) -> 140
C32: JB-1W | D32: Потолочный кронштейн для ZNT6-Hxxx | E32: 166 | F32: =ROUNDUP(E32-(Содержание!$H$4*E32),0) -> 166
C33: WMK3-1W | D33: Настенный кронштейн для ZNT6-Pxxx | E33: 303 | F33: =ROUNDUP(E33-(Содержание!$H$4*E33),0) -> 303
A34: GANZ
C35: ZT-M320 | D35: Тепловизионный модуль, неохлаждаемый микроболометр, разрешение D1, 40mK NETD, 12VDC | E35: 17380 | F35: =ROUNDUP(E35-(Содержание!$H$4*E35),0) -> 17380 | G35: Новая модель
C36: ZT-M335 | D36: Тепловизионный модуль, неохлаждаемый микроболометр, разрешение D1, 40mK NETD, 12VDC | E36: 20768 | F36: =ROUNDUP(E36-(Содержание!$H$4*E36),0) -> 20768 | G36: Новая модель
C37: ZT-M360 | D37: Тепловизионный модуль, неохлаждаемый микроболометр, разрешение D1, 40mK NETD, 12VDC | E37: 23731 | F37: =ROUNDUP(E37-(Содержание!$H$4*E37),0) -> 23731 | G37: Новая модель
C38: ZT-M311T | D38: Тепловизионный модуль, неохлаждаемый микроболометр, разрешение D1, 40mK NETD, 12VDC | E38: 20768 | F38: =ROUNDUP(E38-(Содержание!$H$4*E38),0) -> 20768 | G38: Новая модель
C39: ZT-M319T | D39: Тепловизионный модуль, неохлаждаемый микроболометр, разрешение D1, 40mK NETD, 12VDC | E39: 20343 | F39: =ROUNDUP(E39-(Содержание!$H$4*E39),0) -> 20343 | G39: Новая модель
C40: ZT-M320-V | D40: Тепловизионный модуль, неохлаждаемый микроболометр, матрица 640х480, 40mK NETD, 12VDC | E40: 26268 | F40: =ROUNDUP(E40-(Содержание!$H$4*E40),0) -> 26268 | G40: Новая модель
C41: ZT-M335-V | D41: Тепловизионный модуль, неохлаждаемый микроболометр, матрица 640х480, 40mK NETD, 12VDC | E41: 29656 | F41: =ROUNDUP(E41-(Содержание!$H$4*E41),0) -> 29656 | G41: Новая модель
C42: ZT-M360-V | D42: Тепловизионный модуль, неохлаждаемый микроболометр, матрица 640х480, 40mK NETD, 12VDC | E42: 33895 | F42: =ROUNDUP(E42-(Содержание!$H$4*E42),0) -> 33895 | G42: Новая модель
C43: ZT-W320 | D43: Тепловизионная камера для уличной установки (IP66), 8-14µm, 9Hz, чувствительность - NETD : 40mK / F1.0, объектив 20мм, поле зрения по горизонтали - 27,8°, D1 разрешение при использовании оригинальной технологии масштабирования, дальность детекции движения человека - 459м, OSD меню, 12VDC, -35°C...+55°C | E43: 18172 | F43: =ROUNDUP(E43-(Содержание!$H$4*E43),0) -> 18172
C44: ZT-W335 | D44: Тепловизионная камера для уличной установки (IP66), 8-14µm, 9Hz, чувствительность - NETD : 40mK / F1.0, объектив 35мм, поле зрения по горизонтали - 15,7°, D1 разрешение при использовании оригинальной технологии масштабирования, дальность детекции движения человека - 803м, OSD меню, 12VDC, -35°C...+55°C | E44: 19866 | F44: =ROUNDUP(E44-(Содержание!$H$4*E44),0) -> 19866
C45: ZT-W320-IP | D45: Тепловизионная IP камера для уличной установки (IP66), 8-14µm, 9Hz, чувствительность - NETD : 40mK / F1.0, объектив 20мм, поле зрения по горизонтали - 27,8°, D1 разрешение при использовании оригинальной технологии масштабирования, дальность детекции движения человека - 459м, OSD меню, 12VDC, -35°C...+55°C | E45: 18172 | F45: =ROUNDUP(E45-(Содержание!$H$4*E45),0) -> 18172
C46: ZT-W335-IP | D46: Тепловизионная IP камера для уличной установки (IP66), 8-14µm, 9Hz, чувствительность - NETD : 40mK / F1.0, объектив 35мм, поле зрения по горизонтали - 15,7°, D1 разрешение при использовании оригинальной технологии масштабирования, дальность детекции движения человека - 803м, OSD меню, 12VDC, -35°C...+55°C | E46: 19866 | F46: =ROUNDUP(E46-(Содержание!$H$4*E46),0) -> 19866
C47: ZT-W311T | D47: Тепловизионная камера для уличной установки (IP66), 8-14µm, 9Hz, чувствительность - NETD : 40mK / F1.0, объектив 11мм, D1 разрешение при использовании оригинальной технологии масштабирования, функция измерения температуры, OSD меню, 12VDC, -35°C...+55°C | E47: 0 | F47: =ROUNDUP(E47-(Содержание!$H$4*E47),0) -> 0
C48: ZT-W319T | D48: Тепловизионная камера для уличной установки (IP66), 8-14µm, 9Hz, чувствительность - NETD : 40mK / F1.0, объектив 19мм, D1 разрешение при использовании оригинальной технологии масштабирования, функция измерения температуры, OSD меню, 12VDC, -35°C...+55°C | E48: 21691 | F48: =ROUNDUP(E48-(Содержание!$H$4*E48),0) -> 21691
C49: ZT-W311T-IP | D49: Тепловизионная IP камера для уличной установки (IP66), 8-14µm, 9Hz, чувствительность - NETD : 40mK / F1.0, объектив 11мм, D1 разрешение при использовании оригинальной технологии масштабирования, функция измерения температуры, OSD меню, 12VDC, -35°C...+55°C | E49: 0 | F49: =ROUNDUP(E49-(Содержание!$H$4*E49),0) -> 0
C50: ZT-W319T-IP | D50: Тепловизионная IP камера для уличной установки (IP66), 8-14µm, 9Hz, чувствительность - NETD : 40mK / F1.0, объектив 19мм, D1 разрешение при использовании оригинальной технологии масштабирования, функция измерения температуры, OSD меню, 12VDC, -35°C...+55°C | E50: 21691 | F50: =ROUNDUP(E50-(Содержание!$H$4*E50),0) -> 21691
C51: ZT-W320-V | D51: Тепловизионная IP камера для уличной установки (IP66), 8-14µm, 9Hz, чувствительность - NETD : 40mK / F1.0, объектив 20мм, матрица 640х480 D1 разрешение при использовании оригинальной технологии масштабирования, OSD меню, 12VDC, -35°C...+55°C | E51: 24280 | F51: =ROUNDUP(E51-(Содержание!$H$4*E51),0) -> 24280
C52: ZT-W335-V | D52: Тепловизионная IP камера для уличной установки (IP66), 8-14µm, 9Hz, чувствительность - NETD : 40mK / F1.0, объектив 35мм, матрица 640х480 D1 разрешение при использовании оригинальной технологии масштабирования, OSD меню, 12VDC, -35°C...+55°C | E52: 27519 | F52: =ROUNDUP(E52-(Содержание!$H$4*E52),0) -> 27519
C53: ZT-PTS320 | D53: Тепловизионная PTZ камера для уличной установки (IP68), 8-14µm, 25 кадр./с, чувствительность - NETD : 40mK / F1.0, объектив 20мм, угол зрения по горизонтали - 27,8°, D1 разрешение при использовании оригинальной технологии масштабирования, дальность детекции движения человека - 459м, OSD меню, 12-24VDC/24VAC, -30°C...+55°C, возможность применения в морских условиях | E53: 28458.592 | F53: =ROUNDUP(E53-(Содержание!$H$4*E53),0) -> 28459
C54: ZT-PTS335 | D54: Тепловизионная PTZ камера для уличной установки (IP68), 8-14µm, 25 кадр./с, чувствительность - NETD : 40mK / F1.0, объектив 35мм, угол зрения по горизонтали - 15,7°, D1 разрешение при использовании оригинальной технологии масштабирования, дальность детекции движения человека - 803м, OSD меню, 12-24VDC/24VAC, -30°C...+55°C, возможность применения в морских условиях | E54: 30696.316 | F54: =ROUNDUP(E54-(Содержание!$H$4*E54),0) -> 30697
C55: ZT-PTS320-IP | D55: Тепловизионная IP PTZ камера для уличной установки (IP68), 8-14µm, 25 кадр./с, чувствительность - NETD : 40mK / F1.0, объектив 20мм, угол зрения по горизонтали - 27,8°, D1 разрешение при использовании оригинальной технологии масштабирования, дальность детекции движения человека - 459м, OSD меню, 12-24VDC/24VAC, -30°C...+55°C, возможность применения в морских условиях | E55: 26723.312 | F55: =ROUNDUP(E55-(Содержание!$H$4*E55),0) -> 26724
C56: ZT-PTS335-IP | D56: Тепловизионная IP PTZ камера для уличной установки (IP68), 8-14µm, 25 кадр./с, чувствительность - NETD : 40mK / F1.0, объектив 35мм, угол зрения по горизонтали - 15,7°, D1 разрешение при использовании оригинальной технологии масштабирования, дальность детекции движения человека - 803м, OSD меню, 12-24VDC/24VAC, -30°C...+55°C, возможность применения в морских условиях | E56: 30713.76 | F56: =ROUNDUP(E56-(Содержание!$H$4*E56),0) -> 30714
C57: ZT-PTS311T | D57: Тепловизионная PTZ камера для уличной установки (IP68), 8-14µm, 25 кадр./с, чувствительность - NETD : 40mK / F1.0, объектив 11мм, D1 разрешение при использовании оригинальной технологии масштабирования, функция измерения температуры, OSD меню, 12-24VDC/24VAC, -30°C...+55°C, возможность применения в морских условиях | E57: 0 | F57: =ROUNDUP(E57-(Содержание!$H$4*E57),0) -> 0
C58: ZT-PTS319T | D58: Тепловизионная PTZ камера для уличной установки (IP68), 8-14µm, 25 кадр./с, чувствительность - NETD : 40mK / F1.0, объектив 19мм, дальность детекции движения человека - 990м, D1 разрешение при использовании оригинальной технологии масштабирования, функция измерения температуры, OSD меню, 12-24VDC/24VAC, -30°C...+55°C, возможность применения в морских условиях | E58: 40283.936 | F58: =ROUNDUP(E58-(Содержание!$H$4*E58),0) -> 40284
C59: ZT-PTS311T-IP | D59: Тепловизионная IP PTZ камера для уличной установки (IP68), 8-14µm, 25 кадр./с, чувствительность - NETD : 40mK / F1.0, объектив 11мм, D1 разрешение при использовании оригинальной технологии масштабирования, функция измерения температуры, OSD меню, 12-24VDC/24VAC, -30°C...+55°C, возможность применения в морских условиях | E59: 0 | F59: =ROUNDUP(E59-(Содержание!$H$4*E59),0) -> 0
C60: ZT-PTS319T-IP | D60: Тепловизионная IP PTZ камера для уличной установки (IP68), 8-14µm, 25 кадр./с, чувствительность - NETD : 40mK / F1.0, объектив 19мм, дальность детекции движения человека - 990м, D1 разрешение при использовании оригинальной технологии масштабирования, функция измерения температуры, OSD меню, 12-24VDC/24VAC, -30°C...+55°C, возможность применения в морских условиях | E60: 40283.936 | F60: =ROUNDUP(E60-(Содержание!$H$4*E60),0) -> 40284
C61: ZT-PTS320-V | D61: Тепловизионная PTZ камера для уличной установки (IP68), 8-14µm, 25 кадр./с, чувствительность - NETD : 40mK / F1.0, объектив 20мм, матрица 640х480 D1 разрешение при использовании оригинальной технологии масштабирования, OSD меню, 12-24VDC/24VAC, -30°C...+55°C, возможность применения в морских условиях | E61: 40283.936 | F61: =ROUNDUP(E61-(Содержание!$H$4*E61),0) -> 40284
C62: ZT-PTS335-V | D62: Тепловизионная PTZ камера для уличной установки (IP68), 8-14µm, 25 кадр./с, чувствительность - NETD : 40mK / F1.0, объектив 35мм, матрица 640х480 D1 разрешение при использовании оригинальной технологии масштабирования, OSD меню, 12-24VDC/24VAC, -30°C...+55°C, возможность применения в морских условиях | E62: 46264.064 | F62: =ROUNDUP(E62-(Содержание!$H$4*E62),0) -> 46265
C63: ZT-PTS320-V-IP | D63: Тепловизионная IP PTZ камера для уличной установки (IP68), 8-14µm, 25 кадр./с, чувствительность - NETD : 40mK / F1.0, объектив 20мм, матрица 640х480 D1 разрешение при использовании оригинальной технологии масштабирования, OSD меню, 12-24VDC/24VAC, -30°C...+55°C, возможность применения в морских условиях | E63: 40283.936 | F63: =ROUNDUP(E63-(Содержание!$H$4*E63),0) -> 40284
C64: ZT-PTS335-V-IP | D64: Тепловизионная IP PTZ камера для уличной установки (IP68), 8-14µm, 25 кадр./с, чувствительность - NETD : 40mK / F1.0, объектив 35мм, матрица 640х480 D1 разрешение при использовании оригинальной технологии масштабирования, OSD меню, 12-24VDC/24VAC, -30°C...+55°C, возможность применения в морских условиях | E64: 46264.064 | F64: =ROUNDUP(E64-(Содержание!$H$4*E64),0) -> 46265
C65: ZT-PTD320-36XP | D65: Комбинированная x36-аналоговая камера c тепловизионным модулем, поворотная уличная система, IP68, разрешение 384x288 с программным масштабированием до 720х576, диапазон 8-14 мкм, 9Hz фокус 20мм. Дальность детекции движения человека - 459м. Полный поворот на 360° по горизонтали. Охрана объектов в полной темноте и в любых погодных условиях до -30°С. | E65: 40601.88 | F65: =ROUNDUP(E65-(Содержание!$H$4*E65),0) -> 40602
C66: ZT-PTD335-36XP | D66: Комбинированная x36-аналоговая камера c тепловизионным модулем, поворотная уличная система, IP68, разрешение 384x288 с программным масштабированием до 720х576, диапазон 8-14 мкм, 9Hz фокус 35мм. Дальность детекции движения человека - до 1376м. Полный поворот на 360° по горизонтали. Охрана объектов в полной темноте и в любых погодных условиях до -30°С. | E66: 45307.68 | F66: =ROUNDUP(E66-(Содержание!$H$4*E66),0) -> 45308
C67: ZT-PTD360-36X(N/P) | D67: Комбинированная IP 36x D1 камера c тепловизионным модулем,, поворотная уличная система, IP68, разрешение 384x288 с программным масштабированием до 720х576, диапазон 8-14 мкм, 9Hz фокус 60мм. Полный поворот на 360° по горизонтали. Охрана объектов в полной темноте и в любых погодных условиях до -30°С. | E67: 57185 | F67: =ROUNDUP(E67-(Содержание!$H$4*E67),0) -> 57185
C68: ZT-PTD320-36X(N/P)-IP | D68: Комбинированная IP 36x D1 камера c тепловизионным модулем, поворотная уличная система, IP68, разрешение 384x288 с программным масштабированием до 720х576, диапазон 8-14 мкм, 9Hz фокус 20мм. Дальность детекции движения человека - 459м. Полный поворот на 360° по горизонтали. Охрана объектов в полной темноте и в любых погодных условиях до -30°С. | E68: 40245 | F68: =ROUNDUP(E68-(Содержание!$H$4*E68),0) -> 40245
C69: ZT-PTD335-36X(N/P)-IP | D69: Комбинированная IP 36x D1 камера c тепловизионным модулем, поворотная уличная система, IP68, разрешение 384x288 с программным масштабированием до 720х576, диапазон 8-14 мкм, 9Hz фокус 35мм. Дальность детекции движения человека - до 1376м. Полный поворот на 360° по горизонтали. Охрана объектов в полной темноте и в любых погодных условиях до -30°С. | E69: 44909 | F69: =ROUNDUP(E69-(Содержание!$H$4*E69),0) -> 44909
C70: ZT-PTD360-36X(N/P)-IP | D70: Комбинированная IP 36x D1 камера c тепловизионным модулем, поворотная уличная система, IP68, разрешение 384x288 с программным масштабированием до 720х576, диапазон 8-14 мкм, 9Hz фокус 60мм. Полный поворот на 360° по горизонтали. Охрана объектов в полной темноте и в любых погодных условиях до -30°С. | E70: 57185 | F70: =ROUNDUP(E70-(Содержание!$H$4*E70),0) -> 57185
C71: ZT-PTD311T-30X(N/P) | D71: Комбинированная x30-аналоговая камера c тепловизионным модулем, поворотная уличная система, IP68, разрешение 384x288 с программным масштабированием до 720х576, диапазон 8-14 мкм, 9Hz фокус 11мм. Полный поворот на 360° по горизонтали, функция измерения температуры. Охрана объектов в полной темноте и в любых погодных условиях до -30°С. | E71: 76252 | F71: =ROUNDUP(E71-(Содержание!$H$4*E71),0) -> 76252
C72: ZT-PTD319T-30X(N/P) | D72: Комбинированная x30-аналоговая камера c тепловизионным модулем, поворотная уличная система, IP68, разрешение 384x288 с программным масштабированием до 720х576, диапазон 8-14 мкм, 9Hz объектив 19мм, дальность детекции движения человека - 990м. Полный поворот на 360° по горизонтали, функция измерения температуры. Охрана объектов в полной темноте и в любых погодных условиях до -30°С. | E72: 70312 | F72: =ROUNDUP(E72-(Содержание!$H$4*E72),0) -> 70312
C73: ZT-PTD311T-30X(N/P)-IP | D73: Комбинированная x30-аналоговая камера c тепловизионным модулем, поворотная уличная система, IP68, разрешение 384x288 с программным масштабированием до 720х576, диапазон 8-14 мкм, 9Hz фокус 11мм. Полный поворот на 360° по горизонтали. Охрана объектов в полной темноте и в любых погодных условиях до -30°С. | E73: 0 | F73: =ROUNDUP(E73-(Содержание!$H$4*E73),0) -> 0
C74: ZT-PTD319T-30X(N/P)-IP | D74: Комбинированная IP 30x D1 камера c тепловизионным модулем, поворотная уличная система, IP68, разрешение 384x288 с программным масштабированием до 720х576, диапазон 8-14 мкм, 9Hz объектив 19мм, дальность детекции движения человека - 990м. Полный поворот на 360° по горизонтали, функция измерения температуры. Охрана объектов в полной темноте и в любых погодных условиях до -30°С. | E74: 70312 | F74: =ROUNDUP(E74-(Содержание!$H$4*E74),0) -> 70312
C75: ZT-PTD320V-30X(N/P)-IP | D75: Комбинированная IP 30x D1 камера c тепловизионным модулем, поворотная уличная система, IP68, разрешение 640x480 с программным масштабированием до 720х576, диапазон 8-14 мкм, 9Hz фокус 20мм. Дальность детекции движения человека - 459м. Полный поворот на 360° по горизонтали. Охрана объектов в полной темноте и в любых погодных условиях до -30°С. | E75: 71588 | F75: =ROUNDUP(E75-(Содержание!$H$4*E75),0) -> 71588
C76: ZT-PTD335V-30X(N/P)-IP | D76: Комбинированная IP 30x D1 камера c тепловизионным модулем, поворотная уличная система, IP68, разрешение 640x480 с программным масштабированием до 720х576, диапазон 8-14 мкм, 9Hz фокус 35мм. Дальность детекции движения человека - до 1376м. Полный поворот на 360° по горизонтали. Охрана объектов в полной темноте и в любых погодных условиях до -30°С. | E76: 79640 | F76: =ROUNDUP(E76-(Содержание!$H$4*E76),0) -> 79640
C77: ZT-PTD360V-30X(N/P)-IP | D77: Комбинированная IP 36x D1 камера c тепловизионным модулем, поворотная уличная система, IP68, разрешение 640x480 с программным масштабированием до 720х576, диапазон 8-14 мкм, 9Hz фокус 60мм. Полный поворот на 360° по горизонтали. Охрана объектов в полной темноте и в любых погодных условиях до -30°С. | E77: 88953 | F77: =ROUNDUP(E77-(Содержание!$H$4*E77),0) -> 88953
C78: ZT-WD307P | D78: Тепловизор с аналоговой камерой 700ТВЛ, 0,005Lux, для уличной установки (IP66), тепловизионный модуль 384x288 с программным масштабированием до 720х576, 8-14µm, 9Hz, чувствительность - NETD : 40mK / F1.0, объектив 7мм, дальность детекции движения человека - 370м, OSD меню, 12VDC, -35°C...+55°C *поле зрения аналоговой и тепловизионной камер совпадает | E78: 11014 | F78: =ROUNDUP(E78-(Содержание!$H$4*E78),0) -> 11014
C79: ZT-WD319P | D79: Тепловизор с аналоговой камерой 700ТВЛ, 0,005Lux, для уличной установки (IP66), тепловизионный модуль 384x288 с программным масштабированием до 720х576, 8-14µm, 9Hz, чувствительность - NETD : 40mK / F1.0, объектив 19мм, дальность детекции движения человека - 990м, OSD меню, 12VDC, -35°C...+55°C *поле зрения аналоговой и тепловизионной камер совпадает | E79: 12291 | F79: =ROUNDUP(E79-(Содержание!$H$4*E79),0) -> 12291
C80: ZT-WD335P | D80: Тепловизор с аналоговой камерой 700ТВЛ, 0,005Lux, для уличной установки (IP66), тепловизионный модуль 384x288 с программным масштабированием до 720х576, 8-14µm, 9Hz, чувствительность - NETD : 40mK / F1.0, объектив 35мм, дальность детекции движения человека - 1620м, OSD меню, 12VDC, -35°C...+55°C *поле зрения аналоговой и тепловизионной камер совпадает | E80: 13977 | F80: =ROUNDUP(E80-(Содержание!$H$4*E80),0) -> 13977
C81: ZT-WD307P-IP | D81: Тепловизор с аналоговой камерой 700ТВЛ 0,005Lux, IP версия, для уличной установки (IP66), тепловизионный модуль 384x288 с программным масштабированием до 720х576, 8-14µm, 9Hz, чувствительность - NETD : 40mK / F1.0, объектив 7мм, дальность детекции движения человека - 370м, OSD меню, 12VDC, -35°C...+55°C *поле зрения аналоговой и тепловизионной камер совпадает | E81: 8418 | F81: =ROUNDUP(E81-(Содержание!$H$4*E81),0) -> 8418
C82: ZT-WD319P-IP | D82: Тепловизор с аналоговой камерой 700ТВЛ, 0,005Lux, IP версия, для уличной установки (IP66), тепловизионный модуль 384x288 с программным масштабированием до 720х576, 8-14µm, 9Hz, чувствительность - NETD : 40mK / F1.0, объектив 19мм, дальность детекции движения человека - 990м, OSD меню, 12VDC, -35°C...+55°C *поле зрения аналоговой и тепловизионной камер совпадает | E82: 11396 | F82: =ROUNDUP(E82-(Содержание!$H$4*E82),0) -> 11396
C83: ZT-WD335P-IP | D83: Тепловизор с аналоговой камерой 700ТВЛ, 0,005Lux, IP версия, для уличной установки (IP66), тепловизионный модуль 384x288 с программным масштабированием до 720х576, 8-14µm, 9Hz, чувствительность - NETD : 40mK / F1.0, объектив 35мм, дальность детекции движения человека - 1620м, OSD меню, 12VDC, -35°C...+55°C *поле зрения аналоговой и тепловизионной камер совпадает | E83: 12320 | F83: =ROUNDUP(E83-(Содержание!$H$4*E83),0) -> 12320
A84: Low Light камеры
C85: SSC-9600 | D85: 2 Мегапиксельная CS-Mount цветная камера, сверх высокая чувствительность - Color Night Vision, день/ночь переключение, матрица 2/3" Progressive Scan CMOS, 0.005 lux, WDR, DNR, DFOG, SDI / BNC Out, 650g | E85: 15750 | F85: =ROUNDUP(E85-(Содержание!$H$4*E85),0) -> 15750
C86: KC-2000 | D86: HD, CS-Mount цветная камера, сверх высокая чувствительность - Color Night Vision, 2/3" CMOS, в цвете 0.005 lux , SD-card slot, HDMI-out, интегрированный микрофон, DFOG, DNR, Mic-In, Audio-Out, 1.1kg | E86: 65000 | F86: =ROUNDUP(E86-(Содержание!$H$4*E86),0) -> 65000
A87: Серия тепловизоров Genstar IP
C88: ZNT8-BA1F33 | D88: H.264 IP тепловизор, 25Hz, разрешение 420х315 , объектив 8мм, 75° гор., матрица 25мкм неохлаждаемый микроболометр, 8-14мкм, NETD 50мK, BNC, Ethernet, аудио и тревожные вх/вых, питание PoE / 12VDC, IP66, работа при температуре от -40 до 50°C, Onvif, RTSP | E88: 5900 | F88: =ROUNDUP(E88-(Содержание!$H$4*E88),0) -> 5900
C89: ZNT8-BA1F30 | D89: H.264 IP тепловизор, 25Hz, разрешение 420х315 , объектив 15мм, 40° гор., матрица 25мкм неохлаждаемый микроболометр, 8-14мкм, NETD 50мK, BNC, Ethernet, аудио и тревожные вх/вых, питание PoE / 12VDC, IP66, работа при температуре от -40 до 50°C, Onvif, RTSP | E89: 6350 | F89: =ROUNDUP(E89-(Содержание!$H$4*E89),0) -> 6350
C90: ZNT8-BA1F24 | D90: H.264 IP тепловизор, 25Hz, разрешение 420х315 , объектив 25мм, 24° гор., матрица 25мкм неохлаждаемый микроболометр, 8-14мкм, NETD 50мK, BNC, Ethernet, аудио и тревожные вх/вых, питание PoE / 12VDC, IP66, работа при температуре от -40 до 50°C, Onvif, RTSP | E90: 6450 | F90: =ROUNDUP(E90-(Содержание!$H$4*E90),0) -> 6450
C91: ZNT8-BA1F25 | D91: H.264 IP тепловизор, 25Hz, разрешение 420х315 , объектив 35мм, 17° гор., матрица 25мкм неохлаждаемый микроболометр, 8-14мкм, NETD 50мK, BNC, Ethernet, аудио и тревожные вх/вых, питание PoE / 12VDC, IP66, работа при температуре от -40 до 50°C, Onvif, RTSP | E91: 7100 | F91: =ROUNDUP(E91-(Содержание!$H$4*E91),0) -> 7100
C92: ZNT8-BA1F26 | D92: H.264 IP тепловизор, 25Hz, разрешение 420х315 , объектив 50мм, 12° гор., матрица 25мкм неохлаждаемый микроболометр, 8-14мкм, NETD 50мK, BNC, Ethernet, аудио и тревожные вх/вых, питание PoE / 12VDC, IP66, работа при температуре от -40 до 50°C, Onvif, RTSP | E92: 7450 | F92: =ROUNDUP(E92-(Содержание!$H$4*E92),0) -> 7450
C93: ZNT8-BA1F33-T | D93: ZNT8-BA1F33 с функцией мониторинга температуры: • Несколько точек измерения температуры в кадре • Значения температуры: низшая, высшая, температура в точке, • Тревоги: изменение температуры, превышение температуры, реле | E93: 6230 | F93: =ROUNDUP(E93-(Содержание!$H$4*E93),0) -> 6230
C94: ZNT8-BA1F30-T | D94: ZNT8-BA1F30 с функцией мониторинга температуры: • Несколько точек измерения температуры в кадре • Значения температуры: низшая, высшая, температура в точке, средняя температура в области и по всему кадру • Тревоги: изменение температуры, превышение температуры, реле | E94: 6680 | F94: =ROUNDUP(E94-(Содержание!$H$4*E94),0) -> 6680
C95: ZNT8-BA1F24-T | D95: ZNT8-BA1F24 с функцией мониторинга температуры: • Несколько точек измерения температуры в кадре • Значения температуры: низшая, высшая, температура в точке, средняя температура в области и по всему кадру • Тревоги: изменение температуры, превышение температуры, реле | E95: 6780 | F95: =ROUNDUP(E95-(Содержание!$H$4*E95),0) -> 6780
C96: ZNT8-BA1F25-T | D96: ZNT8-BA1F25 с функцией мониторинга температуры: • Несколько точек измерения температуры в кадре • Значения температуры: низшая, высшая, температура в точке, средняя температура в области и по всему кадру • Тревоги: изменение температуры, превышение температуры, реле | E96: 7430 | F96: =ROUNDUP(E96-(Содержание!$H$4*E96),0) -> 7430
C97: ZNT8-BA1F26-T | D97: ZNT8-BA1F26 с функцией мониторинга температуры: • Несколько точек измерения температуры в кадре • Значения температуры: низшая, высшая, температура в точке, средняя температура в области и по всему кадру • Тревоги: изменение температуры, превышение температуры, реле | E97: 7780 | F97: =ROUNDUP(E97-(Содержание!$H$4*E97),0) -> 7780
C98: ZNT8-CA1F33 | D98: H.264 IP тепловизионный модуль, 25Hz, разрешение 420х315 , объектив 8мм, 75° гор., матрица 25мкм неохлаждаемый микроболометр, 8-14мкм, NETD 50мK, BNC, Ethernet, Onvif, RTSP | E98: 0 | F98: =ROUNDUP(E98-(Содержание!$H$4*E98),0) -> 0
C99: ZNT8-CA1F30 | D99: H.264 IP тепловизионный модуль, 25Hz, разрешение 420х315 , объектив 15мм, 40° гор., матрица 25мкм неохлаждаемый микроболометр, 8-14мкм, NETD 50мK, BNC, Ethernet, Onvif, RTSP | E99: 0 | F99: =ROUNDUP(E99-(Содержание!$H$4*E99),0) -> 0
C100: ZNT8-CA1F24 | D100: H.264 IP тепловизионный модуль, 25Hz, разрешение 420х315 , объектив 25мм, 24° гор., матрица 25мкм неохлаждаемый микроболометр, 8-14мкм, NETD 50мK, BNC, Ethernet, Onvif, RTSP | E100: 0 | F100: =ROUNDUP(E100-(Содержание!$H$4*E100),0) -> 0
C101: ZNT8-CA1F25 | D101: H.264 IP тепловизионный модуль, 25Hz, разрешение 420х315 , объектив 35мм, 17° гор., матрица 25мкм неохлаждаемый микроболометр, 8-14мкм, NETD 50мK, BNC, Ethernet, Onvif, RTSP | E101: 0 | F101: =ROUNDUP(E101-(Содержание!$H$4*E101),0) -> 0
C102: ZNT8-CA1F26 | D102: H.264 IP тепловизионный модуль, 25Hz, разрешение 420х315 , объектив 50мм, 12° гор., матрица 25мкм неохлаждаемый микроболометр, 8-14мкм, NETD 50мK, BNC, Ethernet, Onvif, RTSP | E102: 0 | F102: =ROUNDUP(E102-(Содержание!$H$4*E102),0) -> 0
C103: ZNT8-CA1F33-T | D103: ZNT8-CA1F33 с функцией мониторинга температуры | E103: 0 | F103: =ROUNDUP(E103-(Содержание!$H$4*E103),0) -> 0
C104: ZNT8-CA1F30-T | D104: ZNT8-CA1F30 с функцией мониторинга температуры | E104: 0 | F104: =ROUNDUP(E104-(Содержание!$H$4*E104),0) -> 0
C105: ZNT8-CA1F24-T | D105: ZNT8-CA1F24 с функцией мониторинга температуры | E105: 0 | F105: =ROUNDUP(E105-(Содержание!$H$4*E105),0) -> 0
C106: ZNT8-CA1F25-T | D106: ZNT8-CA1F25 с функцией мониторинга температуры | E106: 0 | F106: =ROUNDUP(E106-(Содержание!$H$4*E106),0) -> 0
C107: ZNT8-CA1F26-T | D107: ZNT8-CA1F26 с функцией мониторинга температуры | E107: 0 | F107: =ROUNDUP(E107-(Содержание!$H$4*E107),0) -> 0
C108: ZNT8-PC124-T | D108: Двухканальный тепловизор, разрешение 420х315 , 8-14um, разрешение на выходе D1/CIF, 50mK, поддержка различных режимов отображения тепла, система улучшения изображения, функция мониторинга температуры объектов в кадре. Канал видимого диапазона: 1/2.8" Sony COMS Sensor, 1920x1080/25fps(PAL); 1920x1080/30fps(NTSC), 22X ZOOM, ICR, DeFog, AWB, Pan:0°to 360°；Tilt -90°to 90°, Protocol Pelco-D, Bitrate 2400/4800/9600/19200 bps, DC9-DC36V , AC24V(Optional),-20℃ ~ +55℃, IP66 ,Onvif Profile S, 10Kg | E108: 11300 | F108: =ROUNDUP(E108-(Содержание!$H$4*E108),0) -> 11300
C109: ZNT8-PC125-T | D109: Двухканальный тепловизор, разрешение 420х315 , 8-14um, разрешение на выходе D1/CIF, 50mK, поддержка различных режимов отображения тепла, система улучшения изображения, функция мониторинга температуры объектов в кадре. Канал видимого диапазона: 1/2.8" Sony COMS Sensor, 1920x1080/25fps(PAL); 1920x1080/30fps(NTSC), 22X ZOOM, ICR, DeFog, AWB, Pan:0°to 360°；Tilt -90°to 90°, Protocol Pelco-D, Bitrate 2400/4800/9600/19200 bps, DC9-DC36V , AC24V(Optional),-20℃ ~ +55℃, IP66 ,Onvif Profile S, 10Kg | E109: 10800 | F109: =ROUNDUP(E109-(Содержание!$H$4*E109),0) -> 10800
C110: ZNT8-PC126-T | D110: Двухканальный тепловизор, разрешение 420х315 , 8-14um, разрешение на выходе D1/CIF, 50mK, поддержка различных режимов отображения тепла, система улучшения изображения, функция мониторинга температуры объектов в кадре. Канал видимого диапазона: 1/2.8" Sony COMS Sensor, 1920x1080/25fps(PAL); 1920x1080/30fps(NTSC), 22X ZOOM, ICR, DeFog, AWB, Pan:0°to 360°；Tilt -90°to 90°, Protocol Pelco-D, Bitrate 2400/4800/9600/19200 bps, DC9-DC36V , AC24V(Optional),-20℃ ~ +55℃, IP66 ,Onvif Profile S, 10Kg | E110: 11600 | F110: =ROUNDUP(E110-(Содержание!$H$4*E110),0) -> 11600
C111: ZNT8-PC135-T | D111: Двухканальный тепловизор, разрешение 420х315 , 8-14um, разрешение на выходе D1/CIF, 50mK, поддержка различных режимов отображения тепла, система улучшения изображения, функция мониторинга температуры объектов в кадре. Канал видимого диапазона: : 1/2.8" Sony COMS Sensor, 1920x1080/25fps(PAL); 1920x1080/30fps(NTSC); Super WDR >120dB, ICR,V-F Lens 10 ~320mm, Auto Iris(Optional), Pan:0°to 360°；Tilt -45°to 45°, Protocol Pelco-D,Bitrate 2400/4800/9600/19200 bps,DC9-DC36V ,AC24V(Optional),-20℃～+55℃, IP66, Onvif Profile S, 50Kg | E111: 43800 | F111: =ROUNDUP(E111-(Содержание!$H$4*E111),0) -> 43800
C112: ZNT8-PC134-T | D112: H.264 IP PTZ двухканальный тепловизор, 25Hz, разрешение 420х315 , объектив 75мм, 7.3° гор., матрица 25мкм неохлаждаемый микроболометр, 8-14мкм, NETD 50мK, Ethernet, и тревожные вх/вых, питание AC 24В, Pelco-D, IP66, работа при температуре от -40 до 50°C, Onvif, RTSP, функция мониторинга температуры объектов в кадре. Канал видимого диапазона: FullHD 1920x1080, 10-320мм 32x AF zoom, ICR, DeFog, AWB. | E112: 36063 | F112: =ROUNDUP(E112-(Содержание!$H$4*E112),0) -> 36063
C113: ZNT8-PC136-T | D113: H.264 IP PTZ двухканальный тепловизор, 25Hz, разрешение 420х315 , объектив 150мм, 3.7° гор., матрица 25мкм неохлаждаемый микроболометр, 8-14мкм, NETD 50мK, Ethernet, и тревожные вх/вых, питание AC 24В, Pelco-D, IP66, работа при температуре от -40 до 50°C, Onvif, RTSP, функция мониторинга температуры объектов в кадре. Канал видимого диапазона: FullHD 1920x1080, 10-320мм 32x AF zoom, ICR, DeFog, AWB. | E113: 73060 | F113: =ROUNDUP(E113-(Содержание!$H$4*E113),0) -> 73060
D115: ***новые позиции выделены красным
D116: ***снижение цены выделено синим

Sheet Кожухи и пр.
A1: Кожухи и другое оборудование
B2: Модель | C2: Описание | D2: Розница, USD | E2: Моя цена | F2: Комментарии
A3: Outdoor housings
B4: CHEB230 | C4: IP66, с козырьком и нагревателем, 230 VAC | D4: 182 | E4: =D4-(Содержание!$H$4*D4) -> 182 | F4: Цена выросла
B5: CHEB12/24 | C5: IP66, с козырьком и нагревателем, 12 VDC/24 VAC | D5: 182 | E5: =D5-(Содержание!$H$4*D5) -> 182 | F5: Цена выросла
B6: CHOV230-2 | C6: IP66, с козырьком и нагревателем, 230 VAC | D6: 194 | E6: =D6-(Содержание!$H$4*D6) -> 194 | F6: Цена выросла
B7: CHOV12/24-2 | C7: IP66, с козырьком и нагревателем, 12 VDC/24 VAC | D7: 194 | E7: =D7-(Содержание!$H$4*D7) -> 194 | F7: Цена выросла
B8: CHEG | C8: IP66, с козырьком и нагревателем, 230 VAC | D8: 254 | E8: =D8-(Содержание!$H$4*D8) -> 254 | F8: Цена выросла
A9: Accessories for outdoor housings
B10: WBJ | C10: Удлиненный внешний кронштейн для CHOV и CHEG | D10: 36 | E10: =D10-(Содержание!$H$4*D10) -> 36
B11: WBM | C11: Стандартный внешний кронштейн для CHEB и CHEM | D11: 36 | E11: =D11-(Содержание!$H$4*D11) -> 36
B12: WBOV | C12: Кронштейн для CHOV | D12: 48 | E12: =D12-(Содержание!$H$4*D12) -> 48
B13: WBOV/P | C13: WBOV с клеммной коробкой | D13: 218 | E13: =D13-(Содержание!$H$4*D13) -> 218 | F13: Цена выросла
B14: CP | C14: Панель крепления для WBM, WBJ и WBOV | D14: 50 | E14: =D14-(Содержание!$H$4*D14) -> 50
B15: CW | C15: Угловое крепление для WBM, WBJ и WBOV | D15: 69 | E15: =D15-(Содержание!$H$4*D15) -> 69
B16: SFP | C16: Крепление на шесте для WBM, WBJ и WBOV | D16: 66 | E16: =D16-(Содержание!$H$4*D16) -> 66
B17: CMP | C17: Удлинитель для CM4/5, MCM | D17: 40 | E17: =D17-(Содержание!$H$4*D17) -> 40
B18: HE/GB | C18: Клеммная коробка IP65 для кожухов CH | D18: 72 | E18: =D18-(Содержание!$H$4*D18) -> 72
B19: HEATER | C19: Нагреватель для кожухов CH (3 версии: 220 вольт, 24 или 12 вольт). При заказе следует указать тип кожуха и напряжение питания. | D19: 22 | E19: =D19-(Содержание!$H$4*D19) -> 22 | F19: Цена выросла
B20: CHEB/PSU12-2 | C20: Блок питания 12 вольт, 1 А для кожухов CHEB | D20: 63 | E20: =D20-(Содержание!$H$4*D20) -> 63
B21: CHEB/PSU24-2 | C21: Блок питания 24 вольт, 400 мА для кожухов CHEB | D21: 63 | E21: =D21-(Содержание!$H$4*D21) -> 63
B22: CHOV/PSU12-2 | C22: Блок питания 12 вольт, 1А для кожухов CHOV-2 | D22: 53 | E22: =D22-(Содержание!$H$4*D22) -> 53
B23: CHOV/PSU24-2 | C23: Блок питания 24 вольт, 400 мА для кожухов CHOV-2 | D23: 42 | E23: =D23-(Содержание!$H$4*D23) -> 42
A24: Vandal proof housing and accessories
B25: TPSC | C25: Вандалоустойчивый для потолочного монтажа | D25: 254 | E25: =D25-(Содержание!$H$4*D25) -> 254 | F25: Цена выросла
B26: TPSC/H230 | C26: Нагреватель для TPSC, 230VAC | D26: 37 | E26: =D26-(Содержание!$H$4*D26) -> 37
B27: TPSC/H12 | C27: Нагреватель для TPSC, 12VDC/24VAC | D27: 37 | E27: =D27-(Содержание!$H$4*D27) -> 37
B28: TPSC/PS12-2 | C28: Блок питания камеры для TPSC, 12VDC, 1 A | D28: 58 | E28: =D28-(Содержание!$H$4*D28) -> 58
B29: TPSC/PS24-2 | C29: Блок питания камеры для TPSC, 24VDC, 400 мА | D29: 58 | E29: =D29-(Содержание!$H$4*D29) -> 58
B30: TPSK-2 | C30: Вандалоустойчивый для потолочного монтажа | D30: 448 | E30: =D30-(Содержание!$H$4*D30) -> 448 | F30: Цена выросла
B31: TPSK/PS12-2 | C31: Блок питания камеры для TPSK-2, 12VDC, 1 А | D31: 54 | E31: =D31-(Содержание!$H$4*D31) -> 54
B32: TPSK/PS24-2 | C32: Блок питания камеры для TPSK-2, 24VDC, 400 мА | D32: 58 | E32: =D32-(Содержание!$H$4*D32) -> 58
B33: TPSK/H12/24-2 | C33: Нагреватель для TPSK-2, 12VDC/24VAC | D33: 37 | E33: =D33-(Содержание!$H$4*D33) -> 37
B34: TPSK/H230-2 | C34: Нагреватель для TPSK-2, 230VAC | D34: 39 | E34: =D34-(Содержание!$H$4*D34) -> 39
B36: DBH06 | C36: Wall bracket with internal cable channel for DBH18 | D36: 70.72 | E36: =D36-(Содержание!$H$4*D36) -> 70.72
B37: DBH07 | C37: Ceiling and parapet mount bracket for DBH18 | D37: 267.92 | E37: =D37-(Содержание!$H$4*D37) -> 267.92
B38: DBH18K0F022 | C38: MEDUSA dome enclosure with sunshield and smoked bubble (needs internal camera adapter) | D38: 307.36 | E38: =D38-(Содержание!$H$4*D38) -> 307.36
B39: DBH18K0F028 | C39: MEDUSA dome enclosure with sunshield and clear bubble (needs internal camera adapter) | D39: 307.36 | E39: =D39-(Содержание!$H$4*D39) -> 307.36
B40: DBHWGC | C40: Pole adapter Ø from 210mm to 225mm (8.2in -8.85in) | D40: 116.96 | E40: =D40-(Содержание!$H$4*D40) -> 116.96
B41: DCJ.3 | C41: Matrix and telemetry control keyboard with three axis joystick | D41: 958.8 | E41: =D41-(Содержание!$H$4*D41) -> 958.8
B42: DCRE485 | C42: RS485 data multiplexer, 1 input / 8 outputs | D42: 455.6 | E42: =D42-(Содержание!$H$4*D42) -> 455.6
B43: DCT.2 | C43: Matrix, DVR and telemetry control keyboard, touch screen, equipped with three axis joystick | D43: 1179.12 | E43: =D43-(Содержание!$H$4*D43) -> 1179.12
B44: DCTEL | C44: Панель управления для серии SM, до 16 камер, с телеметрией по коаксиальному кабелю или RS485 | D44: 342 | E44: =D44-(Содержание!$H$4*D44) -> 342
B45: DCZ | C45: USB keyboard for management of CCTV applications from PC | D45: 864.96 | E45: =D45-(Содержание!$H$4*D45) -> 864.96
B46: DTMRX2 | C46: Telemetry receiver 12 functions, 230Vac | D46: 393.04 | E46: =D46-(Содержание!$H$4*D46) -> 393.04
B47: DTMRX224 | C47: Telemetry receiver 12 functions, 24Vac | D47: 393.04 | E47: =D47-(Содержание!$H$4*D47) -> 393.04
B48: DTRX3 | C48: Telemetry receiver 17 functions, 230Vac | D48: 754 | E48: =D48-(Содержание!$H$4*D48) -> 754
B49: DTRX324 | C49: Приемник телеметрии 17 функций, с предустановками, тревожным интерфейсом и Videojet-совместимым интерфейсом, 230V | D49: 684 | E49: =D49-(Содержание!$H$4*D49) -> 684
B50: DTRXDC | C50: Telemetry receiver 13 functions for PTH355P | D50: 613.36 | E50: =D50-(Содержание!$H$4*D50) -> 613.36
B51: DTWRX | C51: Optional board for the remote control of the wiper and the water pump in stand-alone housings, by RS485. To use with the tanks of the WASPT-series only. | D51: 66.64 | E51: =D51-(Содержание!$H$4*D51) -> 66.64
B52: HEB32K0A000B | C52: HEB housing 320mm with sunshield | D52: 145.52 | E52: =D52-(Содержание!$H$4*D52) -> 145.52
B53: HEB32K1A000B | C53: HEB housing 320mm with sunshield and heater IN 120/230Vac | D53: 176.8 | E53: =D53-(Содержание!$H$4*D53) -> 176.8
B54: HEB32K2A000B | C54: HEB housing 320mm with sunshield and heater IN 12Vdc/24Vac | D54: 176.8 | E54: =D54-(Содержание!$H$4*D54) -> 176.8
B55: HEG37K0A000 | C55: HEG housing 365mm with sunshield | D55: 220.32 | E55: =D55-(Содержание!$H$4*D55) -> 220.32
B56: HEG37K1A000 | C56: HEG housing 365mm with sunshield and heater IN 120/230Vac | D56: 248.88 | E56: =D56-(Содержание!$H$4*D56) -> 248.88
B57: HEG37K1A074 | C57: HEG housing 365mm with sunshield and double heater IN 120/230Vac | D57: 299.2 | E57: =D57-(Содержание!$H$4*D57) -> 299.2
B58: HEG37K1A143 | C58: HEG housing 365mm with sunshield and fan-assisted triple heater IN 120/230Vac, 120W | D58: 368.56 | E58: =D58-(Содержание!$H$4*D58) -> 368.56
B59: HEG37K2A000 | C59: HEG housing 365mm with sunshield and heater IN 12Vdc/24Vac | D59: 248.88 | E59: =D59-(Содержание!$H$4*D59) -> 248.88
B60: HEG47K1A000 | C60: HEG housing 450mm with sunshield and heater IN 120/230Vac | D60: 266.56 | E60: =D60-(Содержание!$H$4*D60) -> 266.56
B61: HEG47K1A018 | C61: HEG housing 450mm with sunshield, heater and blower 230Vac with double filter for air exchange | D61: 412.08 | E61: =D61-(Содержание!$H$4*D61) -> 412.08
B62: HEG47K2A000 | C62: HEG housing 450mm with sunshield and heater IN 12Vdc/24Vac | D62: 266.56 | E62: =D62-(Содержание!$H$4*D62) -> 266.56
B63: HEG47K2A016 | C63: HEG housing 450mm with sunshield, heater and blower 24Vac with double filter for air exchange | D63: 364.48 | E63: =D63-(Содержание!$H$4*D63) -> 364.48
B64: HEK30K1Y000B | C64: HEK housing 300mm with sunshield and heater IN 120/230Vac | D64: 134.64 | E64: =D64-(Содержание!$H$4*D64) -> 134.64
B65: HEK30K2Y000B | C65: HEK housing 300mm with sunshield and heater IN 12Vdc/24Vac | D65: 134.64 | E65: =D65-(Содержание!$H$4*D65) -> 134.64
B66: HEK30K2Y015B | C66: HEK housing 300mm with sunshield and fan assisted heater 24Vac | D66: 178.16 | E66: =D66-(Содержание!$H$4*D66) -> 178.16
B67: HGV52K1A100 | C67: HGV housing 520mm with sunshield, triple fan assisted heater, wiper 230Vac and power supply IN 100-240VAC - OUT 12Vdc | D67: 1697.28 | E67: =D67-(Содержание!$H$4*D67) -> 1697.28
B68: HGV52K2A200 | C68: HGV housing 520mm with sunshield, triple fan assisted heater, wiper 24Vac | D68: 1697.28 | E68: =D68-(Содержание!$H$4*D68) -> 1697.28
B69: HOT39D0A000 | C69: PUNTO housing | D69: 61.2 | E69: =D69-(Содержание!$H$4*D69) -> 61.2
B70: HOT39D1A000 | C70: PUNTO housing with heater IN 120/230Vac | D70: 76.16 | E70: =D70-(Содержание!$H$4*D70) -> 76.16
B71: HOT39D1A085 | C71: PUNTO housing with heater IN 120/230Vac and wall bracket WBOV2A | D71: 107.44 | E71: =D71-(Содержание!$H$4*D71) -> 107.44
B72: HOT39D2A000 | C72: PUNTO housing with heater IN 12Vdc/24Vac | D72: 76.16 | E72: =D72-(Содержание!$H$4*D72) -> 76.16
B73: HOT39D2A085 | C73: PUNTO housing with heater IN 12Vdc/24Vac and wall bracket WBOV2A | D73: 107.44 | E73: =D73-(Содержание!$H$4*D73) -> 107.44
B74: HOT39K1A000 | C74: PUNTO housing with sunshield and heater IN 120/230Vac | D74: 91.12 | E74: =D74-(Содержание!$H$4*D74) -> 91.12
B75: HOT39K2A000 | C75: PUNTO housing with sunshield and heater IN 12Vdc/24Vac | D75: 91.12 | E75: =D75-(Содержание!$H$4*D75) -> 91.12
B76: HOT39K2A700 | C76: PUNTO Hi-PoE housing for Power Over Ethernet cameras | D76: 217.6 | E76: =D76-(Содержание!$H$4*D76) -> 217.6
B77: HOV32K1A000 | C77: HOV housing 300mm with sunshield and heater IN 120/230Vac | D77: 186.32 | E77: =D77-(Содержание!$H$4*D77) -> 186.32
B78: HOV32K1A018 | C78: HOV housing 300mm with sunshield, heater and blower 230Vac with double filter for air exchange | D78: 335.92 | E78: =D78-(Содержание!$H$4*D78) -> 335.92
B79: HOV32K1A100 | C79: HOV housing 300mm with sunshield, heater IN 120/230Vac, wiper 230Vac | D79: 563.04 | E79: =D79-(Содержание!$H$4*D79) -> 563.04
B80: HOV32K2A000 | C80: HOV housing 300mm with sunshield and heater IN 12Vdc/24Vac | D80: 186.32 | E80: =D80-(Содержание!$H$4*D80) -> 186.32
B81: HOV32K2A016 | C81: HOV housing 300mm with sunshield, heater and blower 24Vac and with double filter for air exchange | D81: 289.68 | E81: =D81-(Содержание!$H$4*D81) -> 289.68
B82: HOV32K2A017 | C82: HOV housing 300mm with sunshield, heater and blower 12Vdc with double filter for air exchange | D82: 289.68 | E82: =D82-(Содержание!$H$4*D82) -> 289.68
B83: HOV32K2A147 | C83: HOV housing 300mm with sunshield, heater and blower 24Vac with double filter for air exchange, wiper 24Vac | D83: 656.88 | E83: =D83-(Содержание!$H$4*D83) -> 656.88
B84: HOV32K2A200 | C84: HOV housing 300mm with sunshield, heater IN 12Vdc/24Vac, wiper 24Vac | D84: 563.04 | E84: =D84-(Содержание!$H$4*D84) -> 563.04
B85: HOV32K2A700 | C85: HOV housing for Power Over Ethernet cameras with IPM technology | D85: 391.68 | E85: =D85-(Содержание!$H$4*D85) -> 391.68
B86: HOV32K2A716 | C86: HOV housing for Power Over Ethernet cameras with IPM technology, blower with double filter for air exchange | D86: 439.28 | E86: =D86-(Содержание!$H$4*D86) -> 439.28
B87: HOV32K2A720 | C87: HOV housing for Power Over Ethernet cameras with IPM technology, heater for glass de-icing | D87: 549.44 | E87: =D87-(Содержание!$H$4*D87) -> 549.44
B88: HPV36D0A000B | C88: VERSO COMPACT housing 360mm | D88: 93.84 | E88: =D88-(Содержание!$H$4*D88) -> 93.84
B89: HPV36K0A000B | C89: VERSO COMPACT housing 360mm with sunshield | D89: 108.8 | E89: =D89-(Содержание!$H$4*D89) -> 108.8
B90: HPV36K1A000B | C90: VERSO COMPACT housing 360mm with sunshield and heater IN 120/230Vac | D90: 133.28 | E90: =D90-(Содержание!$H$4*D90) -> 133.28
B91: HPV36K2A000B | C91: VERSO COMPACT housing 360mm with sunshield and heater IN 12Vdc/24Vac | D91: 133.28 | E91: =D91-(Содержание!$H$4*D91) -> 133.28
B92: HPV36K2A015B | C92: VERSO COMPACT housing 360mm with sunshield and fan assisted heater 24Vac | D92: 170 | E92: =D92-(Содержание!$H$4*D92) -> 170
B93: HPV42K0A000 | C93: VERSO housing 420mm with sunshield | D93: 136 | E93: =D93-(Содержание!$H$4*D93) -> 136
B94: HPV42K1A000 | C94: VERSO housing 420mm with sunshield and heater IN 120/230Vac | D94: 160.48 | E94: =D94-(Содержание!$H$4*D94) -> 160.48
B95: HPV42K1A160 | C95: VERSO POLAR housing 420mm with sunshield and reinforced heater for low temperatures (-55°C) IN 120/230Vac, 120W | D95: 239.36 | E95: =D95-(Содержание!$H$4*D95) -> 239.36
B96: HPV42K2A000 | C96: VERSO housing 420mm with sunshield and heater IN 12Vdc/24Vac | D96: 160.48 | E96: =D96-(Содержание!$H$4*D96) -> 160.48
B97: HPV42K2A016 | C97: VERSO housing 420mm with sunshield, heater and blower 24Vac with double filter for air exchange | D97: 284.24 | E97: =D97-(Содержание!$H$4*D97) -> 284.24
B98: HPV42K2A017 | C98: VERSO housing 420mm with sunshield, heater and blower 12Vdc with double filter for air exchange | D98: 284.24 | E98: =D98-(Содержание!$H$4*D98) -> 284.24
B99: HPV42K2A160 | C99: VERSO POLAR housing 420mm with sunshield and reinforced heater for low temperatures (-55°C), IN 12Vdc/24Vac, 60W | D99: 239.36 | E99: =D99-(Содержание!$H$4*D99) -> 239.36
B100: HPV42K2A700 | C100: VERSO housing for Power Over Ethernet cameras with IPM technology | D100: 361.76 | E100: =D100-(Содержание!$H$4*D100) -> 361.76
B101: HPV42K2A716 | C101: VERSO housing for Power Over Ethernet cameras with IPM technology, blower with double filter for air exchange | D101: 409.36 | E101: =D101-(Содержание!$H$4*D101) -> 409.36
B102: HTG37K1A000 | C102: HTG housing 365mm with sunshield and heater IN 120/230Vac and Ø55mm Germanium front window | D102: 2136.56 | E102: =D102-(Содержание!$H$4*D102) -> 2136.56
B103: HTG37K2A000 | C103: HTG housing 365mm with sunshield and heater IN 12Vdc/24Vac and Ø55mm Germanium front window | D103: 2136.56 | E103: =D103-(Содержание!$H$4*D103) -> 2136.56
B104: HTV32K1A000 | C104: HTV housing 300mm with sunshield and heater IN 120/230Vac and Ø55mm Germanium front window | D104: 2011.44 | E104: =D104-(Содержание!$H$4*D104) -> 2011.44
B105: HTV32K2A000 | C105: HTV housing 300mm with sunshield and heater IN 12Vdc/24Vac and Ø55mm Germanium front window | D105: 2011.44 | E105: =D105-(Содержание!$H$4*D105) -> 2011.44
B106: IRH10H8A | C106: Infrared LED illuminator 10°, Hi-Power, 850nm, 12/24Vdc-24Vac, distances up to 140m (460ft) | D106: 455.6 | E106: =D106-(Содержание!$H$4*D106) -> 455.6
B107: IRH10H9A | C107: Infrared LED illuminator 10°, Hi-Power, 940nm, 12/24Vdc-24Vac, distances up to 100m (328ft) | D107: 613.36 | E107: =D107-(Содержание!$H$4*D107) -> 613.36
B108: IRH10L8A | C108: Infrared LED illuminator 10°, Low-Power, 850nm, 12/24Vdc-24Vac, distances up to 100m (328ft) | D108: 314.16 | E108: =D108-(Содержание!$H$4*D108) -> 314.16
B109: IRH30H8A | C109: Infrared LED illuminator 30°, Hi-Power, 850nm, 12/24Vdc-24Vac, distances up to 84m (276ft) | D109: 455.6 | E109: =D109-(Содержание!$H$4*D109) -> 455.6
B110: IRH30H9A | C110: Infrared LED illuminator 30°, Hi-Power, 940nm, 12/24Vdc-24Vac, distances up to 60m (197ft) | D110: 613.36 | E110: =D110-(Содержание!$H$4*D110) -> 613.36
B111: IRH30HWA | C111: LED illuminator white light 30°, 24Vac - 12/24Vdc, distances up to 60m | D111: 455.6 | E111: =D111-(Содержание!$H$4*D111) -> 455.6
B112: IRH30L8A | C112: Infrared LED illuminator 30°, Low-Power, 850nm, 12/24Vdc-24Vac, distances up to 60m (197ft) | D112: 314.16 | E112: =D112-(Содержание!$H$4*D112) -> 314.16
B113: IRH60H8A | C113: Infrared LED illuminator 60°, Hi-Power, 850nm, 12/24Vdc-24Vac, distances up to 56m (184ft) | D113: 455.6 | E113: =D113-(Содержание!$H$4*D113) -> 455.6
B114: IRH60H9A | C114: Infrared LED illuminator 60°, Hi-Power, 940nm, 12/24Vdc-24Vac, distances up to 40m (131ft) | D114: 613.36 | E114: =D114-(Содержание!$H$4*D114) -> 613.36
B115: IRH60HWA | C115: LED illuminator white light 60°, 24Vac - 12/24Vdc, distances up to 40m | D115: 455.6 | E115: =D115-(Содержание!$H$4*D115) -> 455.6
B116: IRH60L8A | C116: Infrared LED illuminator 60°, Low-Power, 850nm, 12/24Vdc-24Vac, distances up to 40m (131ft) | D116: 314.16 | E116: =D116-(Содержание!$H$4*D116) -> 314.16
B117: IRHPS120 | C117: Power supply IN 120Vac 50/60Hz OUT 24Vac 30W | D117: 141.44 | E117: =D117-(Содержание!$H$4*D117) -> 141.44
B118: IRHPS230 | C118: Power supply IN 230Vac 50/60Hz OUT 24Vac 30W | D118: 141.44 | E118: =D118-(Содержание!$H$4*D118) -> 141.44
B119: IRN10A8AS00 | C119: Infrared LED illuminator 10°, 850nm, 100/240Vac, distances up to 240m | D119: 833.68 | E119: =D119-(Содержание!$H$4*D119) -> 833.68
B120: IRN10A9AS00 | C120: Infrared LED illuminator 10°, 940nm, 100/240Vac, distances up to 140m | D120: 1289.28 | E120: =D120-(Содержание!$H$4*D120) -> 1289.28
B121: IRN10B8AS00 | C121: Infrared LED illuminator 10°, 850nm, 24Vac-12/24Vdc, distances up to 240m | D121: 692.24 | E121: =D121-(Содержание!$H$4*D121) -> 692.24
B122: IRN10B9AS00 | C122: Infrared LED illuminator 10°, 940nm, 24Vac-12/24Vdc, distances up to 140m | D122: 1116.56 | E122: =D122-(Содержание!$H$4*D122) -> 1116.56
B123: IRN30A8AS00 | C123: Infrared LED illuminator 30°, 850nm, 100/240Vac, distances up to 130m | D123: 833.68 | E123: =D123-(Содержание!$H$4*D123) -> 833.68
B124: IRN30A9AS00 | C124: Infrared LED illuminator 30°, 940nm, 100/240Vac, distances up to 80m | D124: 1289.28 | E124: =D124-(Содержание!$H$4*D124) -> 1289.28
B125: IRN30AWAS00 | C125: LED illuminator white light 30°, 100/240Vac, distances up to 120m | D125: 833.68 | E125: =D125-(Содержание!$H$4*D125) -> 833.68
B126: IRN30B8AS00 | C126: Infrared LED illuminator 30°, 850nm, 24Vac - 12/24Vdc, distances up to 130m | D126: 692.24 | E126: =D126-(Содержание!$H$4*D126) -> 692.24
B127: IRN30B9AS00 | C127: Infrared LED illuminator 30°, 940nm, 24Vac - 12/24Vdc, distances up to 80m | D127: 1116.56 | E127: =D127-(Содержание!$H$4*D127) -> 1116.56
B128: IRN30BWAS00 | C128: LED illuminator white light 30°, 24Vac - 12/24Vdc, distances up to 120m | D128: 692.24 | E128: =D128-(Содержание!$H$4*D128) -> 692.24
B129: IRN60A8AS00 | C129: Infrared LED illuminator 60°, 850nm, 100/240Vac, distances up to 80m | D129: 833.68 | E129: =D129-(Содержание!$H$4*D129) -> 833.68
B130: IRN60A9AS00 | C130: Infrared LED illuminator 60°, 940nm, 100/240Vac, distances up to 60m | D130: 1289.28 | E130: =D130-(Содержание!$H$4*D130) -> 1289.28
B131: IRN60AWAS00 | C131: LED illuminator white light 60°, 100/240Vac, distances up to 90m | D131: 833.68 | E131: =D131-(Содержание!$H$4*D131) -> 833.68
B132: IRN60B8AS00 | C132: Infrared LED illuminator 60°, 850nm, 24Vac - 12/24Vdc, distances up to 80m | D132: 692.24 | E132: =D132-(Содержание!$H$4*D132) -> 692.24
B133: IRN60B9AS00 | C133: Infrared LED illuminator 60°, 940nm, 24Vac - 12/24Vdc, distances up to 60m | D133: 1116.56 | E133: =D133-(Содержание!$H$4*D133) -> 1116.56
B134: IRN60BWAS00 | C134: LED illuminator white light 60°, 24Vac - 12/24Vdc, distances up to 90m | D134: 692.24 | E134: =D134-(Содержание!$H$4*D134) -> 692.24
B135: NTC2K1309 | C135: Thermal camera with Uncooled VOx Microbolometer thermal imager, 9mm lens, 7.5-8.3Hz, 320x256, stainless steel housing, 24Vac | D135: 10529.12 | E135: =D135-(Содержание!$H$4*D135) -> 10529.12
B136: NTC2K1313 | C136: Thermal camera with Uncooled VOx Microbolometer thermal imager, 13mm lens, 7.5-8.3Hz, 320x256, stainless steel housing, 24Vac | D136: 10529.12 | E136: =D136-(Содержание!$H$4*D136) -> 10529.12
B137: NTC2K1319 | C137: Thermal camera with Uncooled VOx Microbolometer thermal imager, 19mm lens, 7.5-8.3Hz, 320x256, stainless steel housing, 24Vac | D137: 10529.12 | E137: =D137-(Содержание!$H$4*D137) -> 10529.12
B138: NTC2K1325 | C138: Thermal camera with Uncooled VOx Microbolometer thermal imager, 25mm lens, 7.5-8.3Hz, 320x256, stainless steel housing, 24Vac | D138: 11902.72 | E138: =D138-(Содержание!$H$4*D138) -> 11902.72
B139: NTC2K1335 | C139: Thermal camera with Uncooled VOx Microbolometer thermal imager, 35mm lens, 7.5-8.3Hz, 320x256, stainless steel housing, 24Vac | D139: 11902.72 | E139: =D139-(Содержание!$H$4*D139) -> 11902.72
B140: NTC2K1350 | C140: Thermal camera with Uncooled VOx Microbolometer thermal imager, 50mm lens, 7.5-8.3Hz, 320x256, stainless steel housing, 24Vac | D140: 13733.28 | E140: =D140-(Содержание!$H$4*D140) -> 13733.28
B141: NTC2K1360 | C141: Thermal camera with Uncooled VOx Microbolometer thermal imager, 60mm lens, 7.5-8.3Hz, 320x256, stainless steel housing, 24Vac | D141: 16938.8 | E141: =D141-(Содержание!$H$4*D141) -> 16938.8
B142: NTC2K1609 | C142: Thermal camera with Uncooled VOx Microbolometer thermal imager, 9mm lens, 7.5-8.3Hz, 640x512, stainless steel housing, 24Vac | D142: 18769.36 | E142: =D142-(Содержание!$H$4*D142) -> 18769.36
B143: NTC2K1613 | C143: Thermal camera with Uncooled VOx Microbolometer thermal imager, 13mm lens, 7.5-8.3Hz, 640x512, stainless steel housing, 24Vac | D143: 18769.36 | E143: =D143-(Содержание!$H$4*D143) -> 18769.36
B144: NTC2K1619 | C144: Thermal camera with Uncooled VOx Microbolometer thermal imager, 19mm lens, 7.5-8.3Hz, 640x512, stainless steel housing, 24Vac | D144: 18769.36 | E144: =D144-(Содержание!$H$4*D144) -> 18769.36
B145: NTC2K1625 | C145: Thermal camera with Uncooled VOx Microbolometer thermal imager, 25mm lens, 7.5-8.3Hz, 640x512, stainless steel housing, 24Vac | D145: 19990.64 | E145: =D145-(Содержание!$H$4*D145) -> 19990.64
B146: NTC2K1635 | C146: Thermal camera with Uncooled VOx Microbolometer thermal imager, 35mm lens, 7.5-8.3Hz, 640x512, stainless steel housing, 24Vac | D146: 19990.64 | E146: =D146-(Содержание!$H$4*D146) -> 19990.64
B147: NTC2K1650 | C147: Thermal camera with Uncooled VOx Microbolometer thermal imager, 50mm lens, 7.5-8.3Hz, 640x512, stainless steel housing, 24Vac | D147: 21973.52 | E147: =D147-(Содержание!$H$4*D147) -> 21973.52
B148: NTC2K1660 | C148: Thermal camera with Uncooled VOx Microbolometer thermal imager, 60mm lens, 7.5-8.3Hz, 640x512, stainless steel housing, 24Vac | D148: 25025.36 | E148: =D148-(Содержание!$H$4*D148) -> 25025.36
B149: NTL1K1000 | C149: Large stainless steel housing with sunshield, heater IN 120/230Vac and Ø55mm (2.1in) Germanium front window | D149: 4577.76 | E149: =D149-(Содержание!$H$4*D149) -> 4577.76
B150: NTL1K1300 | C150: Large stainless steel housing with sunshield, heater IN 120/230Vac and Ø70mm (2.8in) Germanium front window | D150: 6866.64 | E150: =D150-(Содержание!$H$4*D150) -> 6866.64
B151: NTL1K1500 | C151: Large stainless steel housing with sunshield, heater IN 120/230Vac and Ø110mm (4.3in) Germanium front window | D151: 10376.8 | E151: =D151-(Содержание!$H$4*D151) -> 10376.8
B152: NTM1K1000 | C152: Stainless steel housing with sunshield, heater IN 120/230Vac and Ø55mm (2.1in) Germanium front window | D152: 3662.48 | E152: =D152-(Содержание!$H$4*D152) -> 3662.48
B153: NTW0K2000 | C153: Liquid-cooled stainless steel housing equipped with Zinc Selenide glass for thermal cameras, wavelength 7.5 - 14μm (up to 200°C/500°F) | D153: 7935.6 | E153: =D153-(Содержание!$H$4*D153) -> 7935.6
B154: NTW0K3000 | C154: Liquid-cooled stainless steel housing equipped with Sapphire glass for shortwave thermal cameras, wavelength 0.75 – 4.5 μm (up to 400°C/752°F) | D154: 3662.48 | E154: =D154-(Содержание!$H$4*D154) -> 3662.48
B155: NXCOL | C155: Pole mount adaptor for NXWBS1, NXWBPT and NXWBL | D155: 376.72 | E155: =D155-(Содержание!$H$4*D155) -> 376.72
B156: NXCW | C156: Corner mount adaptor for NXWBS1, NXWBPT and NXWBL | D156: 189.04 | E156: =D156-(Содержание!$H$4*D156) -> 189.04
B157: NXFIGRU | C157: Filtering group for compressed air cleaning | D157: 908.48 | E157: =D157-(Содержание!$H$4*D157) -> 908.48
B158: NXFWBT | C158: Stainless steel parapet mount for NXPTH P&T | D158: 293.76 | E158: =D158-(Содержание!$H$4*D158) -> 293.76
B159: NXL1K1000 | C159: Stainless steel housing with sunshield and heater IN 120/230Vac | D159: 2702.32 | E159: =D159-(Содержание!$H$4*D159) -> 2702.32
B160: NXL2K1000 | C160: Stainless steel housing with sunshield and heater IN 12Vdc/24Vac | D160: 2702.32 | E160: =D160-(Содержание!$H$4*D160) -> 2702.32
B161: NXM0D1000B | C161: Stainless steel housing | D161: 1360 | E161: =D161-(Содержание!$H$4*D161) -> 1360
B162: NXM1K1000B | C162: Housing with sunshield and heater IN 120/230Vac, 40W | D162: 1493.28 | E162: =D162-(Содержание!$H$4*D162) -> 1493.28
B163: NXM1K1050 | C163: Stainless steel housing with sunshield and double heater IN 120/230Vac, 80W | D163: 1555.84 | E163: =D163-(Содержание!$H$4*D163) -> 1555.84
B164: NXM2K1000B | C164: Stainless steel housing with sunshield and heater IN 12Vdc/24Vac, 20W | D164: 1493.28 | E164: =D164-(Содержание!$H$4*D164) -> 1493.28
B165: NXM36D0000 | C165: Stainless steel housing 360mm | D165: 904.4 | E165: =D165-(Содержание!$H$4*D165) -> 904.4
B166: NXM36K1000 | C166: Stainless steel housing 360mm with sunshield and heater IN 120/230Vac, 40W | D166: 990.08 | E166: =D166-(Содержание!$H$4*D166) -> 990.08
B167: NXM36K1050 | C167: Stainless steel housing 360mm with sunshield and double heater IN 120/230Vac, 80W | D167: 1037.68 | E167: =D167-(Содержание!$H$4*D167) -> 1037.68
B168: NXM36K2000 | C168: Stainless steel housing 360mm with sunshield and heater IN 12Vdc/24Vac, 20W | D168: 990.08 | E168: =D168-(Содержание!$H$4*D168) -> 990.08
B169: NXPTH210 | C169: Stainless steel Pan & Tilt 230Vac, 50/60Hz, with preset, max load 40kg (88lb) | D169: 5799.04 | E169: =D169-(Содержание!$H$4*D169) -> 5799.04
B170: NXPTH211 | C170: Stainless steel Pan & Tilt 24Vac, 50/60Hz, with preset, max load 40kg (88lb) | D170: 5799.04 | E170: =D170-(Содержание!$H$4*D170) -> 5799.04
B171: NXPTZ1PVW0000A | C171: NXPTZ in AISI316L, 230Vac, with Day/Night camera 36x PAL, wiper | D171: 11292.08 | E171: =D171-(Содержание!$H$4*D171) -> 11292.08
B172: NXPTZ1PVW0Z00A | C172: NXPTZ in AISI316L, IP version (H.264/AVC), 230Vac, with Day/Night camera 36x, wiper | D172: 12025.12 | E172: =D172-(Содержание!$H$4*D172) -> 12025.12
B173: NXPTZ2NVW0000A | C173: NXPTZ in AISI316L, 24Vac, with Day/Night camera 36x NTSC, wiper | D173: 11292.08 | E173: =D173-(Содержание!$H$4*D173) -> 11292.08
B174: NXPTZ2PVW0000A | C174: NXPTZ in AISI316L, 24Vac, with Day/Night camera 36x PAL, wiper | D174: 11292.08 | E174: =D174-(Содержание!$H$4*D174) -> 11292.08
B175: NXPTZ2PVW0Z00A | C175: NXPTZ in AISI316L, IP version (H.264/AVC), 24Vac, with Day/Night camera 36x PAL, wiper | D175: 12025.12 | E175: =D175-(Содержание!$H$4*D175) -> 12025.12
B176: NXPTZ3NVW0000A | C176: NXPTZ in AISI316L, 120Vac, with Day/Night camera 36x NTSC, wiper | D176: 11292.08 | E176: =D176-(Содержание!$H$4*D176) -> 11292.08
B177: NXPTZ3PVW0Z00A | C177: NXPTZ in AISI316L, IP version (H.264/AVC), 120Vac, with Day/Night camera 36x, wiper | D177: 12025.12 | E177: =D177-(Содержание!$H$4*D177) -> 12025.12
B178: NXPTZCOL | C178: Pole mount adaptor | D178: 465.12 | E178: =D178-(Содержание!$H$4*D178) -> 465.12
B179: NXPTZCW | C179: Corner mount adaptor | D179: 340 | E179: =D179-(Содержание!$H$4*D179) -> 340
B180: NXPTZT1PAW0000A | C180: NXPTZT stainless steel positioning unit 230Vac, with Day/Night camera 36x PAL, thermal camera 35mm, 320x256, 7.5-8.3Hz, wiper | D180: 23651.76 | E180: =D180-(Содержание!$H$4*D180) -> 23651.76
B181: NXPTZT1PAW0000AH | C181: NXPTZT stainless steel positioning unit 230Vac, with Day/Night camera 36x PAL, thermal camera 35mm, 320x256, 25Hz, wiper | D181: 24110.08 | E181: =D181-(Содержание!$H$4*D181) -> 24110.08
B182: NXPTZT1PAW0Z00A | C182: NXPTZT in AISI 316L, IP H.264 version, 230Vac, with Day/Night camera 36x,thermal camera 35mm, 320x256, 7.5-8.3Hz, wiper | D182: 24384.8 | E182: =D182-(Содержание!$H$4*D182) -> 24384.8
B183: NXPTZT1PAW0Z00AH | C183: NXPTZT in AISI 316L, IP H.264 version, 230Vac, Day/Night camera 36x,thermal camera 35mm, 320x256, 25Hz, wiper | D183: 24843.12 | E183: =D183-(Содержание!$H$4*D183) -> 24843.12
B184: NXPTZT1PBW0000A | C184: NXPTZT stainless steel positioning unit 230Vac, with Day/Night camera 36x PAL, thermal camera 25mm, 320x256, 7.5-8.3Hz, wiper | D184: 23651.76 | E184: =D184-(Содержание!$H$4*D184) -> 23651.76
B185: NXPTZT1PBW0000AH | C185: NXPTZT stainless steel positioning unit 230Vac, with Day/Night camera 36x PAL, thermal camera 25mm, 320x256, 25Hz, wiper | D185: 24110.08 | E185: =D185-(Содержание!$H$4*D185) -> 24110.08
B186: NXPTZT1PBW0Z00A | C186: NXPTZT in AISI 316L, IP H.264 version, 230Vac, with Day/Night camera 36x,thermal camera 25mm, 320x256, 7.5-8.3Hz, wiper | D186: 24384.8 | E186: =D186-(Содержание!$H$4*D186) -> 24384.8
B187: NXPTZT1PBW0Z00AH | C187: NXPTZT in AISI 316L, IP H.264 version, 230Vac, Day/Night camera 36x,thermal camera 25mm, 320x256, 25Hz, wiper | D187: 24843.12 | E187: =D187-(Содержание!$H$4*D187) -> 24843.12
B188: NXPTZT1PDW0000A | C188: NXPTZT in AISI 316L, 230Vac, Day/Night camera 36x, PAL, thermal camera 35mm, 640x512, 7.5-8.3Hz, wiper | D188: 33685.84 | E188: =D188-(Содержание!$H$4*D188) -> 33685.84
B189: NXPTZT1PDW0000AH | C189: NXPTZT in AISI 316L, 230Vac, Day/Night camera 36x, PAL, thermal camera 35mm, 640x512, 25-30Hz, wiper | D189: 34142.8 | E189: =D189-(Содержание!$H$4*D189) -> 34142.8
B190: NXPTZT1PDW0Z00A | C190: NXPTZT in AISI 316L, IP H.264 version, 230Vac, Day/Night camera 36x, thermal camera 35mm, 640x512, 7.5-8.3Hz, wiper | D190: 34417.52 | E190: =D190-(Содержание!$H$4*D190) -> 34417.52
B191: NXPTZT1PDW0Z00AH | C191: NXPTZT in AISI 316L, IP H.264 version, 230Vac, Day/Night camera 36x, thermal camera 35mm, 640x512, 25-30Hz, wiper | D191: 34875.84 | E191: =D191-(Содержание!$H$4*D191) -> 34875.84
B192: NXPTZT1PEW0000A | C192: NXPTZT in AISI 316L, 230Vac, Day/Night camera 36x, PAL, thermal camera 25mm, 640x512, 7.5-8.3Hz, wiper | D192: 33685.84 | E192: =D192-(Содержание!$H$4*D192) -> 33685.84
B193: NXPTZT1PEW0000AH | C193: NXPTZT in AISI 316L, 230Vac, Day/Night camera 36x, PAL, thermal camera 25mm, 640x512, 25-30Hz, wiper | D193: 34142.8 | E193: =D193-(Содержание!$H$4*D193) -> 34142.8
B194: NXPTZT1PEW0Z00A | C194: NXPTZT in AISI 316L, IP H.264 version, 230Vac, Day/Night camera 36x, thermal camera 25mm, 640x512, 7.5-8.3Hz, wiper | D194: 34417.52 | E194: =D194-(Содержание!$H$4*D194) -> 34417.52
B195: NXPTZT1PEW0Z00AH | C195: NXPTZT in AISI 316L, IP H.264 version, 230Vac, Day/Night camera 36x, thermal camera 25mm, 640x512, 25-30Hz, wiper | D195: 34875.84 | E195: =D195-(Содержание!$H$4*D195) -> 34875.84
B196: NXPTZT2NAW0000A | C196: NXPTZT stainless steel positioning unit 24Vac, with Day/Night camera 36x NTSC, thermal camera 35mm, 320x256, 7.5-8.3Hz, wiper | D196: 23651.76 | E196: =D196-(Содержание!$H$4*D196) -> 23651.76
B197: NXPTZT2NAW0000AH | C197: NXPTZT stainless steel positioning unit 24Vac, with Day/Night camera 36x NTSC, thermal camera 35mm, 320x256, 25Hz, wiper | D197: 24110.08 | E197: =D197-(Содержание!$H$4*D197) -> 24110.08
B198: NXPTZT2NBW0000A | C198: NXPTZT stainless steel positioning unit 24Vac, with Day/Night camera 36x NTSC, thermal camera 25mm, 320x256, 7.5-8.3Hz, wiper | D198: 23651.76 | E198: =D198-(Содержание!$H$4*D198) -> 23651.76
B199: NXPTZT2NBW0000AH | C199: NXPTZT stainless steel positioning unit 24Vac, with Day/Night camera 36x NTSC, thermal camera 25mm, 320x256, 25Hz, wiper | D199: 24110.08 | E199: =D199-(Содержание!$H$4*D199) -> 24110.08
B200: NXPTZT2NDW0000A | C200: NXPTZT in AISI 316L, 24Vac, Day/Night camera 36x, NTSC, thermal camera 35mm, 640x512, 7.5-8.3Hz, wiper | D200: 33685.84 | E200: =D200-(Содержание!$H$4*D200) -> 33685.84
B201: NXPTZT2NDW0000AH | C201: NXPTZT in AISI 316L, 24Vac, Day/Night camera 36x, NTSC, thermal camera 35mm, 640x512, 25-30Hz, wiper | D201: 34142.8 | E201: =D201-(Содержание!$H$4*D201) -> 34142.8
... 428 more rows

Sheet Raytec
A1: Raytec
A4: Модель | B4: Описание | C4: Розница, USD | D4: Моя цена | E4: Комментарии
A5: VAR-i8-3 | B5: VARIO i8 Adaptive Illumination, triple panel, 850nm with 3 angle options included, 12-24V | C5: 3408.33 | D5: =ROUNDUP(C5-(Содержание!$H$4*C5),0) -> 3409
A6: VAR-i4-3 | B6: VARIO i4 Adaptive Illumination, triple panel, 850nm with 3 angle options included, 12-24V | C6: 1905.27 | D6: =ROUNDUP(C6-(Содержание!$H$4*C6),0) -> 1906
A8: VAR-i8-2 | B8: VARIO i8 Adaptive Illumination, double panel, 850nm with 3 angle options included, 12-24V | C8: 2366.52 | D8: =ROUNDUP(C8-(Содержание!$H$4*C8),0) -> 2367
A9: VAR-i4-2 | B9: VARIO i4 Adaptive Illumination,double panel, 850nm with 3 angle options included, 12-24V | C9: 1280.43 | D9: =ROUNDUP(C9-(Содержание!$H$4*C9),0) -> 1281
A10: VAR-i2-2 | B10: VARIO i2 Adaptive Illumination, double panel, 850nm with 3 angle options included, 12-24V | C10: 892.98 | D10: =ROUNDUP(C10-(Содержание!$H$4*C10),0) -> 893
A12: **NEW**
A13: VAR-i16-1 | B13: VARIO i16 standard pack 10°x10°, 35°x10° and 60°x25° angles included, clear and black, 24V, 850nm | C13: 2009.82 | D13: =ROUNDUP(C13-(Содержание!$H$4*C13),0) -> 2010
A14: VAR-i8-1 | B14: VARIO i8 standard pack 10°x10°, 35°x10° and 60°x25° angles included, clear and black, 12-24V, 850nm | C14: 1205.4 | D14: =ROUNDUP(C14-(Содержание!$H$4*C14),0) -> 1206
A15: VAR-i4-1 | B15: VARIO i4 standard pack 10°x10°, 35°x10° and 60°x25° angles included, clear and black, 12-24V, 850nm | C15: 654.36 | D15: =ROUNDUP(C15-(Содержание!$H$4*C15),0) -> 655
A16: VAR-i2-1 | B16: VARIO i2 standard pack 10°x10°, 35°x10° and 60°x25° angles included, clear and black, 12-24V, 850nm | C16: 461.25 | D16: =ROUNDUP(C16-(Содержание!$H$4*C16),0) -> 462
B18: 940nm options available. Add -C to codes above. Add 10% to price.
A20: VARIO White-Light Series
A21: VAR-w8-3 | B21: VARIO w8 Adaptive Illumination, triple panel, White-Light with 3 angle options included, 12-24V | C21: 3408.33 | D21: =ROUNDUP(C21-(Содержание!$H$4*C21),0) -> 3409
A22: VAR-w4-3 | B22: VARIO w4 Adaptive Illumination, triple panel, White-Light with 3 angle options included, 12-24V | C22: 1905.27 | D22: =ROUNDUP(C22-(Содержание!$H$4*C22),0) -> 1906
A24: VAR-w8-2 | B24: VARIO w8 Adaptive Illumination, double panel, White-Light with 3 angle options included, 12-24V | C24: 2366.52 | D24: =ROUNDUP(C24-(Содержание!$H$4*C24),0) -> 2367
A25: VAR-w4-2 | B25: VARIO w4 Adaptive Illumination, double panel, White-Light with 3 angle options included, 12-24V | C25: 1280.43 | D25: =ROUNDUP(C25-(Содержание!$H$4*C25),0) -> 1281
A26: VAR-w2-2 | B26: VARIO w2 Adaptive Illumination, double panel, White-Light with 3 angle options included, 12-24V | C26: 892.98 | D26: =ROUNDUP(C26-(Содержание!$H$4*C26),0) -> 893
A28: **NEW**
A29: VAR-w16-1 | B29: VARIO w16, standard pack 10°x10°, 35°x10° and 60°x25° angles included, silver and white, 24V, white-light | C29: 2009.82 | D29: =ROUNDUP(C29-(Содержание!$H$4*C29),0) -> 2010
A30: VAR-w8-1 | B30: VARIO w8, standard pack 10°x10°, 35°x10° and 60°x25° angles included, silver and white, 12-24V, white-light | C30: 1205.4 | D30: =ROUNDUP(C30-(Содержание!$H$4*C30),0) -> 1206
A31: VAR-w4-1 | B31: VARIO w4, standard pack 10x10, 35x10 and 60x25 angles included, silver and white, 12-24V, white-light | C31: 654.36 | D31: =ROUNDUP(C31-(Содержание!$H$4*C31),0) -> 655
A32: VAR-w2-1 | B32: VARIO w2, standard pack 10°x10°, 35°x10° and 60°x25° angles included, silver and white, 12-24V, white-light | C32: 461.25 | D32: =ROUNDUP(C32-(Содержание!$H$4*C32),0) -> 462
A34: Please note: All VARIO illuminators utilise standard Raytec interchangeable lenses.
A37: VARIO IP PoE Network Illuminators - Low Voltage
A39: VARIO IP PoE Infra-Red Series – 24V DC Input
A40: VAR-IPPoE-i8-1 | B40: VARIO IP PoE Network Illuminator - i8, 850nm with 3 angle options included, 24V DC or PoE++ power input & Cat 5 data input | C40: 1383.75 | D40: =ROUNDUP(C40-(Содержание!$H$4*C40),0) -> 1384
A41: VAR-IPPoE-i4-1 | B41: VARIO IP PoE Network Illuminator - i4, 850nm with 3 angle options included, 24V DC or PoE+ power input & Cat 5 data input | C41: 892.98 | D41: =ROUNDUP(C41-(Содержание!$H$4*C41),0) -> 893
B42: 940nm options available. Add -C to codes above. Add 10% to price. | C42: 0
A43: VARIO IP PoE White-Light Series – 24V DC Input | C43: 0
A44: VAR-IPPoE-w8-1 | B44: VARIO IP PoE Network Illuminator - w8, White-Light with 3 angle options included, 24V DC or PoE++ power input & Cat 5 data input | C44: 1383.75 | D44: =ROUNDUP(C44-(Содержание!$H$4*C44),0) -> 1384
A45: VAR-IPPoE-w4-1 | B45: VARIO IP PoE Network Illuminator - w4, White-Light with 3 angle options included, 24V DC or PoE+ power input & Cat 5 data input | C45: 892.98 | D45: =ROUNDUP(C45-(Содержание!$H$4*C45),0) -> 893
A48: VARIO Specialist Lighting
A51: VARIO Hybrid - Combined Infra-Red and White-Light in a single unit
A52: VAR-hy8-1 | B52: VARIO Hybrid 8 Infra-Red 850nm and White-Light, with 3 angle options included, 12-24V | C52: 1503.06 | D52: =ROUNDUP(C52-(Содержание!$H$4*C52),0) -> 1504
A53: VAR-hy8-1-C | B53: VARIO Hybrid 8 Infra-Red 940nm and White-Light, with 3 angle options included, 12-24V | C53: 1666.65 | D53: =ROUNDUP(C53-(Содержание!$H$4*C53),0) -> 1667
A56: VARIO Lighthouse Kit - Fully integrated lighting and housing solution | C56: 0
A57: VAR-VLK-i4-2 | B57: VARIO Lighthouse Kit , 2 x 850nm, 3 angle options, Cat5e and power/aux cable | C57: 1741.68 | D57: =ROUNDUP(C57-(Содержание!$H$4*C57),0) -> 1742
A58: VAR-VLK-i4-2-C | B58: VARIO Lighthouse Kit , 2 x 940nm, 3 angle options, Cat5e and power/aux cable | C58: 1860.99 | D58: =ROUNDUP(C58-(Содержание!$H$4*C58),0) -> 1861
A59: VAR-VLK-w4-2 | B59: VARIO Lighthouse Kit , 2 x White-Light, 3 angle options, Cat5e and power/aux cable | C59: 1741.68 | D59: =ROUNDUP(C59-(Содержание!$H$4*C59),0) -> 1742
A62: VARIO D-zoom - High power LED with remotely adjustable beam angle
A63: VAR-DZ -i8-1 | B63: VARIO D-Zoom i8, Infra-Red, 850nm – angles 10° to 80° | C63: 1383.75 | D63: =ROUNDUP(C63-(Содержание!$H$4*C63),0) -> 1384
A64: VAR-DZ -i8-1-C | B64: VARIO D-Zoom i8, Infra-Red, 940nm – angles 10° to 80° | C64: 1517.82 | D64: =ROUNDUP(C64-(Содержание!$H$4*C64),0) -> 1518
A65: VAR-DZ -w8-1 | B65: VARIO D-Zoom w8, White-Light – angles 10° to 80° | C65: 1383.75 | D65: =ROUNDUP(C65-(Содержание!$H$4*C65),0) -> 1384
A67: VARIO ESP
A68: Purpose Designed VARIO LED Lighting for the Pelco Esprit “Specific SMR model”
A69: powered directly from the camera
A71: Order x2 VAR-i2-1 | B71: For Pelco Esprit SMR # 1-208BV1
A72: Order x2 VAR-i4-1 | B72: For Pelco Esprit SMR # 1-2BUUEI
A73: Order x2 VAR-i8-1 | B73: For Pelco Esprit SMR # 1-26OSZH
A75: Mixed angle combinations available via adjusting the VARIO interchangeable lensing.
A76: 940nm and White-Light versions available - contact Raytec.
A78: VARIO Accessories
A79: Please note: All VARIO illuminators utilise standard Raytec interchangeable lenses (not applicable for VARIO D-Zoom)
A81: VARIO Infra-Red Interchangeable Lenses
A83: **NEW**
A84: VAR-i16-LENS-8030 | B84: VARIO i16 lens insert - 80°H x 30°V | C84: 59.04 | D84: =ROUNDUP(C84-(Содержание!$H$4*C84),0) -> 60
A85: VAR-i16-LENS-12050 | B85: VARIO i16 lens insert - 120°H x 50°V | C85: 59.04 | D85: =ROUNDUP(C85-(Содержание!$H$4*C85),0) -> 60
A86: VAR-i8-LENS-8030 | B86: VARIO i8 lens insert - 80°H x 30°V | C86: 59.04 | D86: =ROUNDUP(C86-(Содержание!$H$4*C86),0) -> 60
A87: VAR-i8-LENS-12050 | B87: VARIO i8 lens insert - 120°H x 50°V | C87: 59.04 | D87: =ROUNDUP(C87-(Содержание!$H$4*C87),0) -> 60
A88: VAR-i4-LENS-8030 | B88: VARIO i4 lens insert - 80°H x 30°V | C88: 59.04 | D88: =ROUNDUP(C88-(Содержание!$H$4*C88),0) -> 60
A89: VAR-i4-LENS-12050 | B89: VARIO i4 lens insert - 120°H x 50°V | C89: 59.04 | D89: =ROUNDUP(C89-(Содержание!$H$4*C89),0) -> 60
A90: VAR-i2-LENS-8030 | B90: VARIO i2 lens insert - 80°H x 30°V | C90: 59.04 | D90: =ROUNDUP(C90-(Содержание!$H$4*C90),0) -> 60
A91: VAR-i2-LENS-12050 | B91: VARIO i2 lens insert - 120°H x 50°V | C91: 59.04 | D91: =ROUNDUP(C91-(Содержание!$H$4*C91),0) -> 60
A93: VARIO White-Light Interchangeable Lenses
A95: **NEW**
A96: VAR-w16-LENS-8030 | B96: VARIO w16 lens insert - 80°H x 30°V | C96: 59.04 | D96: =ROUNDUP(C96-(Содержание!$H$4*C96),0) -> 60
A97: VAR-w16-LENS-12050 | B97: VARIO w16 lens insert - 120°H x 50°V | C97: 59.04 | D97: =ROUNDUP(C97-(Содержание!$H$4*C97),0) -> 60
A98: VAR-w8-LENS-8030 | B98: VARIO w8 lens insert - 80°H x 30°V | C98: 59.04 | D98: =ROUNDUP(C98-(Содержание!$H$4*C98),0) -> 60
A99: VAR-w8-LENS-12050 | B99: VARIO w8 lens insert - 120°H x 50°V | C99: 59.04 | D99: =ROUNDUP(C99-(Содержание!$H$4*C99),0) -> 60
A100: VAR-w4-LENS-8030 | B100: VARIO w4 lens insert - 80°H x 30°V | C100: 59.04 | D100: =ROUNDUP(C100-(Содержание!$H$4*C100),0) -> 60
A101: VAR-w4-LENS-12050 | B101: VARIO w4 lens insert - 120°H x 50°V | C101: 59.04 | D101: =ROUNDUP(C101-(Содержание!$H$4*C101),0) -> 60
A102: VAR-w2-LENS-8030 | B102: VARIO w2 lens insert - 80°H x 30°V | C102: 59.04 | D102: =ROUNDUP(C102-(Содержание!$H$4*C102),0) -> 60
A103: VAR-w2-LENS-12050 | B103: VARIO w2 lens insert - 120°H x 50°V | C103: 59.04 | D103: =ROUNDUP(C103-(Содержание!$H$4*C103),0) -> 60
A105: VARIO Remote Control
A106: (Not applicable for VARIO IP)
A107: VAR-rc-V1 | B107: Remote control to enable advanced features in VARIO | C107: 75.03 | D107: =ROUNDUP(C107-(Содержание!$H$4*C107),0) -> 76
A110: VARIO Power Supply Units
A111: Purpose designed to power all VARIO illuminators including VARIO IP
A112: VAR-PSU-1x2 | B112: VARIO PSU - 24V, 20W, 1xO/P for 1x2 series VARIO illuminator | C112: 223.86 | D112: =ROUNDUP(C112-(Содержание!$H$4*C112),0) -> 224
A113: VAR-PSU-2x4 | B113: VARIO PSU - 24V, 50W, 2xO/P for 2x4 series VARIO illuminators | C113: 268.14 | D113: =ROUNDUP(C113-(Содержание!$H$4*C113),0) -> 269
A114: VAR-PSU-2x8 | B114: VARIO PSU - 24V, 100W, 2xO/P for 2x8 series VARIO illuminators | C114: 387.45 | D114: =ROUNDUP(C114-(Содержание!$H$4*C114),0) -> 388
A115: VAR-PSU-3x8 | B115: VARIO PSU - 24V, 150W, 3xO/P for 3x8 series VARIO illuminators | C115: 521.52 | D115: =ROUNDUP(C115-(Содержание!$H$4*C115),0) -> 522
A117: VARIO Daytime Set-up Tool
A118: VAR-DST | B118: Daytime set-up/positioning tool for all VARIO lighting units | C118: 59.04 | D118: =ROUNDUP(C118-(Содержание!$H$4*C118),0) -> 60
A121: PLATINUM IR Series - Ultra High Performance – High Voltage
A123: Includes standard PSU
A124: RM300-PLT-AI-05 | B124: RAYMAX 300, 5-15° Platinum Adaptive Illumination, 850nm, inc PSU | C124: 3825.3 | D124: =ROUNDUP(C124-(Содержание!$H$4*C124),0) -> 3826
A125: RM300-PLT-AI-10 | B125: RAYMAX 300, 10-30° Platinum Adaptive Illumination, 850nm, inc PSU | C125: 3482.13 | D125: =ROUNDUP(C125-(Содержание!$H$4*C125),0) -> 3483
A126: RM300-PLT-AI-30 | B126: RAYMAX 300, 30-90° Platinum Adaptive Illumination, 850nm, inc PSU | C126: 3482.13 | D126: =ROUNDUP(C126-(Содержание!$H$4*C126),0) -> 3483
A127: RM300-PLT-AI-50 | B127: RAYMAX 300, 50-180° Platinum Adaptive Illumination, 850nm, inc PSU | C127: 3482.13 | D127: =ROUNDUP(C127-(Содержание!$H$4*C127),0) -> 3483
A129: RM200-PLT-AI-10 | B129: RAYMAX 200, 10-20° Platinum Adaptive Illumination, 850nm, inc PSU | C129: 2605.14 | D129: =ROUNDUP(C129-(Содержание!$H$4*C129),0) -> 2606
A130: RM200-PLT-AI-30 | B130: RAYMAX 200, 30-60° Platinum Adaptive Illumination, 850nm, inc PSU | C130: 2605.14 | D130: =ROUNDUP(C130-(Содержание!$H$4*C130),0) -> 2606
A131: RM200-PLT-AI-50 | B131: RAYMAX 200, 50-100° Platinum Adaptive Illumination, 850nm, inc PSU | C131: 2605.14 | D131: =ROUNDUP(C131-(Содержание!$H$4*C131),0) -> 2606
A132: RM200-PLT-AI-120 | B132: RAYMAX 200, 120-180° Platinum Adaptive Illumination, 850nm, inc PSU | C132: 2605.14 | D132: =ROUNDUP(C132-(Содержание!$H$4*C132),0) -> 2606
A134: RM100-PLT-AI-10 | B134: RAYMAX 100, 10-20° Platinum Adaptive Illumination, 850nm, inc PSU | C134: 1845 | D134: =ROUNDUP(C134-(Содержание!$H$4*C134),0) -> 1845
A135: RM100-PLT-AI-30 | B135: RAYMAX 100, 30-60° Platinum Adaptive Illumination, 850nm, inc PSU | C135: 1845 | D135: =ROUNDUP(C135-(Содержание!$H$4*C135),0) -> 1845
A136: RM100-PLT-AI-50 | B136: RAYMAX 100, 50-100° Platinum Adaptive Illumination, 850nm, inc PSU | C136: 1845 | D136: =ROUNDUP(C136-(Содержание!$H$4*C136),0) -> 1845
A137: RM100-PLT-AI-120 | B137: RAYMAX 100, 120-180° Platinum Adaptive Illumination, 850nm, inc PSU | C137: 1845 | D137: =ROUNDUP(C137-(Содержание!$H$4*C137),0) -> 1845
B139: 940nm Options Available. Add -C to codes above. Same price as 10 degree model. 5° versions available for ultimate distance.
A142: RAYMAX Series - High Voltage Infra-Red
A144: **NEW**
A145: Panoramic Ultra Series
A146: RM300-AI-PANUT | B146: RAYMAX 300, Panoramic Ultra Illumination, 60-180°x 5°, 850nm, inc PSU | C146: 3125.43 | D146: =ROUNDUP(C146-(Содержание!$H$4*C146),0) -> 3126
A147: RM150-AI-PANUT | B147: RAYMAX 150, Panoramic Ultra Illumination, 60-180°x 5°, 850nm, inc PSU | C147: 2188.17 | D147: =ROUNDUP(C147-(Содержание!$H$4*C147),0) -> 2189
A149: Ultimate Adaptive Illumination Products - Triple Panel
A150: RAYMAX 300 - includes standard PSU
A151: RM300-AI-10 | B151: RAYMAX 300, 10-30° Adaptive Illumination, 850nm, inc PSU | C151: 3482.13 | D151: =ROUNDUP(C151-(Содержание!$H$4*C151),0) -> 3483
A152: RM300-AI-30 | B152: RAYMAX 300, 30-90° Adaptive Illumination, 850nm, inc PSU | C152: 3229.98 | D152: =ROUNDUP(C152-(Содержание!$H$4*C152),0) -> 3230
A153: RM300-AI-50 | B153: RAYMAX 300, 50-180° Adaptive Illumination, 850nm, inc PSU | C153: 3229.98 | D153: =ROUNDUP(C153-(Содержание!$H$4*C153),0) -> 3230
B154: 940nm Options Available. Add -C to codes above. Same price as 10° model.
A156: RAYMAX 150 - includes standard PSU
A157: RM150-AI-30 | B157: RAYMAX 150, 30-100° Adaptive Illumination, 850nm, inc PSU | C157: 2068.86 | D157: =ROUNDUP(C157-(Содержание!$H$4*C157),0) -> 2069
A158: RM150-AI-50 | B158: RAYMAX 150, 50-180° Adaptive Illumination, 850nm, inc PSU | C158: 2068.86 | D158: =ROUNDUP(C158-(Содержание!$H$4*C158),0) -> 2069
B159: 940nm Options Available. Add -C to codes above. Same price as 10° model.
A161: Adaptive Illumination Products
A162: RAYMAX 200 - includes standard PSU
A163: RM200-AI-10 | B163: RAYMAX 200, 10-20° Adaptive Illumination, 850nm, inc PSU | C163: 2605.14 | D163: =ROUNDUP(C163-(Содержание!$H$4*C163),0) -> 2606
A164: RM200-AI-30 | B164: RAYMAX 200, 30-60° Adaptive Illumination, 850nm, inc PSU | C164: 2366.52 | D164: =ROUNDUP(C164-(Содержание!$H$4*C164),0) -> 2367
A165: RM200-AI-50 | B165: RAYMAX 200, 50-100° Adaptive Illumination, 850nm, inc PSU | C165: 2366.52 | D165: =ROUNDUP(C165-(Содержание!$H$4*C165),0) -> 2367
A166: RM200-AI-120 | B166: RAYMAX 200, 120-180° Adaptive Illumination, 850nm, inc PSU | C166: 2366.52 | D166: =ROUNDUP(C166-(Содержание!$H$4*C166),0) -> 2367
B167: 940nm Options Available. Add -C to codes above. Same price as 10° model.
A169: RAYMAX 100 - includes standard PSU
A170: RM100-AI-10 | B170: RAYMAX 100, 10-20° Adaptive Illumination, 850nm, inc PSU | C170: 1845 | D170: =ROUNDUP(C170-(Содержание!$H$4*C170),0) -> 1845
A171: RM100-AI-30 | B171: RAYMAX 100, 30-60° Adaptive Illumination, 850nm, inc PSU | C171: 1368.99 | D171: =ROUNDUP(C171-(Содержание!$H$4*C171),0) -> 1369
A172: RM100-AI-50 | B172: RAYMAX 100, 50-100° Adaptive Illumination, 850nm, inc PSU | C172: 1368.99 | D172: =ROUNDUP(C172-(Содержание!$H$4*C172),0) -> 1369
A173: RM100-AI-120 | B173: RAYMAX 100, 120-180° Adaptive Illumination, 850nm, inc PSU | C173: 1368.99 | D173: =ROUNDUP(C173-(Содержание!$H$4*C173),0) -> 1369
B174: 940nm Options Available. Add -C to codes above. Same price as 10° model.
A176: RAYMAX 50 - includes standard PSU
A177: RM50-AI-10 | B177: RAYMAX 50, 10-20° Adaptive Illumination, 850nm, inc PSU | C177: 952.02 | D177: =ROUNDUP(C177-(Содержание!$H$4*C177),0) -> 953
A178: RM50-AI-30 | B178: RAYMAX 50, 30-60° Adaptive Illumination, 850nm, inc PSU | C178: 744.15 | D178: =ROUNDUP(C178-(Содержание!$H$4*C178),0) -> 745
A179: RM50-AI-50 | B179: RAYMAX 50, 50-100° Adaptive Illumination, 850nm, inc PSU | C179: 744.15 | D179: =ROUNDUP(C179-(Содержание!$H$4*C179),0) -> 745
A180: RM50-AI-120 | B180: RAYMAX 50, 120-180° Adaptive Illumination, 850nm, inc PSU | C180: 744.15 | D180: =ROUNDUP(C180-(Содержание!$H$4*C180),0) -> 745
B181: 940nm Options Available. Add -C to codes above. Same price as 10° model.
A183: RAYMAX 25 - includes standard PSU - non AI
A184: RM25-10 | B184: RAYMAX 25, 10°, 850nm, inc PSU | C184: 624.84 | D184: =ROUNDUP(C184-(Содержание!$H$4*C184),0) -> 625
A185: RM25-30 | B185: RAYMAX 25, 30°, 850nm, inc PSU | C185: 521.52 | D185: =ROUNDUP(C185-(Содержание!$H$4*C185),0) -> 522
A186: RM25-50 | B186: RAYMAX 25, 50°, 850nm, inc PSU | C186: 521.52 | D186: =ROUNDUP(C186-(Содержание!$H$4*C186),0) -> 522
A187: RM25-120 | B187: RAYMAX 25, 120°, 850nm, inc PSU | C187: 521.52 | D187: =ROUNDUP(C187-(Содержание!$H$4*C187),0) -> 522
B188: 940nm Options Available. Add -C to codes above. Same price as 10° model.
A190: Raymax Illuminators with PoE Input - For internal applications only
A191: RAYMAX 25 PoE Series - includes integrated PSU, can be powered via PoE or 12-24V
A192: RM25-10-PoE | B192: RAYMAX 25, 10°, 850nm, PoE compatible | C192: 536.28 | D192: =ROUNDUP(C192-(Содержание!$H$4*C192),0) -> 537
A193: RM25-30-PoE | B193: RAYMAX 25, 30°, 850nm, PoE compatible | C193: 490.77 | D193: =ROUNDUP(C193-(Содержание!$H$4*C193),0) -> 491
A194: RM25-50-PoE | B194: RAYMAX 25, 50°, 850nm, PoE compatible | C194: 490.77 | D194: =ROUNDUP(C194-(Содержание!$H$4*C194),0) -> 491
A195: RM25-120-PoE | B195: RAYMAX 25, 120°, 850nm, PoE compatible | C195: 490.77 | D195: =ROUNDUP(C195-(Содержание!$H$4*C195),0) -> 491
B196: 940nm Options Available. Add -C to codes above. Same price as 10 degree model.
A198: Raymax High Power PoE Illuminators with PoE Input - For internal and external applications
A199: RAYMAX 50 PoE Series - includes integrated PSU, powered via PoE
A200: RM50-10-PoE | B200: RAYMAX 50, 10°, 850nm, PoE compatible | C200: 788.43 | D200: =ROUNDUP(C200-(Содержание!$H$4*C200),0) -> 789
A201: RM50-30-PoE | B201: RAYMAX 50, 30°, 850nm, PoE compatible | C201: 729.39 | D201: =ROUNDUP(C201-(Содержание!$H$4*C201),0) -> 730
A202: RM50-50-PoE | B202: RAYMAX 50, 50°, 850nm, PoE compatible | C202: 729.39 | D202: =ROUNDUP(C202-(Содержание!$H$4*C202),0) -> 730
A203: RM50-120-PoE | B203: RAYMAX 50, 120°, 850nm, PoE compatible | C203: 729.39 | D203: =ROUNDUP(C203-(Содержание!$H$4*C203),0) -> 730
B204: 940nm Options Available. Add -C to codes above. Same price as 10 degree model.
A207: RAYLUX Series - Hi Voltage White-Light All RAYLUX products are now powered by PLATINUM technology.
A209: Panoramic Series
A210: RL300-AI-PAN | B210: RAYLUX 300, Panoramic Illumination, 60-180°x25°, White-Light inc PSU | C210: 3066.39 | D210: =ROUNDUP(C210-(Содержание!$H$4*C210),0) -> 3067
A211: RL150-AI-PAN | B211: RAYLUX 150, Panoramic Illumination, 60-180°x25°, White-Light inc PSU | C211: 2188.17 | D211: =ROUNDUP(C211-(Содержание!$H$4*C211),0) -> 2189
A213: Raylux Directional Series
A214: Ultimate Adaptive Illumination Products - Triple Panel
A215: RAYLUX 300 - includes standard PSU
A216: RL300-AI-05 | B216: RAYLUX 300, 5-15° Adaptive Illumination, White-Light, inc PSU | C216: 3825.3 | D216: =ROUNDUP(C216-(Содержание!$H$4*C216),0) -> 3826
A217: RL300-AI-10 | B217: RAYLUX 300, 10-30° Adaptive Illumination, White-Light, inc PSU | C217: 3303.78 | D217: =ROUNDUP(C217-(Содержание!$H$4*C217),0) -> 3304
A218: RL300-AI-30 | B218: RAYLUX 300, 30-90° Adaptive Illumination, White-Light, inc PSU | C218: 3066.39 | D218: =ROUNDUP(C218-(Содержание!$H$4*C218),0) -> 3067
A219: RL300-AI-50 | B219: RAYLUX 300, 50-180° Adaptive Illumination, White-Light, inc PSU | C219: 3066.39 | D219: =ROUNDUP(C219-(Содержание!$H$4*C219),0) -> 3067
A221: RAYLUX 150 - includes standard PSU
A222: RL150-AI-30 | B222: RAYLUX 150, 30-90° Adaptive Illumination, White-Light, inc PSU | C222: 2188.17 | D222: =ROUNDUP(C222-(Содержание!$H$4*C222),0) -> 2189
A223: RL150-AI-50 | B223: RAYLUX 150, 50-180° Adaptive Illumination, White-Light, inc PSU | C223: 2188.17 | D223: =ROUNDUP(C223-(Содержание!$H$4*C223),0) -> 2189
A225: Adaptive Illumination Products
A226: RAYLUX 200 - includes standard PSU
A227: RL200-AI-10 | B227: RAYLUX 200, 10-20° Adaptive Illumination, White-Light, inc PSU | C227: 2425.56 | D227: =ROUNDUP(C227-(Содержание!$H$4*C227),0) -> 2426
A228: RL200-AI-30 | B228: RAYLUX 200, 30-60° Adaptive Illumination, White-Light, inc PSU | C228: 2188.17 | D228: =ROUNDUP(C228-(Содержание!$H$4*C228),0) -> 2189
A229: RL200-AI-50 | B229: RAYLUX 200, 50-100° Adaptive Illumination, White-Light, inc PSU | C229: 2188.17 | D229: =ROUNDUP(C229-(Содержание!$H$4*C229),0) -> 2189
A230: RL200-AI-120 | B230: RAYLUX 200, 120-180° Adaptive Illumination, White-Light, inc PSU | C230: 2188.17 | D230: =ROUNDUP(C230-(Содержание!$H$4*C230),0) -> 2189
A232: RAYLUX 100 - includes standard PSU
A233: RL100-AI-10 | B233: RAYLUX 100, 10-20° Adaptive Illumination, White-Light, inc PSU | C233: 1503.06 | D233: =ROUNDUP(C233-(Содержание!$H$4*C233),0) -> 1504
A234: RL100-AI-30 | B234: RAYLUX 100, 30-60° Adaptive Illumination, White-Light, inc PSU | C234: 1368.99 | D234: =ROUNDUP(C234-(Содержание!$H$4*C234),0) -> 1369
A235: RL100-AI-50 | B235: RAYLUX 100, 50-100° Adaptive Illumination, White-Light, inc PSU | C235: 1368.99 | D235: =ROUNDUP(C235-(Содержание!$H$4*C235),0) -> 1369
A236: RL100-AI-120 | B236: RAYLUX 100, 120-180° Adaptive Illumination, White-Light, inc PSU | C236: 1368.99 | D236: =ROUNDUP(C236-(Содержание!$H$4*C236),0) -> 1369
A238: RAYLUX 50 - includes standard PSU
A239: RL50-AI-10 | B239: RAYLUX 50,10-20 degree Adaptive Illumination, White-Light, inc PSU | C239: 952.02 | D239: =ROUNDUP(C239-(Содержание!$H$4*C239),0) -> 953
A240: RL50-AI-30 | B240: RAYLUX 50, 30-60° Adaptive Illumination, White-Light, inc PSU | C240: 863.46 | D240: =ROUNDUP(C240-(Содержание!$H$4*C240),0) -> 864
A241: RL50-AI-50 | B241: RAYLUX 50, 50-100° Adaptive Illumination, White-Light, inc PSU | C241: 863.46 | D241: =ROUNDUP(C241-(Содержание!$H$4*C241),0) -> 864
A242: RL50-AI-120 | B242: RAYLUX 50, 120-180° Adaptive Illumination, White-Light, inc PSU | C242: 863.46 | D242: =ROUNDUP(C242-(Содержание!$H$4*C242),0) -> 864
A244: RAYLUX 25 - includes standard PSU - non AI
A245: RL25-10 | B245: RAYLUX 25, 10°, White-Light, inc PSU | C245: 624.84 | D245: =ROUNDUP(C245-(Содержание!$H$4*C245),0) -> 625
A246: RL25-30 | B246: RAYLUX 25, 30°, White-Light, inc PSU | C246: 551.04 | D246: =ROUNDUP(C246-(Содержание!$H$4*C246),0) -> 552
A247: RL25-50 | B247: RAYLUX 25, 50°, White-Light, inc PSU | C247: 551.04 | D247: =ROUNDUP(C247-(Содержание!$H$4*C247),0) -> 552
A248: RL25-120 | B248: RAYLUX 25, 120°, White Light, inc PSU | C248: 551.04 | D248: =ROUNDUP(C248-(Содержание!$H$4*C248),0) -> 552
A250: Raylux High Power Poe Illuminators with PoE Input – For internal and external applications
A251: RAYLUX 50 PoE Series - includes integrated PSU, powered via PoE
A252: RL50-10-PoE | B252: RAYLUX 50, 10°, White-Light, PoE compatible | C252: 788.43 | D252: =ROUNDUP(C252-(Содержание!$H$4*C252),0) -> 789
A253: RL50-30-PoE | B253: RAYLUX 50, 30°, White-Light, PoE compatible | C253: 729.39 | D253: =ROUNDUP(C253-(Содержание!$H$4*C253),0) -> 730
A254: RL50-50-PoE | B254: RAYLUX 50, 50°, White-Light, PoE compatible | C254: 729.39 | D254: =ROUNDUP(C254-(Содержание!$H$4*C254),0) -> 730
A255: RL50-120-PoE | B255: RAYLUX 50, 120°, White-Light, PoE compatible | C255: 729.39 | D255: =ROUNDUP(C255-(Содержание!$H$4*C255),0) -> 730
A259: RAYLUX URBAN Series
A261: Urban - Adaptive Illumination Products (UBA)
A262: Includes standard PSU and environmental protection shield
A263: UBA-48-50 | B263: RAYLUX URBAN, 80W Max, 50°+ AI, White-Light, inc PSU | C263: 2247.21 | D263: =ROUNDUP(C263-(Содержание!$H$4*C263),0) -> 2248
... 173 more rows

Sheet NVT
A1: NVT / Transmission
B4: Модель | C4: Описание | D4: Розница, USD | E4: Моя цена
A5: EoC System
B6: NV-EC1701 | C6: Single Channel EoC Transceiver (power supply not included) | D6: 570 | E6: =ROUNDUP(D6-(Содержание!$H$4*D6),0) -> 570
A7: EoC System Kits
B8: NV-EC1701-KIT1 | C8: 1 - Camera EoC Transmission System; (2) NV-EC1701 & (1) NV-PS48-60W, (1) NV-PC4PR, (1) NV-PC2PR | D8: 1271 | E8: =ROUNDUP(D8-(Содержание!$H$4*D8),0) -> 1271
B9: NV-EC1701-KIT2 | C9: 2 - Camera EoC Transmission System; (3) NV-EC1701 & (1) NV-PS48-60W & (1) NV-BNCT, (2) NV-PC4PR, (1) NV-PC2PR | D9: 1852 | E9: =ROUNDUP(D9-(Содержание!$H$4*D9),0) -> 1852
B10: NV-EC1701-KIT3 | C10: 3 - Camera EoC Transmission System; (4) NV-EC1701 & (1) NV-PS48-60W & (1) NV-EC4BNC, (3) NV-PC4PR, (1) NV-PC2PR | D10: 2437 | E10: =ROUNDUP(D10-(Содержание!$H$4*D10),0) -> 2437
B11: NV-EC1701-KIT4 | C11: 4 - Camera EoC Transmission System; (5) NV-EC1701 & (1) NV-PS48-60W & (1) NV-EC4BNC, (4) NV-PC4PR, (1) NV-PC2PR | D11: 3022 | E11: =ROUNDUP(D11-(Содержание!$H$4*D11),0) -> 3022
A12: Eo2 Transceiver | D12: 0
B13: NV-EC1701U | C13: Single Channel Eo2 Transceiver (power supply not included) | D13: 570 | E13: =ROUNDUP(D13-(Содержание!$H$4*D13),0) -> 570
A14: Eo2 System Kits | D14: 0
B15: NV-EC1701U-KIT1 | C15: 1 - Camera Eo2 Transmission System; (2) NV-EC1701U & (1) NV-PS48-60W, (1) NV-PC4PR, (1) NV-PC2PR | D15: 1271 | E15: =ROUNDUP(D15-(Содержание!$H$4*D15),0) -> 1271
B16: NV-EC1701U-KIT2 | C16: 2 - Camera Eo2Transmission System; (3) NV-EC1701U & (1) NV-PS48-60W & (2) NV-PC4PR, (1) NV-PC2PR | D16: 1852 | E16: =ROUNDUP(D16-(Содержание!$H$4*D16),0) -> 1852
B17: NV-EC1701U-KIT3 | C17: 3 - Camera Eo2 Transmission System; (4) NV-EC1701U & (1) NV-PS48-60W & (3) NV-PC4PR, (1) NV-PC2PR | D17: 2437 | E17: =ROUNDUP(D17-(Содержание!$H$4*D17),0) -> 2437
B18: NV-EC1701U-KIT4 | C18: 4 - Camera Eo2 Transmission System; (5) NV-EC1701U & (1) NV-PS48-60W & (4) NV-PC4PR, (1) NV-PC2PR | D18: 3022 | E18: =ROUNDUP(D18-(Содержание!$H$4*D18),0) -> 3022
A19: Accessories | D19: 0
B20: NV-PS48-60W | C20: 48VDC power supply, 60 watts with IEC line cord | D20: 119 | E20: =ROUNDUP(D20-(Содержание!$H$4*D20),0) -> 119
B21: NV-PS56-60W | C21: 56VDC Power Supply, 60 watts with IEC line cord | D21: 154 | E21: =ROUNDUP(D21-(Содержание!$H$4*D21),0) -> 154
B22: NV-PS56-90W | C22: 56VDC Power Supply, 90 watts with IEC line cord | D22: 185 | E22: =ROUNDUP(D22-(Содержание!$H$4*D22),0) -> 185
B23: NV-PC4PR | C23: RJ45 Patch Cord, 4-pair 3' (1m) Grey | D23: 12 | E23: =ROUNDUP(D23-(Содержание!$H$4*D23),0) -> 12
B24: NV-PC2PR | C24: RJ45 Patch Cord, 2-pair 3' (1m) Red | D24: 12 | E24: =ROUNDUP(D24-(Содержание!$H$4*D24),0) -> 12
B25: NV-BNCT | C25: BNC "T" Adaptor | D25: 12 | E25: =ROUNDUP(D25-(Содержание!$H$4*D25),0) -> 12
B26: NV-RM8/10 | C26: Rack mount kit, 19" X 2U, holds up to (4) NV-EC1701 transceivers | D26: 89 | E26: =ROUNDUP(D26-(Содержание!$H$4*D26),0) -> 89
B27: NV-RMEC16 | C27: EoC Rack Mount Tray Kit - up to (4) NV-EC1701 Transceivers w/Power Supplies (not included) | D27: 300 | E27: =ROUNDUP(D27-(Содержание!$H$4*D27),0) -> 300
B28: NV-RMEC16U | C28: Eo2 Rack Mount Tray Kit - up to (4) NV-EC1701U Transceivers w/Power Supplies (not included) | D28: 300 | E28: =ROUNDUP(D28-(Содержание!$H$4*D28),0) -> 300
B29: NV-DPSC4 | C29: Detachable Power Supply Cord Splitter 1:4 x 2ft | D29: 31 | E29: =ROUNDUP(D29-(Содержание!$H$4*D29),0) -> 31
B30: NV-EC4BNC | C30: BNC Coax Splitter 1:4 | D30: 31 | E30: =ROUNDUP(D30-(Содержание!$H$4*D30),0) -> 31
A33: Passive Transceiver
B34: NV-213A (&A-M) | C34: Passive Video Transceiver | D34: 246 | E34: =ROUNDUP(D34-(Содержание!$H$4*D34),0) -> 246
B35: NV-208A-M | C35: Passive Video Transceiver | D35: 100 | E35: =ROUNDUP(D35-(Содержание!$H$4*D35),0) -> 100
B36: NV-214A-M | C36: Passive Video Transceiver | D36: 100 | E36: =ROUNDUP(D36-(Содержание!$H$4*D36),0) -> 100
B37: NV-215J-M | C37: Passive Video Transceiver with RJ45 | D37: 100 | E37: =ROUNDUP(D37-(Содержание!$H$4*D37),0) -> 100
B38: NV-217J-M | C38: Passive Video Transceiver with RJ45 | D38: 100 | E38: =ROUNDUP(D38-(Содержание!$H$4*D38),0) -> 100
A39: Active Receiver/Transmitter
B40: NV-652R | C40: Active Video Receiver * | D40: 431 | E40: =ROUNDUP(D40-(Содержание!$H$4*D40),0) -> 431
B41: NV-653T | C41: Active Video Transmitter * | D41: 424 | E41: =ROUNDUP(D41-(Содержание!$H$4*D41),0) -> 424
B43: NV-413A | C43: 4-Ch Passive Video Transceiver | D43: 747 | E43: =ROUNDUP(D43-(Содержание!$H$4*D43),0) -> 747
B44: NV-452R | C44: 4-Ch Active Video Receiver * | D44: 1502 | E44: =ROUNDUP(D44-(Содержание!$H$4*D44),0) -> 1502
A45: Passive Hub
B46: NV-813 | C46: 8-Channel Passive Hub ▲ | D46: 1748 | E46: =ROUNDUP(D46-(Содержание!$H$4*D46),0) -> 1748
B47: NV-813S | C47: 8-Channel Passive Stub Hub ► | D47: 978 | E47: =ROUNDUP(D47-(Содержание!$H$4*D47),0) -> 978
B48: NV-1613 | C48: 16-Channel Passive Hub ▲ | D48: 3384 | E48: =ROUNDUP(D48-(Содержание!$H$4*D48),0) -> 3384
B49: NV-1613S | C49: 16-Channel Passive Stub Hub ► | D49: 1883 | E49: =ROUNDUP(D49-(Содержание!$H$4*D49),0) -> 1883
B50: NV-3213 | C50: 32-Channel Passive Hub ▲ | D50: 6206 | E50: =ROUNDUP(D50-(Содержание!$H$4*D50),0) -> 6206
B51: NV-3213S | C51: 32-Channel Passive Stub Hub ► | D51: 3631 | E51: =ROUNDUP(D51-(Содержание!$H$4*D51),0) -> 3631
A52: Active Hub
B53: NV-442 | C53: 4-Channel Active StubEQ Receiver Hub † | D53: 1525 | E53: =ROUNDUP(D53-(Содержание!$H$4*D53),0) -> 1525
B54: NV-842 | C54: 8-Channel DigitalEQ Stub Hub † ► | D54: 1925 | E54: =ROUNDUP(D54-(Содержание!$H$4*D54),0) -> 1925
B55: NV-1642 | C55: 16-Channel DigitalEQ Stub Hub † ► | D55: 3723 | E55: =ROUNDUP(D55-(Содержание!$H$4*D55),0) -> 3723
B56: NV-3242 | C56: 32-Channel DigitalEQ Stub Hub † ► | D56: 6834 | E56: =ROUNDUP(D56-(Содержание!$H$4*D56),0) -> 6834
B57: NV-872 | C57: 8-Channel DigitalEQ Hub †▲ | D57: 2976 | E57: =ROUNDUP(D57-(Содержание!$H$4*D57),0) -> 2976
B58: NV-1672 | C58: 16-Channel DigitalEQ Hub †▲ | D58: 5744 | E58: =ROUNDUP(D58-(Содержание!$H$4*D58),0) -> 5744
B59: NV-3272 | C59: 32-Channel DigitalEQ Hub †▲ | D59: 10541 | E59: =ROUNDUP(D59-(Содержание!$H$4*D59),0) -> 10541
A60: Power, Video, Data
B61: NV-216A-PV | C61: Power-Video Transceiver | D61: 123 | E61: =ROUNDUP(D61-(Содержание!$H$4*D61),0) -> 123
B62: NV-218A-PVD | C62: Power-Video-Data Transceiver | D62: 196 | E62: =ROUNDUP(D62-(Содержание!$H$4*D62),0) -> 196
B63: NV-226J-PV | C63: Video Transmitter & 12VDC Converter † | D63: 239 | E63: =ROUNDUP(D63-(Содержание!$H$4*D63),0) -> 239
B64: NV-4PS10- PVD | C64: Power Supply Cable Integrator Hub † | D64: 628 | E64: =ROUNDUP(D64-(Содержание!$H$4*D64),0) -> 628
B65: NV-16PS10-PVD | C65: Power Supply Cable Integrator Hub † | D65: 1898 | E65: =ROUNDUP(D65-(Содержание!$H$4*D65),0) -> 1898
B66: NV-4PS13-PVD | C66: Power Supply Passive Receiver Hub †► | D66: 1332 | E66: =ROUNDUP(D66-(Содержание!$H$4*D66),0) -> 1332
B67: NV-8PS13-PVD | C67: Power Supply Passive Receiver Hub †▲ | D67: 2668 | E67: =ROUNDUP(D67-(Содержание!$H$4*D67),0) -> 2668
B68: NV-16PS13-PVD | C68: Power Supply Passive Receiver Hub †▲ | D68: 5336 | E68: =ROUNDUP(D68-(Содержание!$H$4*D68),0) -> 5336
B69: NV-8PS42-PVD | C69: 8-Channel Power Supply StubEQ Active Receiver Hub † | D69: 2799 | E69: =ROUNDUP(D69-(Содержание!$H$4*D69),0) -> 2799
B70: NV-16PS42-PVD | C70: 16-Channel Power Supply StubEQ Active Receiver Hub † | D70: 5532 | E70: =ROUNDUP(D70-(Содержание!$H$4*D70),0) -> 5532
B71: NV-32PS42-PVD | C71: 32-Channel Power Supply StubEQ Active Receiver Hub † | D71: 10730 | E71: =ROUNDUP(D71-(Содержание!$H$4*D71),0) -> 10730
B72: NV-704J-PVD | C72: 4-Ch PVD Cable Integrator * | D72: 285 | E72: =ROUNDUP(D72-(Содержание!$H$4*D72),0) -> 285
B73: NV-716J-PVD | C73: 16-Ch PVD Cable Integrator * | D73: 524 | E73: =ROUNDUP(D73-(Содержание!$H$4*D73),0) -> 524
A74: Multimedia
B75: NV-314A | C75: Passive Video & Audio Transceiver | D75: 385 | E75: =ROUNDUP(D75-(Содержание!$H$4*D75),0) -> 385
B76: NV-418A | C76: Dual Passive AV Transceiver | D76: 497 | E76: =ROUNDUP(D76-(Содержание!$H$4*D76),0) -> 497
B77: NV-418AR | C77: Dual Passive AV Transceiver, Rackmt | D77: 497 | E77: =ROUNDUP(D77-(Содержание!$H$4*D77),0) -> 497
B78: NV-518A | C78: Dual AV Transceiver * | D78: 905 | E78: =ROUNDUP(D78-(Содержание!$H$4*D78),0) -> 905
B79: NV-518AR | C79: Dual AV Transceiver, Rackmt | D79: 905 | E79: =ROUNDUP(D79-(Содержание!$H$4*D79),0) -> 905
B80: NV-RM-15 | C80: Rackmount Chassis † | D80: 1436 | E80: =ROUNDUP(D80-(Содержание!$H$4*D80),0) -> 1436
A81: Accessories
B82: NV-4PSRMBK | C82: Rack Panel Kit for 4 Port Power Supply Product | D82: 100 | E82: =ROUNDUP(D82-(Содержание!$H$4*D82),0) -> 100
B83: NV-BKT214-8 | C83: Mounting Bracket for 8 NV-214AM's | D83: 23 | E83: =ROUNDUP(D83-(Содержание!$H$4*D83),0) -> 23
B84: NV-BNC-8 | C84: Coax Jumper Cables 2ft (8-pack) | D84: 100 | E84: =ROUNDUP(D84-(Содержание!$H$4*D84),0) -> 100
B85: NV-RJ45A | C85: RJ45/Screw Terminal Block Adapter (2 each) | D85: 15 | E85: =ROUNDUP(D85-(Содержание!$H$4*D85),0) -> 15
B86: NV-RM8/10 | C86: Rack Panel Kit | D86: 100 | E86: =ROUNDUP(D86-(Содержание!$H$4*D86),0) -> 100
B87: NV-RMBK | C87: Rear Mounting Bracket Kit | D87: 100 | E87: =ROUNDUP(D87-(Содержание!$H$4*D87),0) -> 100
B88: NV-WMBK | C88: Wall Mounting Bracket Kit | D88: 100 | E88: =ROUNDUP(D88-(Содержание!$H$4*D88),0) -> 100
A90: Transmission IP - Other
B91: IP01 | C91: IP Extender over Coax - Passive type (2 pieces/one set package) | D91: 94 | E91: =ROUNDUP(D91-(Содержание!$H$4*D91),0) -> 94
B92: IP01H | C92: 4 port Ethernet Switch Kit (over coax, BNC interface) (power adapter included) | D92: 280 | E92: =ROUNDUP(D92-(Содержание!$H$4*D92),0) -> 280
B93: IP01K | C93: 4 x IP01+1 x IP01H 5 port Ethernet Switch Kit (over coax, BNC interface) | D93: 430 | E93: =ROUNDUP(D93-(Содержание!$H$4*D93),0) -> 430
B94: IP01P | C94: POE Extender over Coax 300M (Package without POE switch/injector) | D94: 280 | E94: =ROUNDUP(D94-(Содержание!$H$4*D94),0) -> 280
B95: IP02P | C95: IP Extender with Power over Coax 180M, including TX x1, RX x 1 (power adapter included) | D95: 448 | E95: =ROUNDUP(D95-(Содержание!$H$4*D95),0) -> 448
B96: IP02 | C96: Active IP Extender over Coax, including TX x1, RX x1 (power adapter included) | D96: 634 | E96: =ROUNDUP(D96-(Содержание!$H$4*D96),0) -> 634
B97: IP03 | C97: Active IP Extender over CAT5, including TX x1, RX x1 (power adapter included) | D97: 634 | E97: =ROUNDUP(D97-(Содержание!$H$4*D97),0) -> 634
B98: IP03P | C98: Internet and POE or UTP, Coax, telefone, bell, alarm / power Cabels | D98: 708 | E98: =ROUNDUP(D98-(Содержание!$H$4*D98),0) -> 708
B99: IP04 | C99: POE Repeater 300Meters | D99: 186 | E99: =ROUNDUP(D99-(Содержание!$H$4*D99),0) -> 186
B100: IP07M | C100: Chainable IP Extender with Power over Coax/Two Wire IP07M x 1 unit | D100: 243 | E100: =ROUNDUP(D100-(Содержание!$H$4*D100),0) -> 243
B101: IP07MK-DC24V | C101: Chainable IP Extender IP07M x 2 units with 1 x DC24V power adapter | D101: 522 | E101: =ROUNDUP(D101-(Содержание!$H$4*D101),0) -> 522
B102: IP07MK-DC48V | C102: Chainable IP Extender IP07M x 2 units with 1 x DC48V power adapter | D102: 541 | E102: =ROUNDUP(D102-(Содержание!$H$4*D102),0) -> 541
B103: IP07MK-DC56V | C103: Chainable IP Extender IP07M x 2 units with 1 x DC56V power adapter | D103: 616 | E103: =ROUNDUP(D103-(Содержание!$H$4*D103),0) -> 616
